Council Name,Date,TransNo,Amount � (Excl VAT),Supplier name,Supplier Category,Expense Area,Expense Type,Expense Code,Unclaimed VAT
Royal Borough of Kingston,28/11/2023,70061792,975.00,3SPIRIT ENTERPRISE UK LTD,TRAINING,Adult Social Care & Health,Staff Development And Training,A15022,0
Royal Borough of Kingston,29/11/2023,70061795,975.00,3SPIRIT ENTERPRISE UK LTD,TRAINING,Adult Social Care & Health,Staff Development And Training,A15022,0
Royal Borough of Kingston,13/12/2023,70062837,800.00,3SPIRIT ENTERPRISE UK LTD,TRAINING,Adult Social Care & Health,Staff Development And Training,A15022,0
Royal Borough of Kingston,26/01/2024,90302021,"1,375.00",REDACTED - PERSONAL DATA,PLS LANDLORDS,Place,PSL Payments To Landlords,A22031,0
Royal Borough of Kingston,26/01/2024,90302068,"1,375.00",REDACTED - PERSONAL DATA,PLS LANDLORDS,Place,PSL Payments To Landlords,A22031,0
Royal Borough of Kingston,22/01/2024,70063049,"1,914.00",A D WIBDEN LIMITED,CONSTRUCTION INDUSTRY,Corporate & Communities,Grants Given For Capital Purposes,C20004,0
Royal Borough of Kingston,02/01/2024,70061963,595.00,ALAN GREENWOOD AND SONS,LEGAL & PROFESSIONAL SERVICES,Adult Social Care & Health,Professional Fees,A44066,0
Royal Borough of Kingston,12/01/2024,70063115,595.00,ALAN GREENWOOD AND SONS,LEGAL & PROFESSIONAL SERVICES,Adult Social Care & Health,Professional Fees,A44066,0
Royal Borough of Kingston,12/01/2024,70063116,595.00,ALAN GREENWOOD AND SONS,LEGAL & PROFESSIONAL SERVICES,Adult Social Care & Health,Professional Fees,A44066,0
Royal Borough of Kingston,26/01/2024,90301922,"1,097.00",REDACTED - PERSONAL DATA,PLS LANDLORDS,Place,PSL Payments To Landlords,A22031,0
Royal Borough of Kingston,26/01/2024,90301976,"1,125.00",REDACTED - PERSONAL DATA,PLS LANDLORDS,Place,PSL Payments To Landlords,A22031,0
Royal Borough of Kingston,26/01/2024,90302058,"2,300.00",REDACTED - PERSONAL DATA,PLS LANDLORDS,Place,PSL Payments To Landlords,A22031,0
Royal Borough of Kingston,26/01/2024,90302059,"2,300.00",REDACTED - PERSONAL DATA,PLS LANDLORDS,Place,PSL Payments To Landlords,A22031,0
Royal Borough of Kingston,26/01/2024,90302060,"2,300.00",REDACTED - PERSONAL DATA,PLS LANDLORDS,Place,PSL Payments To Landlords,A22031,0
Royal Borough of Kingston,26/01/2024,90302213,"2,300.00",REDACTED - PERSONAL DATA,PLS LANDLORDS,Place,PSL Payments To Landlords,A22031,0
Royal Borough of Kingston,26/01/2024,90302017,993.34,REDACTED - PERSONAL DATA,PLS LANDLORDS,Place,PSL Payments To Landlords,A22031,0
Royal Borough of Kingston,05/01/2024,90295719,"10,170.00",ABACUS PRE-SCHOOL,ACADEMIC INSTNS - OTHER,Schools,PVI Providers,A60014,0
Royal Borough of Kingston,05/01/2024,90295816,"4,252.50",ABACUS PRE-SCHOOL,ACADEMIC INSTNS - OTHER,Schools,2 Yr Old Place Funding,A60000,0
Royal Borough of Kingston,01/01/2024,90300314,"5,314.29",ABBEY 14LIMITED,SOCIAL SERVICES RESIDENTIAL,Adult Social Care & Health,Independent Placements,A56006,0
Royal Borough of Kingston,01/01/2024,90300000,"4,161.31",ABBEYFIELD,SOCIAL SERVICES RESIDENTIAL,Adult Social Care & Health,Independent Placements,A56006,0
Royal Borough of Kingston,01/01/2024,90300010,"3,865.08",ABBEYFIELD,SOCIAL SERVICES RESIDENTIAL,Adult Social Care & Health,Independent Placements,A56006,0
Royal Borough of Kingston,01/01/2024,90300078,"3,865.08",ABBEYFIELD,SOCIAL SERVICES RESIDENTIAL,Adult Social Care & Health,Independent Placements,A56006,0
Royal Borough of Kingston,01/01/2024,90300082,"5,235.68",ABBEYFIELD,SOCIAL SERVICES RESIDENTIAL,Adult Social Care & Health,Independent Placements,A56006,0
Royal Borough of Kingston,01/01/2024,90300085,"4,161.31",ABBEYFIELD,SOCIAL SERVICES RESIDENTIAL,Adult Social Care & Health,Independent Placements,A56006,0
Royal Borough of Kingston,01/01/2024,90300096,"4,161.31",ABBEYFIELD,SOCIAL SERVICES RESIDENTIAL,Adult Social Care & Health,Independent Placements,A56006,0
Royal Borough of Kingston,01/01/2024,90300108,"4,161.31",ABBEYFIELD,SOCIAL SERVICES RESIDENTIAL,Adult Social Care & Health,Independent Placements,A56006,0
Royal Borough of Kingston,01/01/2024,90300109,"4,161.31",ABBEYFIELD,SOCIAL SERVICES RESIDENTIAL,Adult Social Care & Health,Independent Placements,A56006,0
Royal Borough of Kingston,01/01/2024,90300184,"4,161.31",ABBEYFIELD,SOCIAL SERVICES RESIDENTIAL,Adult Social Care & Health,Independent Placements,A56006,0
Royal Borough of Kingston,01/01/2024,90300186,"4,161.31",ABBEYFIELD,SOCIAL SERVICES RESIDENTIAL,Adult Social Care & Health,Independent Placements,A56006,0
Royal Borough of Kingston,01/01/2024,90300189,"5,234.57",ABBEYFIELD,SOCIAL SERVICES RESIDENTIAL,Adult Social Care & Health,Independent Placements,A56006,0
Royal Borough of Kingston,01/01/2024,90300193,"4,161.31",ABBEYFIELD,SOCIAL SERVICES RESIDENTIAL,Adult Social Care & Health,Independent Placements,A56006,0
Royal Borough of Kingston,01/01/2024,90300249,"3,865.08",ABBEYFIELD,SOCIAL SERVICES RESIDENTIAL,Adult Social Care & Health,Independent Placements,A56006,0
Royal Borough of Kingston,01/01/2024,90300261,"3,865.08",ABBEYFIELD,SOCIAL SERVICES RESIDENTIAL,Adult Social Care & Health,Independent Placements,A56006,0
Royal Borough of Kingston,01/01/2024,90300303,"4,161.31",ABBEYFIELD,SOCIAL SERVICES RESIDENTIAL,Adult Social Care & Health,Independent Placements,A56006,0
Royal Borough of Kingston,01/01/2024,90300319,"4,161.31",ABBEYFIELD,SOCIAL SERVICES RESIDENTIAL,Adult Social Care & Health,Independent Placements,A56006,0
Royal Borough of Kingston,01/01/2024,90300332,"4,058.34",ABBEYFIELD,SOCIAL SERVICES RESIDENTIAL,Adult Social Care & Health,Independent Placements,A56006,0
Royal Borough of Kingston,01/01/2024,90300334,"5,235.68",ABBEYFIELD,SOCIAL SERVICES RESIDENTIAL,Adult Social Care & Health,Independent Placements,A56006,0
Royal Borough of Kingston,01/01/2024,90300337,"5,235.68",ABBEYFIELD,SOCIAL SERVICES RESIDENTIAL,Adult Social Care & Health,Independent Placements,A56006,0
Royal Borough of Kingston,01/01/2024,90300343,"4,161.31",ABBEYFIELD,SOCIAL SERVICES RESIDENTIAL,Adult Social Care & Health,Independent Placements,A56006,0
Royal Borough of Kingston,01/01/2024,90300347,"5,235.68",ABBEYFIELD,SOCIAL SERVICES RESIDENTIAL,Adult Social Care & Health,Independent Placements,A56006,0
Royal Borough of Kingston,01/01/2024,90300360,"5,235.68",ABBEYFIELD,SOCIAL SERVICES RESIDENTIAL,Adult Social Care & Health,Independent Placements,A56006,0
Royal Borough of Kingston,21/12/2023,70061250,468.00,ABBOTT RAPID DIAGNOSTICS LIMITED,OPERATIONAL EQUIPMENT/MATERIAL,Adult Social Care & Health,Other Private Contractors - Third Party,A56080,0
Royal Borough of Kingston,01/01/2024,90301494,"6,032.33",ABC HILLINGDON LTD,ACCOMMODATION - OTHER,Adult Social Care & Health,Personal Budget - Third Party,A61019,0
Royal Borough of Kingston,26/01/2024,90302027,990.58,AC & BU SIMMONDS,PLS LANDLORDS,Place,PSL Payments To Landlords,A22031,0
Royal Borough of Kingston,22/12/2023,70061266,"1,229.59",AC & MS LIMITED,LEGAL & PROFESSIONAL SERVICES,Housing Revenue Account,Asbestos Audit,A20042,0
Royal Borough of Kingston,22/12/2023,70061267,"2,098.36",AC & MS LIMITED,LEGAL & PROFESSIONAL SERVICES,Housing Revenue Account,Asbestos Removal,C10000,0
Royal Borough of Kingston,05/01/2024,90295789,"21,289.20",ACACIA PRE-SCHOOL,ACADEMIC INSTNS - OTHER,Schools,PVI Providers,A60014,0
Royal Borough of Kingston,05/01/2024,90295838,"3,037.50",ACACIA PRE-SCHOOL,ACADEMIC INSTNS - OTHER,Schools,2 Yr Old Place Funding,A60000,0
Royal Borough of Kingston,11/01/2024,90297633,972.00,ACACIA PRE-SCHOOL,ACADEMIC INSTNS - OTHER,Schools,2 Yr Old Place Funding,A60000,0
Royal Borough of Kingston,02/01/2024,70061458,820.00,ACCESS INDEPENDENT LIMITED,SOCIAL SERVICES - OTHER,Housing Revenue Account,Buildings - Project Management,C14003,0
Royal Borough of Kingston,19/01/2024,70063307,"2,995.48",Access Rail Solutions Ltd,SUNDRY SUPPLIER - HOUSING,Corporate & Communities,Grants Given For Capital Purposes,C20004,0
Royal Borough of Kingston,26/01/2024,90302290,"1,047.00",Accountancy Services (New Malden) Limited,PLS LANDLORDS,Place,PSL Payments To Landlords,A22031,0
Royal Borough of Kingston,01/01/2024,90300433,"7,437.65",Achieve Together Limited,SOCIAL SERVICES - OTHER,Adult Social Care & Health,Independent Placements,A56006,0
Royal Borough of Kingston,01/01/2024,90300579,"5,232.09",Achieve Together Limited,SOCIAL SERVICES - OTHER,Adult Social Care & Health,Independent Placements,A56006,0
Royal Borough of Kingston,01/01/2024,90300603,"2,214.29",Achieve Together Limited,SOCIAL SERVICES - OTHER,Adult Social Care & Health,Independent Placements,A56006,0
Royal Borough of Kingston,01/01/2024,90300604,"11,260.97",Achieve Together Limited,SOCIAL SERVICES - OTHER,Adult Social Care & Health,Independent Placements,A56006,0
Royal Borough of Kingston,01/01/2024,90300696,"12,436.67",Achieve Together Limited,SOCIAL SERVICES - OTHER,Adult Social Care & Health,Independent Placements,A56006,0
Royal Borough of Kingston,09/11/2023,70061764,500.00,ACHIEVING FOR CHILDREN LIMITED,LEGAL & PROFESSIONAL SERVICES,Adult Social Care & Health,Clothing & Uniforms,A42005,0
Royal Borough of Kingston,05/01/2024,70062095,"6,877,103.70",ACHIEVING FOR CHILDREN LIMITED,LEGAL & PROFESSIONAL SERVICES,Childrens Services,Fixed Childrens Services Contract Strategic,A51019,0
Royal Borough of Kingston,23/01/2024,70063260,"28,000.00",ACHIEVING FOR CHILDREN LIMITED,LEGAL & PROFESSIONAL SERVICES,Adult Social Care & Health,Other Private Contractors - Third Party,A56080,0
Royal Borough of Kingston,05/01/2024,90295795,"30,510.00",Acorn to Oak Nursery and Preschool Ltd,CHILDMINDERS START UP GRANT,Schools,PVI Providers,A60014,0
Royal Borough of Kingston,05/01/2024,90295840,"3,037.50",Acorn to Oak Nursery and Preschool Ltd,CHILDMINDERS START UP GRANT,Schools,2 Yr Old Place Funding,A60000,0
Royal Borough of Kingston,05/01/2024,70061971,379.71,ACTIVITY WORKWEAR,CLOTHING & UNIFORMS,Housing Revenue Account,Clothing & Uniforms,A42005,0
Royal Borough of Kingston,05/01/2024,70061971,69.30,ACTIVITY WORKWEAR,CLOTHING & UNIFORMS,Housing Revenue Account,Clothing & Uniforms,A42005,0
Royal Borough of Kingston,06/11/2023,70061234,"1,877.50",Acuity Research & Practice Ltd,MANAGEMENT & TRAINING SERVICES,Housing Revenue Account,Other Private Contractors - Third Party,A56080,0
Royal Borough of Kingston,02/01/2024,70062105,"1,581.00",ADAM HOTEL MANAGEMENT LTD,ACCOMMODATION BED & BREAKFAST,Place,Bed & Breakfast,A56000,0
Royal Borough of Kingston,02/01/2024,70062106,"1,085.00",ADAM HOTEL MANAGEMENT LTD,ACCOMMODATION BED & BREAKFAST,Place,Bed & Breakfast,A56000,0
Royal Borough of Kingston,02/01/2024,70062107,"1,085.00",ADAM HOTEL MANAGEMENT LTD,ACCOMMODATION BED & BREAKFAST,Place,Bed & Breakfast,A56000,0
Royal Borough of Kingston,02/01/2024,70062108,"1,581.00",ADAM HOTEL MANAGEMENT LTD,ACCOMMODATION BED & BREAKFAST,Place,Bed & Breakfast,A56000,0
Royal Borough of Kingston,02/01/2024,70062109,"1,085.00",ADAM HOTEL MANAGEMENT LTD,ACCOMMODATION BED & BREAKFAST,Place,Bed & Breakfast,A56000,0
Royal Borough of Kingston,27/12/2023,70061348,"7,170.58",ADAM HTT LIMITED,TAXI AND COACH HIRE,Adult Social Care & Health,Home To School Transport Taxis,A33016,0
Royal Borough of Kingston,20/12/2023,70061442,"18,170.98",ADAM HTT LIMITED,TAXI AND COACH HIRE,Adult Social Care & Health,Home To School Transport Taxis,A33016,0
Royal Borough of Kingston,03/01/2024,70061541,"17,598.54",ADAM HTT LIMITED,TAXI AND COACH HIRE,Adult Social Care & Health,Home To School Transport Taxis,A33016,0
Royal Borough of Kingston,10/01/2024,70062290,"8,398.98",ADAM HTT LIMITED,TAXI AND COACH HIRE,Adult Social Care & Health,Home To School Transport Taxis,A33016,0
Royal Borough of Kingston,17/01/2024,70062781,"24,153.68",ADAM HTT LIMITED,TAXI AND COACH HIRE,Adult Social Care & Health,Home To School Transport Taxis,A33016,0
Royal Borough of Kingston,05/01/2024,90295796,"7,169.85",Event Supplies LTD,CHILDMINDERS START UP GRANT,Schools,PVI Providers,A60014,0
Royal Borough of Kingston,05/01/2024,90295841,"1,215.00",Event Supplies LTD,CHILDMINDERS START UP GRANT,Schools,2 Yr Old Place Funding,A60000,0
Royal Borough of Kingston,07/08/2023,70052037,600.00,ADVANCED TREE SERVICES LIMITED,CONSTRUCTION INDUSTRY,Housing Revenue Account,Other Private Contractors - Third Party,A56080,0
Royal Borough of Kingston,08/01/2024,70062198,"19,273.00",ADVANCED TREE SERVICES LIMITED,CONSTRUCTION INDUSTRY,Corporate & Communities,Other Private Contractors - Third Party,A56080,0
Royal Borough of Kingston,16/01/2024,70062688,"9,209.00",ADVANCED TREE SERVICES LIMITED,CONSTRUCTION INDUSTRY,Corporate & Communities,Maintenance of trees,A28003,0
Royal Borough of Kingston,16/01/2024,70062688,147.00,ADVANCED TREE SERVICES LIMITED,CONSTRUCTION INDUSTRY,Housing Revenue Account,Tree Works,A56042,0
Royal Borough of Kingston,16/01/2024,70062688,168.00,ADVANCED TREE SERVICES LIMITED,CONSTRUCTION INDUSTRY,Housing Revenue Account,Tree Works,A56042,0
Royal Borough of Kingston,16/01/2024,70062688,568.00,ADVANCED TREE SERVICES LIMITED,CONSTRUCTION INDUSTRY,Housing Revenue Account,Tree Works,A56042,0
Royal Borough of Kingston,16/01/2024,70062702,500.00,ADVANCED TREE SERVICES LIMITED,CONSTRUCTION INDUSTRY,Housing Revenue Account,Tree Works,A56042,0
Royal Borough of Kingston,16/01/2024,70062738,"2,240.00",ADVANCED TREE SERVICES LIMITED,CONSTRUCTION INDUSTRY,Corporate & Communities,Maintenance of trees,A28003,0
Royal Borough of Kingston,16/01/2024,70062738,120.00,ADVANCED TREE SERVICES LIMITED,CONSTRUCTION INDUSTRY,Housing Revenue Account,Tree Works,A56042,0
Royal Borough of Kingston,16/01/2024,70062738,300.00,ADVANCED TREE SERVICES LIMITED,CONSTRUCTION INDUSTRY,Housing Revenue Account,Tree Works,A56042,0
Royal Borough of Kingston,25/01/2024,70063491,"3,200.00",ADVANCED TREE SERVICES LIMITED,CONSTRUCTION INDUSTRY,Corporate & Communities,Maintenance of trees,A28003,0
Royal Borough of Kingston,05/01/2024,90295692,"99,496.50",ADVANTAGE DAY NURSERY LTD,ACADEMIC INSTNS - OTHER,Schools,PVI Providers,A60014,0
Royal Borough of Kingston,05/01/2024,90295801,"8,505.00",ADVANTAGE DAY NURSERY LTD,ACADEMIC INSTNS - OTHER,Schools,2 Yr Old Place Funding,A60000,0
Royal Borough of Kingston,01/01/2024,90301093,"1,080.00",Staywell,GRANTS & EX GRATIA PAYMENTS,Adult Social Care & Health,Day Opps / Day Care -� Building-based�,A56144,0
Royal Borough of Kingston,01/01/2024,90301093,"1,080.00",Staywell,GRANTS & EX GRATIA PAYMENTS,Adult Social Care & Health,Day Opps / Day Care -� Building-based�,A56144,0
Royal Borough of Kingston,01/01/2024,90301144,885.71,Staywell,GRANTS & EX GRATIA PAYMENTS,Adult Social Care & Health,Personal Budget - Third Party,A61019,0
Royal Borough of Kingston,01/01/2024,90301145,708.57,Staywell,GRANTS & EX GRATIA PAYMENTS,Adult Social Care & Health,Personal Budget - Third Party,A61019,0
Royal Borough of Kingston,05/01/2024,90295738,"2,034.00",REDACTED - PERSONAL DATA,CHILDMINDERS START UP GRANT,Schools,PVI Providers,A60014,0
Royal Borough of Kingston,01/01/2024,90300258,"3,256.00",AIMS CARE LIMITED,SOCIAL SERVICES RESIDENTIAL,Adult Social Care & Health,Independent Placements,A56006,0
Royal Borough of Kingston,01/01/2024,90300259,"6,864.29",AIMS CARE LIMITED,SOCIAL SERVICES RESIDENTIAL,Adult Social Care & Health,Independent Placements,A56006,0
Royal Borough of Kingston,02/01/2024,90295484,500.00,REDACTED - PERSONAL DATA,GRANTS & EX GRATIA PAYMENTS,Adult Social Care & Health,"Grants, Contributions & Donations",A47005,0
Royal Borough of Kingston,02/01/2024,90295485,500.00,REDACTED - PERSONAL DATA,CHARITIES & VOLUNTARY ORGNS,Adult Social Care & Health,"Grants, Contributions & Donations",A47005,0
Royal Borough of Kingston,26/01/2024,90302093,"1,094.00",REDACTED - PERSONAL DATA,LANDLORDS,Place,PSL Payments To Landlords,A22031,0
Royal Borough of Kingston,04/01/2024,90295659,"162,395.61",ALEXANDRA SCHOOL ,SCHOOL FUNDS,Schools,Miscellaneous Expenses,A49000,0
Royal Borough of Kingston,05/01/2024,90295736,"29,187.90",ALEXANDRA SCHOOL ,SCHOOL FUNDS,Schools,Miscellaneous Expenses,A49000,0
Royal Borough of Kingston,11/01/2024,90297655,680.40,ALEXANDRA SCHOOL ,SCHOOL FUNDS,Schools,Early Years Contingency,A60030,0
Royal Borough of Kingston,24/01/2024,90299878,"4,000.00",ALEXANDRA SCHOOL ,SCHOOL FUNDS,Schools,Miscellaneous Expenses,A49000,0
Royal Borough of Kingston,26/01/2024,90302278,"1,050.00",REDACTED - PERSONAL DATA,PLS LANDLORDS,Place,PSL Payments To Landlords,A22031,0
Royal Borough of Kingston,02/01/2024,90295487,550.00,REDACTED - PERSONAL DATA,CHARITIES & VOLUNTARY ORGNS,Adult Social Care & Health,"Grants, Contributions & Donations",A47005,0
Royal Borough of Kingston,29/12/2023,70061499,423.29,ALLIED PUBLICITY SERVICES (MANCHESTER) LTD,PRESS & PUBLICITY,Adult Social Care & Health,Other Private Contractors - Third Party,A56080,0
Royal Borough of Kingston,18/12/2023,90295888,567.24,ALPENBEST LTD,SOCIAL SERVICES DAY CARE,Adult Social Care & Health,Homecare - new framework,A56127,0
Royal Borough of Kingston,18/12/2023,90295891,576.24,ALPENBEST LTD,SOCIAL SERVICES DAY CARE,Adult Social Care & Health,Homecare - new framework,A56127,0
Royal Borough of Kingston,18/12/2023,90295921,630.27,ALPENBEST LTD,SOCIAL SERVICES DAY CARE,Adult Social Care & Health,Homecare - new framework,A56127,0
Royal Borough of Kingston,18/12/2023,90296040,567.24,ALPENBEST LTD,SOCIAL SERVICES DAY CARE,Adult Social Care & Health,Homecare - new framework,A56127,0
Royal Borough of Kingston,18/12/2023,90296049,819.35,ALPENBEST LTD,SOCIAL SERVICES DAY CARE,Adult Social Care & Health,Homecare - new framework,A56127,0
Royal Borough of Kingston,18/12/2023,90296079,567.24,ALPENBEST LTD,SOCIAL SERVICES DAY CARE,Adult Social Care & Health,Homecare - new framework,A56127,0
Royal Borough of Kingston,18/12/2023,90296090,639.27,ALPENBEST LTD,SOCIAL SERVICES DAY CARE,Adult Social Care & Health,Homecare - new framework,A56127,0
Royal Borough of Kingston,18/12/2023,90296092,567.24,ALPENBEST LTD,SOCIAL SERVICES DAY CARE,Adult Social Care & Health,Homecare - new framework,A56127,0
Royal Borough of Kingston,18/12/2023,90296212,513.22,ALPENBEST LTD,SOCIAL SERVICES DAY CARE,Adult Social Care & Health,Homecare - new framework,A56127,0
Royal Borough of Kingston,18/12/2023,90296230,630.27,ALPENBEST LTD,SOCIAL SERVICES DAY CARE,Adult Social Care & Health,Homecare - new framework,A56127,0
Royal Borough of Kingston,18/12/2023,90296268,765.33,ALPENBEST LTD,SOCIAL SERVICES DAY CARE,Adult Social Care & Health,Homecare - new framework,A56127,0
Royal Borough of Kingston,18/12/2023,90296286,630.27,ALPENBEST LTD,SOCIAL SERVICES DAY CARE,Adult Social Care & Health,Homecare - new framework,A56127,0
Royal Borough of Kingston,18/12/2023,90296330,504.21,ALPENBEST LTD,SOCIAL SERVICES DAY CARE,Adult Social Care & Health,Homecare - new framework,A56127,0
Royal Borough of Kingston,18/12/2023,90296360,630.27,ALPENBEST LTD,SOCIAL SERVICES DAY CARE,Adult Social Care & Health,Homecare - new framework,A56127,0
Royal Borough of Kingston,18/12/2023,90296375,648.28,ALPENBEST LTD,SOCIAL SERVICES DAY CARE,Adult Social Care & Health,Homecare - new framework,A56127,0
Royal Borough of Kingston,18/12/2023,90296405,567.24,ALPENBEST LTD,SOCIAL SERVICES DAY CARE,Adult Social Care & Health,Homecare - Framework - double-handed,A56131,0
Royal Borough of Kingston,18/12/2023,90296405,567.24,ALPENBEST LTD,SOCIAL SERVICES DAY CARE,Adult Social Care & Health,Homecare - Framework - double-handed,A56131,0
Royal Borough of Kingston,18/12/2023,90296409,648.28,ALPENBEST LTD,SOCIAL SERVICES DAY CARE,Adult Social Care & Health,Homecare - Framework - double-handed,A56131,0
Royal Borough of Kingston,18/12/2023,90296409,648.28,ALPENBEST LTD,SOCIAL SERVICES DAY CARE,Adult Social Care & Health,Homecare - Framework - double-handed,A56131,0
Royal Borough of Kingston,18/12/2023,90296559,567.24,ALPENBEST LTD,SOCIAL SERVICES DAY CARE,Adult Social Care & Health,Homecare - Framework - D2A,A56133,0
Royal Borough of Kingston,18/12/2023,90296559,567.24,ALPENBEST LTD,SOCIAL SERVICES DAY CARE,Adult Social Care & Health,Homecare - Framework - D2A,A56133,0
Royal Borough of Kingston,18/12/2023,90296628,630.27,ALPENBEST LTD,SOCIAL SERVICES DAY CARE,Adult Social Care & Health,Personal Budget - Third Party,A61019,0
Royal Borough of Kingston,25/12/2023,90297768,567.24,ALPENBEST LTD,SOCIAL SERVICES DAY CARE,Adult Social Care & Health,Homecare - new framework,A56127,0
Royal Borough of Kingston,25/12/2023,90297771,576.24,ALPENBEST LTD,SOCIAL SERVICES DAY CARE,Adult Social Care & Health,Homecare - new framework,A56127,0
Royal Borough of Kingston,25/12/2023,90297799,630.27,ALPENBEST LTD,SOCIAL SERVICES DAY CARE,Adult Social Care & Health,Homecare - new framework,A56127,0
Royal Borough of Kingston,25/12/2023,90297907,567.24,ALPENBEST LTD,SOCIAL SERVICES DAY CARE,Adult Social Care & Health,Homecare - new framework,A56127,0
Royal Borough of Kingston,25/12/2023,90297913,819.35,ALPENBEST LTD,SOCIAL SERVICES DAY CARE,Adult Social Care & Health,Homecare - new framework,A56127,0
Royal Borough of Kingston,25/12/2023,90297951,630.27,ALPENBEST LTD,SOCIAL SERVICES DAY CARE,Adult Social Care & Health,Homecare - new framework,A56127,0
Royal Borough of Kingston,25/12/2023,90297953,567.24,ALPENBEST LTD,SOCIAL SERVICES DAY CARE,Adult Social Care & Health,Homecare - new framework,A56127,0
Royal Borough of Kingston,25/12/2023,90298070,513.22,ALPENBEST LTD,SOCIAL SERVICES DAY CARE,Adult Social Care & Health,Homecare - new framework,A56127,0
Royal Borough of Kingston,25/12/2023,90298088,630.27,ALPENBEST LTD,SOCIAL SERVICES DAY CARE,Adult Social Care & Health,Homecare - new framework,A56127,0
Royal Borough of Kingston,25/12/2023,90298138,630.27,ALPENBEST LTD,SOCIAL SERVICES DAY CARE,Adult Social Care & Health,Homecare - new framework,A56127,0
Royal Borough of Kingston,25/12/2023,90298176,504.21,ALPENBEST LTD,SOCIAL SERVICES DAY CARE,Adult Social Care & Health,Homecare - new framework,A56127,0
Royal Borough of Kingston,25/12/2023,90298221,630.27,ALPENBEST LTD,SOCIAL SERVICES DAY CARE,Adult Social Care & Health,Homecare - new framework,A56127,0
Royal Borough of Kingston,25/12/2023,90298233,648.28,ALPENBEST LTD,SOCIAL SERVICES DAY CARE,Adult Social Care & Health,Homecare - new framework,A56127,0
Royal Borough of Kingston,25/12/2023,90298266,567.24,ALPENBEST LTD,SOCIAL SERVICES DAY CARE,Adult Social Care & Health,Homecare - Framework - double-handed,A56131,0
Royal Borough of Kingston,25/12/2023,90298266,567.24,ALPENBEST LTD,SOCIAL SERVICES DAY CARE,Adult Social Care & Health,Homecare - Framework - double-handed,A56131,0
Royal Borough of Kingston,25/12/2023,90298269,756.32,ALPENBEST LTD,SOCIAL SERVICES DAY CARE,Adult Social Care & Health,Homecare - Framework - double-handed,A56131,0
Royal Borough of Kingston,25/12/2023,90298269,756.32,ALPENBEST LTD,SOCIAL SERVICES DAY CARE,Adult Social Care & Health,Homecare - Framework - double-handed,A56131,0
Royal Borough of Kingston,25/12/2023,90298761,630.27,ALPENBEST LTD,SOCIAL SERVICES DAY CARE,Adult Social Care & Health,Personal Budget - Third Party,A61019,0
Royal Borough of Kingston,01/01/2024,90299075,630.27,ALPENBEST LTD,SOCIAL SERVICES DAY CARE,Adult Social Care & Health,Homecare - new framework,A56127,0
Royal Borough of Kingston,01/01/2024,90299078,576.24,ALPENBEST LTD,SOCIAL SERVICES DAY CARE,Adult Social Care & Health,Homecare - new framework,A56127,0
Royal Borough of Kingston,01/01/2024,90299105,630.27,ALPENBEST LTD,SOCIAL SERVICES DAY CARE,Adult Social Care & Health,Homecare - new framework,A56127,0
Royal Borough of Kingston,01/01/2024,90299210,567.24,ALPENBEST LTD,SOCIAL SERVICES DAY CARE,Adult Social Care & Health,Homecare - new framework,A56127,0
Royal Borough of Kingston,01/01/2024,90299216,819.35,ALPENBEST LTD,SOCIAL SERVICES DAY CARE,Adult Social Care & Health,Homecare - new framework,A56127,0
Royal Borough of Kingston,01/01/2024,90299245,567.24,ALPENBEST LTD,SOCIAL SERVICES DAY CARE,Adult Social Care & Health,Homecare - new framework,A56127,0
Royal Borough of Kingston,01/01/2024,90299253,630.27,ALPENBEST LTD,SOCIAL SERVICES DAY CARE,Adult Social Care & Health,Homecare - new framework,A56127,0
Royal Borough of Kingston,01/01/2024,90299255,567.24,ALPENBEST LTD,SOCIAL SERVICES DAY CARE,Adult Social Care & Health,Homecare - new framework,A56127,0
Royal Borough of Kingston,01/01/2024,90299364,513.22,ALPENBEST LTD,SOCIAL SERVICES DAY CARE,Adult Social Care & Health,Homecare - new framework,A56127,0
Royal Borough of Kingston,01/01/2024,90299390,630.27,ALPENBEST LTD,SOCIAL SERVICES DAY CARE,Adult Social Care & Health,Homecare - new framework,A56127,0
Royal Borough of Kingston,01/01/2024,90299412,621.26,ALPENBEST LTD,SOCIAL SERVICES DAY CARE,Adult Social Care & Health,Homecare - new framework,A56127,0
Royal Borough of Kingston,01/01/2024,90299429,747.32,ALPENBEST LTD,SOCIAL SERVICES DAY CARE,Adult Social Care & Health,Homecare - new framework,A56127,0
Royal Borough of Kingston,01/01/2024,90299447,630.27,ALPENBEST LTD,SOCIAL SERVICES DAY CARE,Adult Social Care & Health,Homecare - new framework,A56127,0
Royal Borough of Kingston,01/01/2024,90299486,504.21,ALPENBEST LTD,SOCIAL SERVICES DAY CARE,Adult Social Care & Health,Homecare - new framework,A56127,0
Royal Borough of Kingston,01/01/2024,90299513,630.27,ALPENBEST LTD,SOCIAL SERVICES DAY CARE,Adult Social Care & Health,Homecare - new framework,A56127,0
Royal Borough of Kingston,01/01/2024,90299559,567.24,ALPENBEST LTD,SOCIAL SERVICES DAY CARE,Adult Social Care & Health,Homecare - Framework - double-handed,A56131,0
Royal Borough of Kingston,01/01/2024,90299559,567.24,ALPENBEST LTD,SOCIAL SERVICES DAY CARE,Adult Social Care & Health,Homecare - Framework - double-handed,A56131,0
Royal Borough of Kingston,01/01/2024,90299563,756.32,ALPENBEST LTD,SOCIAL SERVICES DAY CARE,Adult Social Care & Health,Homecare - Framework - double-handed,A56131,0
Royal Borough of Kingston,01/01/2024,90299563,756.32,ALPENBEST LTD,SOCIAL SERVICES DAY CARE,Adult Social Care & Health,Homecare - Framework - double-handed,A56131,0
Royal Borough of Kingston,01/01/2024,90299802,630.27,ALPENBEST LTD,SOCIAL SERVICES DAY CARE,Adult Social Care & Health,Personal Budget - Third Party,A61019,0
Royal Borough of Kingston,08/01/2024,90302421,567.24,ALPENBEST LTD,SOCIAL SERVICES DAY CARE,Adult Social Care & Health,Homecare - new framework,A56127,0
Royal Borough of Kingston,08/01/2024,90302424,576.24,ALPENBEST LTD,SOCIAL SERVICES DAY CARE,Adult Social Care & Health,Homecare - new framework,A56127,0
Royal Borough of Kingston,08/01/2024,90302451,630.27,ALPENBEST LTD,SOCIAL SERVICES DAY CARE,Adult Social Care & Health,Homecare - new framework,A56127,0
Royal Borough of Kingston,08/01/2024,90302556,576.24,ALPENBEST LTD,SOCIAL SERVICES DAY CARE,Adult Social Care & Health,Homecare - new framework,A56127,0
Royal Borough of Kingston,08/01/2024,90302563,819.35,ALPENBEST LTD,SOCIAL SERVICES DAY CARE,Adult Social Care & Health,Homecare - new framework,A56127,0
Royal Borough of Kingston,08/01/2024,90302599,630.27,ALPENBEST LTD,SOCIAL SERVICES DAY CARE,Adult Social Care & Health,Homecare - new framework,A56127,0
Royal Borough of Kingston,08/01/2024,90302601,567.24,ALPENBEST LTD,SOCIAL SERVICES DAY CARE,Adult Social Care & Health,Homecare - new framework,A56127,0
Royal Borough of Kingston,08/01/2024,90302670,567.24,ALPENBEST LTD,SOCIAL SERVICES DAY CARE,Adult Social Care & Health,Homecare - new framework,A56127,0
Royal Borough of Kingston,08/01/2024,90302707,513.22,ALPENBEST LTD,SOCIAL SERVICES DAY CARE,Adult Social Care & Health,Homecare - new framework,A56127,0
Royal Borough of Kingston,08/01/2024,90302725,630.27,ALPENBEST LTD,SOCIAL SERVICES DAY CARE,Adult Social Care & Health,Homecare - new framework,A56127,0
Royal Borough of Kingston,08/01/2024,90302747,621.26,ALPENBEST LTD,SOCIAL SERVICES DAY CARE,Adult Social Care & Health,Homecare - new framework,A56127,0
Royal Borough of Kingston,08/01/2024,90302759,711.30,ALPENBEST LTD,SOCIAL SERVICES DAY CARE,Adult Social Care & Health,Homecare - new framework,A56127,0
Royal Borough of Kingston,08/01/2024,90302777,630.27,ALPENBEST LTD,SOCIAL SERVICES DAY CARE,Adult Social Care & Health,Homecare - new framework,A56127,0
Royal Borough of Kingston,08/01/2024,90302843,630.27,ALPENBEST LTD,SOCIAL SERVICES DAY CARE,Adult Social Care & Health,Homecare - new framework,A56127,0
Royal Borough of Kingston,08/01/2024,90302884,567.24,ALPENBEST LTD,SOCIAL SERVICES DAY CARE,Adult Social Care & Health,Homecare - Framework - double-handed,A56131,0
Royal Borough of Kingston,08/01/2024,90302884,567.24,ALPENBEST LTD,SOCIAL SERVICES DAY CARE,Adult Social Care & Health,Homecare - Framework - double-handed,A56131,0
Royal Borough of Kingston,08/01/2024,90302891,756.32,ALPENBEST LTD,SOCIAL SERVICES DAY CARE,Adult Social Care & Health,Homecare - Framework - double-handed,A56131,0
Royal Borough of Kingston,08/01/2024,90302891,756.32,ALPENBEST LTD,SOCIAL SERVICES DAY CARE,Adult Social Care & Health,Homecare - Framework - double-handed,A56131,0
Royal Borough of Kingston,08/01/2024,90302993,567.24,ALPENBEST LTD,SOCIAL SERVICES DAY CARE,Adult Social Care & Health,Homecare - Framework - D2A,A56133,0
Royal Borough of Kingston,08/01/2024,90302993,567.24,ALPENBEST LTD,SOCIAL SERVICES DAY CARE,Adult Social Care & Health,Homecare - Framework - D2A,A56133,0
Royal Borough of Kingston,08/01/2024,90303013,963.78,ALPENBEST LTD,SOCIAL SERVICES DAY CARE,Adult Social Care & Health,Homecare - Framework - D2A,A56133,0
Royal Borough of Kingston,08/01/2024,90303013,963.78,ALPENBEST LTD,SOCIAL SERVICES DAY CARE,Adult Social Care & Health,Homecare - Framework - D2A,A56133,0
Royal Borough of Kingston,08/01/2024,90303052,630.27,ALPENBEST LTD,SOCIAL SERVICES DAY CARE,Adult Social Care & Health,Personal Budget - Third Party,A61019,0
Royal Borough of Kingston,02/01/2024,90295489,500.00,REDACTED - PERSONAL DATA,CHARITIES & VOLUNTARY ORGNS,Adult Social Care & Health,"Grants, Contributions & Donations",A47005,0
Royal Borough of Kingston,28/12/2023,70061454,"27,563.50",Amazon Web Services EMEA SARL,IT EQUIPMENT MAINTENANCE,Corporate & Communities,IT Hardware Maintenance,A45008,0
Royal Borough of Kingston,26/01/2024,90301915,"1,136.00",REDACTED - PERSONAL DATA,PLS LANDLORDS,Place,PSL Payments To Landlords,A22031,0
Royal Borough of Kingston,31/12/2023,70061444,"3,077.86",ANA TREATMENT CENTRES LTD,SOCIAL SERVICES RESIDENTIAL,Adult Social Care & Health,Independent Placements,A56006,0
Royal Borough of Kingston,31/12/2023,70061446,"1,588.57",ANA TREATMENT CENTRES LTD,SOCIAL SERVICES RESIDENTIAL,Adult Social Care & Health,Independent Placements,A56006,0
Royal Borough of Kingston,31/12/2023,70061452,"3,077.86",ANA TREATMENT CENTRES LTD,SOCIAL SERVICES RESIDENTIAL,Adult Social Care & Health,Independent Placements,A56006,0
Royal Borough of Kingston,26/01/2024,90302254,"1,383.33",REDACTED - PERSONAL DATA,PLS LANDLORDS,Place,PSL Payments To Landlords,A22031,0
Royal Borough of Kingston,26/01/2024,90302233,"1,458.33",REDACTED - PERSONAL DATA,PLS LANDLORDS,Place,PSL Payments To Landlords,A22031,0
Royal Borough of Kingston,26/01/2024,90302156,"1,094.00",REDACTED - PERSONAL DATA,PLS LANDLORDS,Place,PSL Payments To Landlords,A22031,0
Royal Borough of Kingston,18/11/2023,70061344,"1,949.41",ANGLIAN WATER BUSINESS NATIONAL LTD,UTILITIES,Housing Revenue Account,Water Services,A24005,0
Royal Borough of Kingston,18/11/2023,70061345,"7,946.91",ANGLIAN WATER BUSINESS NATIONAL LTD,UTILITIES,Place,Water Services,A24005,0
Royal Borough of Kingston,18/12/2023,70062303,"1,226.99",ANGLIAN WATER BUSINESS NATIONAL LTD,UTILITIES,Housing Revenue Account,Water Services,A24005,0
Royal Borough of Kingston,18/12/2023,70062304,"7,772.42",ANGLIAN WATER BUSINESS NATIONAL LTD,UTILITIES,Corporate & Communities,Water Services,A24005,0
Royal Borough of Kingston,18/12/2023,70062305,709.09,ANGLIAN WATER BUSINESS NATIONAL LTD,UTILITIES,Housing Revenue Account,Water Services,A24005,0
Royal Borough of Kingston,18/12/2023,70062305,373.00,ANGLIAN WATER BUSINESS NATIONAL LTD,UTILITIES,Housing Revenue Account,Water Services,A24005,0
Royal Borough of Kingston,18/12/2023,70062307,980.46,ANGLIAN WATER BUSINESS NATIONAL LTD,UTILITIES,Adult Social Care & Health,Water Services,A24005,0
Royal Borough of Kingston,18/12/2023,70062309,"7,303.33",ANGLIAN WATER BUSINESS NATIONAL LTD,UTILITIES,Place,Water Services,A24005,0
Royal Borough of Kingston,26/01/2024,90301940,"1,094.00",REDACTED - PERSONAL DATA,PLS LANDLORDS,Place,PSL Payments To Landlords,A22031,0
Royal Borough of Kingston,26/01/2024,90302275,"1,047.00",REDACTED - PERSONAL DATA,PLS LANDLORDS,Place,PSL Payments To Landlords,A22031,0
Royal Borough of Kingston,31/12/2023,70062483,"2,789.69",AON UK LTD,FINANCIAL / INSURANCE INSTNS,Housing Revenue Account,General Insurance (Excl Premises & Transport),A44260,0
Royal Borough of Kingston,03/01/2024,70061513,"1,600.00",AP RENTAL INC LTD,LANDLORDS,Adult Social Care & Health,Housing Benefit - Rent Allowances -Private Tenants Only,A62009,0
Royal Borough of Kingston,03/01/2024,70061514,"1,600.00",AP RENTAL INC LTD,LANDLORDS,Adult Social Care & Health,Housing Benefit - Rent Allowances -Private Tenants Only,A62009,0
Royal Borough of Kingston,03/01/2024,70061516,"1,300.00",AP RENTAL INC LTD,LANDLORDS,Adult Social Care & Health,Housing Benefit - Rent Allowances -Private Tenants Only,A62009,0
Royal Borough of Kingston,03/01/2024,70061517,"1,500.00",AP RENTAL INC LTD,LANDLORDS,Adult Social Care & Health,Housing Benefit - Rent Allowances -Private Tenants Only,A62009,0
Royal Borough of Kingston,03/01/2024,70061518,"1,400.00",AP RENTAL INC LTD,LANDLORDS,Adult Social Care & Health,Housing Benefit - Rent Allowances -Private Tenants Only,A62009,0
Royal Borough of Kingston,03/01/2024,70061519,"1,600.00",AP RENTAL INC LTD,LANDLORDS,Adult Social Care & Health,Housing Benefit - Rent Allowances -Private Tenants Only,A62009,0
Royal Borough of Kingston,03/01/2024,70061520,"1,600.00",AP RENTAL INC LTD,LANDLORDS,Adult Social Care & Health,Housing Benefit - Rent Allowances -Private Tenants Only,A62009,0
Royal Borough of Kingston,31/12/2023,70062124,"2,635.00",APEX HOUSING SOLUTIONS LTD,ACCOMMODATION BED & BREAKFAST,Place,Bed & Breakfast,A56000,0
Royal Borough of Kingston,31/12/2023,70062125,"1,546.90",APEX HOUSING SOLUTIONS LTD,ACCOMMODATION BED & BREAKFAST,Place,Bed & Breakfast,A56000,0
Royal Borough of Kingston,31/12/2023,70062126,"1,785.00",APEX HOUSING SOLUTIONS LTD,ACCOMMODATION BED & BREAKFAST,Place,Bed & Breakfast,A56000,0
Royal Borough of Kingston,31/12/2023,70062127,"1,364.00",APEX HOUSING SOLUTIONS LTD,ACCOMMODATION BED & BREAKFAST,Place,Bed & Breakfast,A56000,0
Royal Borough of Kingston,31/12/2023,70062128,"2,635.00",APEX HOUSING SOLUTIONS LTD,ACCOMMODATION BED & BREAKFAST,Place,Bed & Breakfast,A56000,0
Royal Borough of Kingston,31/12/2023,70062130,"1,705.00",APEX HOUSING SOLUTIONS LTD,ACCOMMODATION BED & BREAKFAST,Place,Bed & Breakfast,A56000,0
Royal Borough of Kingston,31/12/2023,70062131,"2,635.00",APEX HOUSING SOLUTIONS LTD,ACCOMMODATION BED & BREAKFAST,Place,Bed & Breakfast,A56000,0
Royal Borough of Kingston,31/12/2023,70062132,"1,798.00",APEX HOUSING SOLUTIONS LTD,ACCOMMODATION BED & BREAKFAST,Place,Bed & Breakfast,A56000,0
Royal Borough of Kingston,31/12/2023,70062133,"2,635.00",APEX HOUSING SOLUTIONS LTD,ACCOMMODATION BED & BREAKFAST,Place,Bed & Breakfast,A56000,0
Royal Borough of Kingston,31/12/2023,70062134,"3,255.00",APEX HOUSING SOLUTIONS LTD,ACCOMMODATION BED & BREAKFAST,Place,Bed & Breakfast,A56000,0
Royal Borough of Kingston,31/12/2023,70062135,"3,100.00",APEX HOUSING SOLUTIONS LTD,ACCOMMODATION BED & BREAKFAST,Place,Bed & Breakfast,A56000,0
Royal Borough of Kingston,31/07/2023,70062136,"1,705.00",APEX HOUSING SOLUTIONS LTD,ACCOMMODATION BED & BREAKFAST,Place,Bed & Breakfast,A56000,0
Royal Borough of Kingston,31/12/2023,70062137,"1,798.00",APEX HOUSING SOLUTIONS LTD,ACCOMMODATION BED & BREAKFAST,Place,Bed & Breakfast,A56000,0
Royal Borough of Kingston,31/12/2023,70062138,"1,670.90",APEX HOUSING SOLUTIONS LTD,ACCOMMODATION BED & BREAKFAST,Place,Bed & Breakfast,A56000,0
Royal Borough of Kingston,31/12/2023,70062139,"2,790.00",APEX HOUSING SOLUTIONS LTD,ACCOMMODATION BED & BREAKFAST,Place,Bed & Breakfast,A56000,0
Royal Borough of Kingston,31/12/2023,70062140,"1,546.90",APEX HOUSING SOLUTIONS LTD,ACCOMMODATION BED & BREAKFAST,Place,Bed & Breakfast,A56000,0
Royal Borough of Kingston,31/12/2023,70062141,"1,240.00",APEX HOUSING SOLUTIONS LTD,ACCOMMODATION BED & BREAKFAST,Place,Bed & Breakfast,A56000,0
Royal Borough of Kingston,31/12/2023,70062142,"2,790.00",APEX HOUSING SOLUTIONS LTD,ACCOMMODATION BED & BREAKFAST,Place,Bed & Breakfast,A56000,0
Royal Borough of Kingston,31/12/2023,70062143,"2,635.00",APEX HOUSING SOLUTIONS LTD,ACCOMMODATION BED & BREAKFAST,Place,Bed & Breakfast,A56000,0
Royal Borough of Kingston,31/12/2023,70062144,"2,635.00",APEX HOUSING SOLUTIONS LTD,ACCOMMODATION BED & BREAKFAST,Place,Bed & Breakfast,A56000,0
Royal Borough of Kingston,31/12/2023,70062145,"1,670.90",APEX HOUSING SOLUTIONS LTD,ACCOMMODATION BED & BREAKFAST,Place,Bed & Breakfast,A56000,0
Royal Borough of Kingston,30/09/2023,70062146,"2,280.00",APEX HOUSING SOLUTIONS LTD,ACCOMMODATION BED & BREAKFAST,Place,Bed & Breakfast,A56000,0
Royal Borough of Kingston,31/12/2023,70062147,"2,635.00",APEX HOUSING SOLUTIONS LTD,ACCOMMODATION BED & BREAKFAST,Place,Bed & Breakfast,A56000,0
Royal Borough of Kingston,31/12/2023,70062148,"2,790.00",APEX HOUSING SOLUTIONS LTD,ACCOMMODATION BED & BREAKFAST,Place,Bed & Breakfast,A56000,0
Royal Borough of Kingston,31/12/2023,70062149,"2,635.00",APEX HOUSING SOLUTIONS LTD,ACCOMMODATION BED & BREAKFAST,Place,Bed & Breakfast,A56000,0
Royal Borough of Kingston,02/01/2024,70062104,"47,628.00",Aquamaintain Ltd,AGRICULTURAL & ESTATE SERVICES,Corporate & Communities,Infrastructure Assets - Purchase & Enhancement,C12001,0
Royal Borough of Kingston,30/12/2023,70061421,"5,756.00",AQUASITION (UK) LIMITED,LEGAL & PROFESSIONAL SERVICES,Corporate & Communities,Land Drainage,A56040,0
Royal Borough of Kingston,01/01/2024,90299961,"3,475.45",Aria Healthcare Group Ltd,SOCIAL SERVICES-HOME CARE,Adult Social Care & Health,Independent Placements,A56006,0
Royal Borough of Kingston,01/01/2024,90299980,"3,891.87",Aria Healthcare Group Ltd,SOCIAL SERVICES-HOME CARE,Adult Social Care & Health,Independent Placements,A56006,0
Royal Borough of Kingston,02/01/2024,90295491,500.00,REDACTED - PERSONAL DATA,CHARITIES & VOLUNTARY ORGNS,Adult Social Care & Health,"Grants, Contributions & Donations",A47005,0
Royal Borough of Kingston,01/01/2024,90300697,"10,354.00",ASHCROFT CARE SERVICES LIMITED,SOCIAL SERVICES RESIDENTIAL,Adult Social Care & Health,Independent Placements,A56006,0
Royal Borough of Kingston,01/01/2024,90301637,-534.97,ASHCROFT CARE SERVICES LIMITED,SOCIAL SERVICES RESIDENTIAL,Adult Social Care & Health,Financially Assessed Contributions clients � Non VAT,A92047,0
Royal Borough of Kingston,01/01/2024,90301450,"1,000.06",ASHINGTON HOUSE LTD,SOCIAL SERVICES RESIDENTIAL,Adult Social Care & Health,Personal Budget - Third Party,A61019,0
Royal Borough of Kingston,15/12/2023,70061129,"7,693.70",ASHPRI LIMITED,SOCIAL SERVICES - OTHER,Adult Social Care & Health,Other Private Contractors - Third Party,A56080,0
Royal Borough of Kingston,01/01/2024,90301372,"1,456.11",ASHPRIME PROPERTIES LTD,SOCIAL SERVICES RESIDENTIAL,Adult Social Care & Health,Personal Budget - Third Party,A61019,0
Royal Borough of Kingston,26/01/2024,90302162,"1,595.92",REDACTED - PERSONAL DATA,PLS LANDLORDS,Place,PSL Payments To Landlords,A22031,0
Royal Borough of Kingston,18/12/2023,70061370,11.56,ASKEWS AND HOLTS LIBRARY SERVICES LTD,BOOKS PUBLICATIONS STATIONERY,Corporate & Communities,Books,A43050,0
Royal Borough of Kingston,18/12/2023,70061370,140.70,ASKEWS AND HOLTS LIBRARY SERVICES LTD,BOOKS PUBLICATIONS STATIONERY,Corporate & Communities,Books,A43050,0
Royal Borough of Kingston,18/12/2023,70061370,164.60,ASKEWS AND HOLTS LIBRARY SERVICES LTD,BOOKS PUBLICATIONS STATIONERY,Corporate & Communities,Books,A43050,0
Royal Borough of Kingston,18/12/2023,70061370,205.43,ASKEWS AND HOLTS LIBRARY SERVICES LTD,BOOKS PUBLICATIONS STATIONERY,Corporate & Communities,Books,A43050,0
Royal Borough of Kingston,18/12/2023,70061370,101.05,ASKEWS AND HOLTS LIBRARY SERVICES LTD,BOOKS PUBLICATIONS STATIONERY,Corporate & Communities,Books,A43050,0
Royal Borough of Kingston,01/01/2024,90301415,"2,788.27",Aspirations Care Ltd,SOCIAL SERVICES - OTHER,Adult Social Care & Health,Personal Budget - Third Party,A61019,0
Royal Borough of Kingston,01/01/2024,90300299,"4,098.20",ASPREY HEALTHCARE LTD,SOCIAL SERVICES RESIDENTIAL,Adult Social Care & Health,Independent Placements,A56006,0
Royal Borough of Kingston,12/12/2023,70061080,"1,350.00",ASSOCIATION OF ELECTORAL ADMINISTRATORS,CONFERENCES,Corporate & Communities,Staff Development And Training,A15022,0
Royal Borough of Kingston,01/01/2024,90299987,"4,852.08",ASTORIA HEALTHCARE LTD,SOCIAL SERVICES RESIDENTIAL,Adult Social Care & Health,Independent Placements,A56006,0
Royal Borough of Kingston,26/01/2024,90302100,"1,094.34",AUMKARA INVESTMENTS LTD,PLS LANDLORDS,Place,PSL Payments To Landlords,A22031,0
Royal Borough of Kingston,26/01/2024,90302101,"1,094.34",AUMKARA INVESTMENTS LTD,PLS LANDLORDS,Place,PSL Payments To Landlords,A22031,0
Royal Borough of Kingston,26/01/2024,90302102,"1,094.34",AUMKARA INVESTMENTS LTD,PLS LANDLORDS,Place,PSL Payments To Landlords,A22031,0
Royal Borough of Kingston,01/01/2024,90300434,"11,912.28",AUTISM CONSULTANTS LTD,SOCIAL SERVICES RESIDENTIAL,Adult Social Care & Health,Independent Placements,A56006,0
Royal Borough of Kingston,11/12/2023,70061118,"1,232.65",AVICENNA PSYCHIATRY,SOCIAL SERVICES - OTHER,Adult Social Care & Health,Other Private Contractors - Third Party,A56080,0
Royal Borough of Kingston,03/12/2023,70061120,"1,238.05",AVICENNA PSYCHIATRY,SOCIAL SERVICES - OTHER,Adult Social Care & Health,Other Private Contractors - Third Party,A56080,0
Royal Borough of Kingston,22/12/2023,70062368,887.10,AVICENNA PSYCHIATRY,SOCIAL SERVICES - OTHER,Adult Social Care & Health,Other Private Contractors - Third Party,A56080,0
Royal Borough of Kingston,11/01/2024,70062772,"1,411.90",AVICENNA PSYCHIATRY,SOCIAL SERVICES - OTHER,Adult Social Care & Health,Other Private Contractors - Third Party,A56080,0
Royal Borough of Kingston,28/11/2023,70059496,"26,998.66",AXIS EUROPE PLC,CONSTRUCTION INDUSTRY,Housing Revenue Account,Council Dwellings - Construction & Renovation,C10002,0
Royal Borough of Kingston,31/12/2023,70061354,"18,242.71",AXIS EUROPE PLC,CONSTRUCTION INDUSTRY,Housing Revenue Account,Council Dwellings - Construction & Renovation,C10002,0
Royal Borough of Kingston,31/12/2023,70061355,"2,918.53",AXIS EUROPE PLC,CONSTRUCTION INDUSTRY,Housing Revenue Account,Council Dwellings - Construction & Renovation,C10002,0
Royal Borough of Kingston,31/12/2023,70061356,"2,380.95",AXIS EUROPE PLC,CONSTRUCTION INDUSTRY,Housing Revenue Account,Disabled Adaptations,C20003,0
Royal Borough of Kingston,31/12/2023,70061357,"1,131.53",AXIS EUROPE PLC,CONSTRUCTION INDUSTRY,Place,Payments to Voluntary Organisations,A54005,0
Royal Borough of Kingston,31/12/2023,70061358,456.85,AXIS EUROPE PLC,CONSTRUCTION INDUSTRY,Place,Payments to Voluntary Organisations,A54005,0
Royal Borough of Kingston,31/12/2023,70061359,524.59,AXIS EUROPE PLC,CONSTRUCTION INDUSTRY,Housing Revenue Account,Asbestos Removal,C10000,0
Royal Borough of Kingston,31/12/2023,70061360,"4,238.93",AXIS EUROPE PLC,CONSTRUCTION INDUSTRY,Housing Revenue Account,Council Dwellings - Construction & Renovation,C10002,0
Royal Borough of Kingston,31/12/2023,70061361,"3,850.73",AXIS EUROPE PLC,CONSTRUCTION INDUSTRY,Housing Revenue Account,Council Dwellings - Construction & Renovation,C10002,0
Royal Borough of Kingston,31/12/2023,70061362,"2,596.41",AXIS EUROPE PLC,CONSTRUCTION INDUSTRY,Housing Revenue Account,Buildings - Project Management,C14003,0
Royal Borough of Kingston,31/12/2023,70061363,"14,927.14",AXIS EUROPE PLC,CONSTRUCTION INDUSTRY,Housing Revenue Account,Council Dwellings - Construction & Renovation,C10002,0
Royal Borough of Kingston,31/12/2023,70061364,"2,106.07",AXIS EUROPE PLC,CONSTRUCTION INDUSTRY,Housing Revenue Account,Council Dwellings - Construction & Renovation,C10002,0
Royal Borough of Kingston,31/12/2023,70061383,"4,993.19",AXIS EUROPE PLC,CONSTRUCTION INDUSTRY,Housing Revenue Account,Council Dwellings - Construction & Renovation,C10002,0
Royal Borough of Kingston,29/12/2023,70061408,"51,193.78",AXIS EUROPE PLC,CONSTRUCTION INDUSTRY,Housing Revenue Account,Electrical Repairs,A20002,0
Royal Borough of Kingston,29/12/2023,70061409,"26,989.66",AXIS EUROPE PLC,CONSTRUCTION INDUSTRY,Place,Void Property Repairs,A20036,0
Royal Borough of Kingston,29/12/2023,70061411,"250,104.77",AXIS EUROPE PLC,CONSTRUCTION INDUSTRY,Housing Revenue Account,Property Repairs & Maintenance & Alterations - Responsive,A20011,0
Royal Borough of Kingston,29/12/2023,70061412,"38,782.56",AXIS EUROPE PLC,CONSTRUCTION INDUSTRY,Housing Revenue Account,Void Property Repairs,A20036,0
Royal Borough of Kingston,29/12/2023,70061413,"122,773.10",AXIS EUROPE PLC,CONSTRUCTION INDUSTRY,Housing Revenue Account,Housing - Heating & Ventilation,A20045,0
Royal Borough of Kingston,16/10/2023,70061785,"1,225.11",AXIS EUROPE PLC,CONSTRUCTION INDUSTRY,Housing Revenue Account,Council Dwellings - Fire Safety,C10004,0
Royal Borough of Kingston,31/12/2023,70062018,982.02,AXIS EUROPE PLC,CONSTRUCTION INDUSTRY,Housing Revenue Account,Pest Control,A20024,0
Royal Borough of Kingston,08/01/2024,70062183,570.14,AXIS EUROPE PLC,CONSTRUCTION INDUSTRY,Adult Social Care & Health,Lift Servicing And Repairs,A20006,0
Royal Borough of Kingston,12/12/2023,70063042,"2,776.31",AXIS EUROPE PLC,CONSTRUCTION INDUSTRY,Housing Revenue Account,Council Dwellings - Construction & Renovation,C10002,0
Royal Borough of Kingston,12/12/2023,70063043,"2,525.92",AXIS EUROPE PLC,CONSTRUCTION INDUSTRY,Housing Revenue Account,Council Dwellings - Construction & Renovation,C10002,0
Royal Borough of Kingston,12/12/2023,70063044,"2,594.17",AXIS EUROPE PLC,CONSTRUCTION INDUSTRY,Housing Revenue Account,Council Dwellings - Construction & Renovation,C10002,0
Royal Borough of Kingston,12/12/2023,70063045,"3,980.77",AXIS EUROPE PLC,CONSTRUCTION INDUSTRY,Housing Revenue Account,Council Dwellings - Construction & Renovation,C10002,0
Royal Borough of Kingston,11/12/2023,70063220,"2,236.81",AXIS EUROPE PLC,CONSTRUCTION INDUSTRY,Housing Revenue Account,Disabled Adaptations,C20003,0
Royal Borough of Kingston,19/12/2023,70060910,"12,000.00",AYUP DIGITAL LIMITED,LEGAL & PROFESSIONAL SERVICES,Corporate & Communities,Intangible Assets - Purchase,C13000,0
Royal Borough of Kingston,26/01/2024,90302099,"1,314.00",REDACTED - PERSONAL DATA,PLS LANDLORDS,Place,PSL Payments To Landlords,A22031,0
Royal Borough of Kingston,26/01/2024,90302210,"1,094.00",REDACTED - PERSONAL DATA,PLS LANDLORDS,Place,PSL Payments To Landlords,A22031,0
Royal Borough of Kingston,26/01/2024,90301901,758.33,REDACTED - PERSONAL DATA,PLS LANDLORDS,Place,PSL Payments To Landlords,A22031,0
Royal Borough of Kingston,11/12/2023,90298979,630.60,BALANCE (SUPPORT) C.I.C,SOCIAL SERVICES - OTHER,Adult Social Care & Health,Supported Living - new framework,A56126,0
Royal Borough of Kingston,11/12/2023,90298980,504.48,BALANCE (SUPPORT) C.I.C,SOCIAL SERVICES - OTHER,Adult Social Care & Health,Supported Living - new framework,A56126,0
Royal Borough of Kingston,11/12/2023,90298982,840.80,BALANCE (SUPPORT) C.I.C,SOCIAL SERVICES - OTHER,Adult Social Care & Health,Supported Living - new framework,A56126,0
Royal Borough of Kingston,11/12/2023,90298984,"1,177.12",BALANCE (SUPPORT) C.I.C,SOCIAL SERVICES - OTHER,Adult Social Care & Health,Supported Living - new framework,A56126,0
Royal Borough of Kingston,11/12/2023,90298985,840.80,BALANCE (SUPPORT) C.I.C,SOCIAL SERVICES - OTHER,Adult Social Care & Health,Supported Living - new framework,A56126,0
Royal Borough of Kingston,11/12/2023,90298986,588.56,BALANCE (SUPPORT) C.I.C,SOCIAL SERVICES - OTHER,Adult Social Care & Health,Supported Living - new framework,A56126,0
Royal Borough of Kingston,11/12/2023,90298988,924.88,BALANCE (SUPPORT) C.I.C,SOCIAL SERVICES - OTHER,Adult Social Care & Health,Supported Living - new framework,A56126,0
Royal Borough of Kingston,11/12/2023,90298989,"1,135.08",BALANCE (SUPPORT) C.I.C,SOCIAL SERVICES - OTHER,Adult Social Care & Health,Supported Living - new framework,A56126,0
Royal Borough of Kingston,11/12/2023,90298990,504.48,BALANCE (SUPPORT) C.I.C,SOCIAL SERVICES - OTHER,Adult Social Care & Health,Supported Living - new framework,A56126,0
Royal Borough of Kingston,11/12/2023,90298994,"1,261.20",BALANCE (SUPPORT) C.I.C,SOCIAL SERVICES - OTHER,Adult Social Care & Health,Supported Living - new framework,A56126,0
Royal Borough of Kingston,11/12/2023,90298995,"1,933.84",BALANCE (SUPPORT) C.I.C,SOCIAL SERVICES - OTHER,Adult Social Care & Health,Supported Living - new framework,A56126,0
Royal Borough of Kingston,11/12/2023,90298996,672.64,BALANCE (SUPPORT) C.I.C,SOCIAL SERVICES - OTHER,Adult Social Care & Health,Supported Living - new framework,A56126,0
Royal Borough of Kingston,11/12/2023,90299000,504.48,BALANCE (SUPPORT) C.I.C,SOCIAL SERVICES - OTHER,Adult Social Care & Health,Supported Living - new framework,A56126,0
Royal Borough of Kingston,11/12/2023,90299001,504.48,BALANCE (SUPPORT) C.I.C,SOCIAL SERVICES - OTHER,Adult Social Care & Health,Supported Living - new framework,A56126,0
Royal Borough of Kingston,11/12/2023,90299003,"1,345.28",BALANCE (SUPPORT) C.I.C,SOCIAL SERVICES - OTHER,Adult Social Care & Health,Supported Living - new framework,A56126,0
Royal Borough of Kingston,11/12/2023,90299006,588.56,BALANCE (SUPPORT) C.I.C,SOCIAL SERVICES - OTHER,Adult Social Care & Health,Supported Living - new framework,A56126,0
Royal Borough of Kingston,11/12/2023,90299007,672.64,BALANCE (SUPPORT) C.I.C,SOCIAL SERVICES - OTHER,Adult Social Care & Health,Supported Living - new framework,A56126,0
Royal Borough of Kingston,11/12/2023,90299008,"1,429.36",BALANCE (SUPPORT) C.I.C,SOCIAL SERVICES - OTHER,Adult Social Care & Health,Supported Living - new framework,A56126,0
Royal Borough of Kingston,11/12/2023,90299009,"1,261.20",BALANCE (SUPPORT) C.I.C,SOCIAL SERVICES - OTHER,Adult Social Care & Health,Supported Living - new framework,A56126,0
Royal Borough of Kingston,11/12/2023,90299010,756.72,BALANCE (SUPPORT) C.I.C,SOCIAL SERVICES - OTHER,Adult Social Care & Health,Supported Living - new framework,A56126,0
Royal Borough of Kingston,11/12/2023,90299012,504.48,BALANCE (SUPPORT) C.I.C,SOCIAL SERVICES - OTHER,Adult Social Care & Health,Supported Living - new framework,A56126,0
Royal Borough of Kingston,11/12/2023,90299013,504.48,BALANCE (SUPPORT) C.I.C,SOCIAL SERVICES - OTHER,Adult Social Care & Health,Supported Living - new framework,A56126,0
Royal Borough of Kingston,11/12/2023,90299019,-840.80,BALANCE (SUPPORT) C.I.C,SOCIAL SERVICES - OTHER,Adult Social Care & Health,Supported Living - new framework,A56126,0
Royal Borough of Kingston,11/12/2023,90299020,756.72,BALANCE (SUPPORT) C.I.C,SOCIAL SERVICES - OTHER,Adult Social Care & Health,Supported Living - new framework,A56126,0
Royal Borough of Kingston,11/12/2023,90299024,672.64,BALANCE (SUPPORT) C.I.C,SOCIAL SERVICES - OTHER,Adult Social Care & Health,Supported Living - new framework,A56126,0
Royal Borough of Kingston,11/12/2023,90299025,"1,429.36",BALANCE (SUPPORT) C.I.C,SOCIAL SERVICES - OTHER,Adult Social Care & Health,Supported Living - new framework,A56126,0
Royal Borough of Kingston,11/12/2023,90299026,504.48,BALANCE (SUPPORT) C.I.C,SOCIAL SERVICES - OTHER,Adult Social Care & Health,Supported Living - new framework,A56126,0
Royal Borough of Kingston,11/12/2023,90299029,672.64,BALANCE (SUPPORT) C.I.C,SOCIAL SERVICES - OTHER,Adult Social Care & Health,Supported Living - new framework,A56126,0
Royal Borough of Kingston,11/12/2023,90299030,504.48,BALANCE (SUPPORT) C.I.C,SOCIAL SERVICES - OTHER,Adult Social Care & Health,Supported Living - new framework,A56126,0
Royal Borough of Kingston,11/12/2023,90299031,"1,177.12",BALANCE (SUPPORT) C.I.C,SOCIAL SERVICES - OTHER,Adult Social Care & Health,Supported Living - new framework,A56126,0
Royal Borough of Kingston,11/12/2023,90299032,504.48,BALANCE (SUPPORT) C.I.C,SOCIAL SERVICES - OTHER,Adult Social Care & Health,Supported Living - new framework,A56126,0
Royal Borough of Kingston,11/12/2023,90299034,"1,513.44",BALANCE (SUPPORT) C.I.C,SOCIAL SERVICES - OTHER,Adult Social Care & Health,Supported Living - new framework,A56126,0
Royal Borough of Kingston,11/12/2023,90299036,672.64,BALANCE (SUPPORT) C.I.C,SOCIAL SERVICES - OTHER,Adult Social Care & Health,Supported Living - new framework,A56126,0
Royal Borough of Kingston,11/12/2023,90299037,"1,681.60",BALANCE (SUPPORT) C.I.C,SOCIAL SERVICES - OTHER,Adult Social Care & Health,Supported Living - new framework,A56126,0
Royal Borough of Kingston,11/12/2023,90299038,504.48,BALANCE (SUPPORT) C.I.C,SOCIAL SERVICES - OTHER,Adult Social Care & Health,Supported Living - new framework,A56126,0
Royal Borough of Kingston,11/12/2023,90299039,672.64,BALANCE (SUPPORT) C.I.C,SOCIAL SERVICES - OTHER,Adult Social Care & Health,Supported Living - new framework,A56126,0
Royal Borough of Kingston,11/12/2023,90299042,"1,008.96",BALANCE (SUPPORT) C.I.C,SOCIAL SERVICES - OTHER,Adult Social Care & Health,Supported Living - new framework,A56126,0
Royal Borough of Kingston,11/12/2023,90299050,672.64,BALANCE (SUPPORT) C.I.C,SOCIAL SERVICES - OTHER,Adult Social Care & Health,Supported Living - new framework,A56126,0
Royal Borough of Kingston,11/12/2023,90299700,504.48,BALANCE (SUPPORT) C.I.C,SOCIAL SERVICES - OTHER,Adult Social Care & Health,S-L non - framework - other support,A56159,0
Royal Borough of Kingston,11/12/2023,90299700,504.48,BALANCE (SUPPORT) C.I.C,SOCIAL SERVICES - OTHER,Adult Social Care & Health,S-L non - framework - other support,A56159,0
Royal Borough of Kingston,11/12/2023,90299714,"1,429.36",BALANCE (SUPPORT) C.I.C,SOCIAL SERVICES - OTHER,Adult Social Care & Health,S-L non - framework - other support,A56159,0
Royal Borough of Kingston,11/12/2023,90299714,"1,429.36",BALANCE (SUPPORT) C.I.C,SOCIAL SERVICES - OTHER,Adult Social Care & Health,S-L non - framework - other support,A56159,0
Royal Borough of Kingston,11/12/2023,90299715,"1,429.36",BALANCE (SUPPORT) C.I.C,SOCIAL SERVICES - OTHER,Adult Social Care & Health,S-L non - framework - other support,A56159,0
Royal Borough of Kingston,11/12/2023,90299715,"1,429.36",BALANCE (SUPPORT) C.I.C,SOCIAL SERVICES - OTHER,Adult Social Care & Health,S-L non - framework - other support,A56159,0
Royal Borough of Kingston,01/01/2024,90300933,"2,486.20",BALANCE (SUPPORT) C.I.C,SOCIAL SERVICES - OTHER,Adult Social Care & Health,Supported Living - new framework,A56126,0
Royal Borough of Kingston,01/01/2024,90300934,618.28,BALANCE (SUPPORT) C.I.C,SOCIAL SERVICES - OTHER,Adult Social Care & Health,Supported Living - new framework,A56126,0
Royal Borough of Kingston,01/01/2024,90300938,"1,864.64",BALANCE (SUPPORT) C.I.C,SOCIAL SERVICES - OTHER,Adult Social Care & Health,Supported Living - new framework,A56126,0
Royal Borough of Kingston,01/01/2024,90300939,"1,396.40",BALANCE (SUPPORT) C.I.C,SOCIAL SERVICES - OTHER,Adult Social Care & Health,Supported Living - new framework,A56126,0
Royal Borough of Kingston,01/01/2024,90300944,"1,675.67",BALANCE (SUPPORT) C.I.C,SOCIAL SERVICES - OTHER,Adult Social Care & Health,Supported Living - new framework,A56126,0
Royal Borough of Kingston,01/01/2024,90300954,930.93,BALANCE (SUPPORT) C.I.C,SOCIAL SERVICES - OTHER,Adult Social Care & Health,Supported Living - new framework,A56126,0
Royal Borough of Kingston,01/01/2024,90300955,"1,780.40",BALANCE (SUPPORT) C.I.C,SOCIAL SERVICES - OTHER,Adult Social Care & Health,Supported Living - new framework,A56126,0
Royal Borough of Kingston,01/01/2024,90300965,"2,373.87",BALANCE (SUPPORT) C.I.C,SOCIAL SERVICES - OTHER,Adult Social Care & Health,Supported Living - new framework,A56126,0
Royal Borough of Kingston,01/01/2024,90300966,583.83,BALANCE (SUPPORT) C.I.C,SOCIAL SERVICES - OTHER,Adult Social Care & Health,Supported Living - new framework,A56126,0
Royal Borough of Kingston,01/01/2024,90300974,"1,210.21",BALANCE (SUPPORT) C.I.C,SOCIAL SERVICES - OTHER,Adult Social Care & Health,Supported Living - new framework,A56126,0
Royal Borough of Kingston,01/01/2024,90300975,"2,373.87",BALANCE (SUPPORT) C.I.C,SOCIAL SERVICES - OTHER,Adult Social Care & Health,Supported Living - new framework,A56126,0
Royal Borough of Kingston,01/01/2024,90300976,583.83,BALANCE (SUPPORT) C.I.C,SOCIAL SERVICES - OTHER,Adult Social Care & Health,Supported Living - new framework,A56126,0
Royal Borough of Kingston,01/01/2024,90300977,"1,864.64",BALANCE (SUPPORT) C.I.C,SOCIAL SERVICES - OTHER,Adult Social Care & Health,Supported Living - new framework,A56126,0
Royal Borough of Kingston,01/01/2024,90300978,701.98,BALANCE (SUPPORT) C.I.C,SOCIAL SERVICES - OTHER,Adult Social Care & Health,Supported Living - new framework,A56126,0
Royal Borough of Kingston,01/01/2024,90300979,744.74,BALANCE (SUPPORT) C.I.C,SOCIAL SERVICES - OTHER,Adult Social Care & Health,Supported Living - new framework,A56126,0
Royal Borough of Kingston,01/01/2024,90300981,"2,373.87",BALANCE (SUPPORT) C.I.C,SOCIAL SERVICES - OTHER,Adult Social Care & Health,Supported Living - new framework,A56126,0
Royal Borough of Kingston,01/01/2024,90300982,583.83,BALANCE (SUPPORT) C.I.C,SOCIAL SERVICES - OTHER,Adult Social Care & Health,Supported Living - new framework,A56126,0
Royal Borough of Kingston,01/01/2024,90300983,651.65,BALANCE (SUPPORT) C.I.C,SOCIAL SERVICES - OTHER,Adult Social Care & Health,Supported Living - new framework,A56126,0
Royal Borough of Kingston,01/01/2024,90300993,"9,774.77",BALANCE (SUPPORT) C.I.C,SOCIAL SERVICES - OTHER,Adult Social Care & Health,Supported Living - new framework,A56126,0
Royal Borough of Kingston,01/01/2024,90300994,"1,751.50",BALANCE (SUPPORT) C.I.C,SOCIAL SERVICES - OTHER,Adult Social Care & Health,Supported Living - new framework,A56126,0
Royal Borough of Kingston,01/01/2024,90300995,"1,024.02",BALANCE (SUPPORT) C.I.C,SOCIAL SERVICES - OTHER,Adult Social Care & Health,Supported Living - new framework,A56126,0
Royal Borough of Kingston,01/01/2024,90300996,"1,780.40",BALANCE (SUPPORT) C.I.C,SOCIAL SERVICES - OTHER,Adult Social Care & Health,Supported Living - new framework,A56126,0
Royal Borough of Kingston,01/01/2024,90301004,"1,780.40",BALANCE (SUPPORT) C.I.C,SOCIAL SERVICES - OTHER,Adult Social Care & Health,Supported Living - new framework,A56126,0
Royal Borough of Kingston,01/01/2024,90301118,"1,040.00",BALANCE (SUPPORT) C.I.C,SOCIAL SERVICES - OTHER,Adult Social Care & Health,Day Opps / Day Care -� Community-based�,A56145,0
Royal Borough of Kingston,01/01/2024,90301118,"1,040.00",BALANCE (SUPPORT) C.I.C,SOCIAL SERVICES - OTHER,Adult Social Care & Health,Day Opps / Day Care -� Community-based�,A56145,0
Royal Borough of Kingston,01/01/2024,90301119,"1,040.00",BALANCE (SUPPORT) C.I.C,SOCIAL SERVICES - OTHER,Adult Social Care & Health,Day Opps / Day Care -� Community-based�,A56145,0
Royal Borough of Kingston,01/01/2024,90301119,"1,040.00",BALANCE (SUPPORT) C.I.C,SOCIAL SERVICES - OTHER,Adult Social Care & Health,Day Opps / Day Care -� Community-based�,A56145,0
Royal Borough of Kingston,01/01/2024,90301120,"1,040.00",BALANCE (SUPPORT) C.I.C,SOCIAL SERVICES - OTHER,Adult Social Care & Health,Day Opps / Day Care -� Community-based�,A56145,0
Royal Borough of Kingston,01/01/2024,90301120,"1,040.00",BALANCE (SUPPORT) C.I.C,SOCIAL SERVICES - OTHER,Adult Social Care & Health,Day Opps / Day Care -� Community-based�,A56145,0
Royal Borough of Kingston,01/01/2024,90301155,548.27,BALANCE (SUPPORT) C.I.C,SOCIAL SERVICES - OTHER,Adult Social Care & Health,Personal Budget - Third Party,A61019,0
Royal Borough of Kingston,01/01/2024,90301156,548.27,BALANCE (SUPPORT) C.I.C,SOCIAL SERVICES - OTHER,Adult Social Care & Health,Personal Budget - Third Party,A61019,0
Royal Borough of Kingston,01/01/2024,90301157,"12,933.64",BALANCE (SUPPORT) C.I.C,SOCIAL SERVICES - OTHER,Adult Social Care & Health,Personal Budget - Third Party,A61019,0
Royal Borough of Kingston,01/01/2024,90301212,624.00,BALANCE (SUPPORT) C.I.C,SOCIAL SERVICES - OTHER,Adult Social Care & Health,Personal Budget - Third Party,A61019,0
Royal Borough of Kingston,01/01/2024,90301283,"1,040.00",BALANCE (SUPPORT) C.I.C,SOCIAL SERVICES - OTHER,Adult Social Care & Health,Personal Budget - Third Party,A61019,0
Royal Borough of Kingston,01/01/2024,90301284,832.00,BALANCE (SUPPORT) C.I.C,SOCIAL SERVICES - OTHER,Adult Social Care & Health,Personal Budget - Third Party,A61019,0
Royal Borough of Kingston,01/01/2024,90301291,"1,040.00",BALANCE (SUPPORT) C.I.C,SOCIAL SERVICES - OTHER,Adult Social Care & Health,Personal Budget - Third Party,A61019,0
Royal Borough of Kingston,01/01/2024,90301312,558.53,BALANCE (SUPPORT) C.I.C,SOCIAL SERVICES - OTHER,Adult Social Care & Health,Personal Budget - Third Party,A61019,0
Royal Borough of Kingston,01/01/2024,90301348,"2,776.98",BALANCE (SUPPORT) C.I.C,SOCIAL SERVICES - OTHER,Adult Social Care & Health,Personal Budget - Third Party,A61019,0
Royal Borough of Kingston,01/01/2024,90301361,"1,454.48",BALANCE (SUPPORT) C.I.C,SOCIAL SERVICES - OTHER,Adult Social Care & Health,Personal Budget - Third Party,A61019,0
Royal Borough of Kingston,01/01/2024,90301441,-503.48,BALANCE (SUPPORT) C.I.C,SOCIAL SERVICES - OTHER,Adult Social Care & Health,Personal Budget - Third Party,A61019,0
Royal Borough of Kingston,01/01/2024,90301443,-503.48,BALANCE (SUPPORT) C.I.C,SOCIAL SERVICES - OTHER,Adult Social Care & Health,Personal Budget - Third Party,A61019,0
Royal Borough of Kingston,01/01/2024,90301444,-503.48,BALANCE (SUPPORT) C.I.C,SOCIAL SERVICES - OTHER,Adult Social Care & Health,Personal Budget - Third Party,A61019,0
Royal Borough of Kingston,01/01/2024,90301446,-503.48,BALANCE (SUPPORT) C.I.C,SOCIAL SERVICES - OTHER,Adult Social Care & Health,Personal Budget - Third Party,A61019,0
Royal Borough of Kingston,01/01/2024,90301448,-503.48,BALANCE (SUPPORT) C.I.C,SOCIAL SERVICES - OTHER,Adult Social Care & Health,Personal Budget - Third Party,A61019,0
Royal Borough of Kingston,01/01/2024,90299922,"3,768.94",BARCHESTER HEALTHCARE,SOCIAL SERVICES RESIDENTIAL,Adult Social Care & Health,Independent Placements,A56006,0
Royal Borough of Kingston,02/01/2024,90295493,500.00,REDACTED - PERSONAL DATA,CHARITIES & VOLUNTARY ORGNS,Adult Social Care & Health,"Grants, Contributions & Donations",A47005,0
Royal Borough of Kingston,01/01/2024,90298969,"3,630.00",BAVANI CARE HOME LIMITED,SOCIAL SERVICES RESIDENTIAL,Adult Social Care & Health,Independent Placements,A56006,0
Royal Borough of Kingston,01/01/2024,90298970,"1,485.00",BAVANI CARE HOME LIMITED,SOCIAL SERVICES RESIDENTIAL,Adult Social Care & Health,Independent Placements,A56006,0
Royal Borough of Kingston,01/01/2024,90298971,"3,300.00",BAVANI CARE HOME LIMITED,SOCIAL SERVICES RESIDENTIAL,Adult Social Care & Health,Independent Placements,A56006,0
Royal Borough of Kingston,01/01/2024,90298972,"5,115.00",BAVANI CARE HOME LIMITED,SOCIAL SERVICES RESIDENTIAL,Adult Social Care & Health,Independent Placements,A56006,0
Royal Borough of Kingston,01/01/2024,90300252,"1,485.00",BAVANI CARE HOME LIMITED,SOCIAL SERVICES RESIDENTIAL,Adult Social Care & Health,Independent Placements,A56006,0
Royal Borough of Kingston,01/01/2024,90300253,"-1,485.00",BAVANI CARE HOME LIMITED,SOCIAL SERVICES RESIDENTIAL,Adult Social Care & Health,Independent Placements,A56006,0
Royal Borough of Kingston,01/01/2024,90300254,"5,115.00",BAVANI CARE HOME LIMITED,SOCIAL SERVICES RESIDENTIAL,Adult Social Care & Health,Independent Placements,A56006,0
Royal Borough of Kingston,01/01/2024,90300255,"-5,115.00",BAVANI CARE HOME LIMITED,SOCIAL SERVICES RESIDENTIAL,Adult Social Care & Health,Independent Placements,A56006,0
Royal Borough of Kingston,01/01/2024,90300256,"2,805.00",BAVANI CARE HOME LIMITED,SOCIAL SERVICES RESIDENTIAL,Adult Social Care & Health,Independent Placements,A56006,0
Royal Borough of Kingston,01/01/2024,90300301,"4,710.58",BAVANI CARE HOME LIMITED,SOCIAL SERVICES RESIDENTIAL,Adult Social Care & Health,Independent Placements,A56006,0
Royal Borough of Kingston,01/01/2024,90300313,"4,185.00",BAVANI CARE HOME LIMITED,SOCIAL SERVICES RESIDENTIAL,Adult Social Care & Health,Independent Placements,A56006,0
Royal Borough of Kingston,01/01/2024,90300324,"5,978.57",BAVANI CARE HOME LIMITED,SOCIAL SERVICES RESIDENTIAL,Adult Social Care & Health,Independent Placements,A56006,0
Royal Borough of Kingston,26/01/2024,90301887,"1,317.76",REDACTED - PERSONAL DATA,PLS LANDLORDS,Place,PSL Payments To Landlords,A22031,0
Royal Borough of Kingston,30/10/2023,70060092,"2,141.80",BLAKE MORGAN LLP,LEGAL & PROFESSIONAL SERVICES,Place,Buildings - Design & Planning,C14001,0
Royal Borough of Kingston,31/08/2023,70060109,"3,410.00",BLAKE MORGAN LLP,LEGAL & PROFESSIONAL SERVICES,Place,Buildings - Design & Planning,C14001,0
Royal Borough of Kingston,27/07/2023,70061546,"1,476.10",BLAKE MORGAN LLP,LEGAL & PROFESSIONAL SERVICES,Place,Property-Related Professional Fees,A20035,0
Royal Borough of Kingston,18/12/2023,90296629,550.14,BLUE ARROW CARE LTD,SOCIAL SERVICES-HOME CARE,Adult Social Care & Health,Personal Budget - Third Party,A61019,0
Royal Borough of Kingston,18/12/2023,90296645,745.36,BLUE ARROW CARE LTD,SOCIAL SERVICES-HOME CARE,Adult Social Care & Health,Personal Budget - Third Party,A61019,0
Royal Borough of Kingston,25/12/2023,90298762,559.02,BLUE ARROW CARE LTD,SOCIAL SERVICES-HOME CARE,Adult Social Care & Health,Personal Budget - Third Party,A61019,0
Royal Borough of Kingston,25/12/2023,90298777,745.36,BLUE ARROW CARE LTD,SOCIAL SERVICES-HOME CARE,Adult Social Care & Health,Personal Budget - Third Party,A61019,0
Royal Borough of Kingston,01/01/2024,90299803,559.02,BLUE ARROW CARE LTD,SOCIAL SERVICES-HOME CARE,Adult Social Care & Health,Personal Budget - Third Party,A61019,0
Royal Borough of Kingston,01/01/2024,90299818,745.36,BLUE ARROW CARE LTD,SOCIAL SERVICES-HOME CARE,Adult Social Care & Health,Personal Budget - Third Party,A61019,0
Royal Borough of Kingston,08/01/2024,90303053,559.02,BLUE ARROW CARE LTD,SOCIAL SERVICES-HOME CARE,Adult Social Care & Health,Personal Budget - Third Party,A61019,0
Royal Borough of Kingston,08/01/2024,90303068,745.36,BLUE ARROW CARE LTD,SOCIAL SERVICES-HOME CARE,Adult Social Care & Health,Personal Budget - Third Party,A61019,0
Royal Borough of Kingston,29/12/2023,70061467,"2,700.00",BNP PARIBAS REAL ESTATE ADVISORY & PROPERTY MANAGEMENT UK LTD,LEGAL & PROFESSIONAL SERVICES,Place,Consultancy Services,A56007,0
Royal Borough of Kingston,01/01/2024,90299899,"3,394.06",BONDCARE (LONDON) LTD BROOK HOUSE,SOCIAL SERVICES RESIDENTIAL,Adult Social Care & Health,Independent Placements,A56006,0
Royal Borough of Kingston,26/01/2024,90302052,916.66,BONSOR PENNINGTONS LTD,PLS LANDLORDS,Place,PSL Payments To Landlords,A22031,0
Royal Borough of Kingston,26/01/2024,90302053,900.00,BR INVESTMENTS LIMITED,PLS LANDLORDS,Place,PSL Payments To Landlords,A22031,0
Royal Borough of Kingston,05/01/2024,90295699,"18,034.80",BRIGHT HORIZONS FAMILY SOLUTIONS,CHILDMINDERS START UP GRANT,Schools,PVI Providers,A60014,0
Royal Borough of Kingston,05/01/2024,90295770,"14,746.50",BRIGHT HORIZONS FAMILY SOLUTIONS,CHILDMINDERS START UP GRANT,Schools,PVI Providers,A60014,0
Royal Borough of Kingston,05/01/2024,90295781,"14,373.60",BRIGHT HORIZONS FAMILY SOLUTIONS,CHILDMINDERS START UP GRANT,Schools,PVI Providers,A60014,0
Royal Borough of Kingston,05/01/2024,90295785,"15,627.90",BRIGHT HORIZONS FAMILY SOLUTIONS,CHILDMINDERS START UP GRANT,Schools,PVI Providers,A60014,0
Royal Borough of Kingston,05/01/2024,90295788,"15,627.90",BRIGHT HORIZONS FAMILY SOLUTIONS,CHILDMINDERS START UP GRANT,Schools,PVI Providers,A60014,0
Royal Borough of Kingston,05/01/2024,90295834,526.50,BRIGHT HORIZONS FAMILY SOLUTIONS,CHILDMINDERS START UP GRANT,Schools,2 Yr Old Place Funding,A60000,0
Royal Borough of Kingston,05/01/2024,90295836,"1,822.50",BRIGHT HORIZONS FAMILY SOLUTIONS,CHILDMINDERS START UP GRANT,Schools,2 Yr Old Place Funding,A60000,0
Royal Borough of Kingston,05/01/2024,90295837,"1,215.00",BRIGHT HORIZONS FAMILY SOLUTIONS,CHILDMINDERS START UP GRANT,Schools,2 Yr Old Place Funding,A60000,0
Royal Borough of Kingston,11/01/2024,90297647,678.00,BRIGHT HORIZONS FAMILY SOLUTIONS,CHILDMINDERS START UP GRANT,Schools,PVI Providers,A60014,0
Royal Borough of Kingston,11/01/2024,90297649,"1,949.25",BRIGHT HORIZONS FAMILY SOLUTIONS,CHILDMINDERS START UP GRANT,Schools,PVI Providers,A60014,0
Royal Borough of Kingston,11/01/2024,90297650,"3,390.00",BRIGHT HORIZONS FAMILY SOLUTIONS,CHILDMINDERS START UP GRANT,Schools,PVI Providers,A60014,0
Royal Borough of Kingston,11/01/2024,90297652,"1,017.00",BRIGHT HORIZONS FAMILY SOLUTIONS,CHILDMINDERS START UP GRANT,Schools,PVI Providers,A60014,0
Royal Borough of Kingston,02/10/2023,70063013,"113,479.52",BRITISH TELECOMMUNICATIONS PLC,TELECOMS,Adult Social Care & Health,Other Private Contractors - Third Party,A56080,0
Royal Borough of Kingston,25/11/2023,70063249,"13,443.35",BRITISH TELECOMMUNICATIONS PLC,TELECOMS,Corporate & Communities,Telephones,A45020,0
Royal Borough of Kingston,23/11/2023,70063250,"20,495.67",BRITISH TELECOMMUNICATIONS PLC,TELECOMS,Corporate & Communities,Telephones,A45020,0
Royal Borough of Kingston,04/12/2023,70061117,"9,029.00",BROWNE JACOBSON LLP,LEGAL & PROFESSIONAL SERVICES,Childrens Services,Consultancy Services - Other,A44065,0
Royal Borough of Kingston,01/01/2024,90300336,"2,042.86",Brownlow Enterprises Limited,SOCIAL SERVICES RESIDENTIAL,Adult Social Care & Health,Independent Placements,A56006,0
Royal Borough of Kingston,21/12/2023,70061289,"4,800.00",Building Design Partnership Ltd,TEMP STAFF & CONSULTANCY,Corporate & Communities,Payments to Contractors,C14000,0
Royal Borough of Kingston,01/01/2024,70062524,"2,170.00",Buildvantage Management Limited,ACCOMMODATION BED & BREAKFAST,Place,Bed & Breakfast,A56000,0
Royal Borough of Kingston,01/01/2024,70062525,"1,674.00",Buildvantage Management Limited,ACCOMMODATION BED & BREAKFAST,Place,Bed & Breakfast,A56000,0
Royal Borough of Kingston,01/01/2024,70062526,540.00,Buildvantage Management Limited,ACCOMMODATION BED & BREAKFAST,Place,Bed & Breakfast,A56000,0
Royal Borough of Kingston,01/01/2024,70062527,"1,705.00",Buildvantage Management Limited,ACCOMMODATION BED & BREAKFAST,Place,Bed & Breakfast,A56000,0
Royal Borough of Kingston,01/01/2024,70062528,"1,519.00",Buildvantage Management Limited,ACCOMMODATION BED & BREAKFAST,Place,Bed & Breakfast,A56000,0
Royal Borough of Kingston,01/01/2024,70062529,"1,674.00",Buildvantage Management Limited,ACCOMMODATION BED & BREAKFAST,Place,Bed & Breakfast,A56000,0
Royal Borough of Kingston,01/01/2024,70062530,"1,674.00",Buildvantage Management Limited,ACCOMMODATION BED & BREAKFAST,Place,Bed & Breakfast,A56000,0
Royal Borough of Kingston,01/01/2024,70062531,"1,674.00",Buildvantage Management Limited,ACCOMMODATION BED & BREAKFAST,Place,Bed & Breakfast,A56000,0
Royal Borough of Kingston,01/01/2024,70062532,"2,170.00",Buildvantage Management Limited,ACCOMMODATION BED & BREAKFAST,Place,Bed & Breakfast,A56000,0
Royal Borough of Kingston,01/01/2024,70062533,"1,674.00",Buildvantage Management Limited,ACCOMMODATION BED & BREAKFAST,Place,Bed & Breakfast,A56000,0
Royal Borough of Kingston,01/01/2024,70062534,"1,674.00",Buildvantage Management Limited,ACCOMMODATION BED & BREAKFAST,Place,Bed & Breakfast,A56000,0
Royal Borough of Kingston,01/01/2024,70062535,"1,705.00",Buildvantage Management Limited,ACCOMMODATION BED & BREAKFAST,Place,Bed & Breakfast,A56000,0
Royal Borough of Kingston,01/01/2024,70062536,"1,519.00",Buildvantage Management Limited,ACCOMMODATION BED & BREAKFAST,Place,Bed & Breakfast,A56000,0
Royal Borough of Kingston,01/01/2024,70062537,"1,674.00",Buildvantage Management Limited,ACCOMMODATION BED & BREAKFAST,Place,Bed & Breakfast,A56000,0
Royal Borough of Kingston,01/01/2024,70062538,"1,674.00",Buildvantage Management Limited,ACCOMMODATION BED & BREAKFAST,Place,Bed & Breakfast,A56000,0
Royal Borough of Kingston,01/01/2024,70062539,"1,674.00",Buildvantage Management Limited,ACCOMMODATION BED & BREAKFAST,Place,Bed & Breakfast,A56000,0
Royal Borough of Kingston,01/01/2024,70062540,"1,674.00",Buildvantage Management Limited,ACCOMMODATION BED & BREAKFAST,Place,Bed & Breakfast,A56000,0
Royal Borough of Kingston,01/01/2024,70062541,"1,674.00",Buildvantage Management Limited,ACCOMMODATION BED & BREAKFAST,Place,Bed & Breakfast,A56000,0
Royal Borough of Kingston,01/01/2024,70062542,"1,674.00",Buildvantage Management Limited,ACCOMMODATION BED & BREAKFAST,Place,Bed & Breakfast,A56000,0
Royal Borough of Kingston,01/01/2024,70062543,"1,674.00",Buildvantage Management Limited,ACCOMMODATION BED & BREAKFAST,Place,Bed & Breakfast,A56000,0
Royal Borough of Kingston,01/01/2024,70062544,"1,519.00",Buildvantage Management Limited,ACCOMMODATION BED & BREAKFAST,Place,Bed & Breakfast,A56000,0
Royal Borough of Kingston,01/01/2024,70062545,"1,674.00",Buildvantage Management Limited,ACCOMMODATION BED & BREAKFAST,Place,Bed & Breakfast,A56000,0
Royal Borough of Kingston,01/01/2024,70062546,"1,674.00",Buildvantage Management Limited,ACCOMMODATION BED & BREAKFAST,Place,Bed & Breakfast,A56000,0
Royal Borough of Kingston,01/01/2024,70062547,"1,519.00",Buildvantage Management Limited,ACCOMMODATION BED & BREAKFAST,Place,Bed & Breakfast,A56000,0
Royal Borough of Kingston,01/01/2024,70062548,"1,674.00",Buildvantage Management Limited,ACCOMMODATION BED & BREAKFAST,Place,Bed & Breakfast,A56000,0
Royal Borough of Kingston,01/01/2024,70062549,"1,674.00",Buildvantage Management Limited,ACCOMMODATION BED & BREAKFAST,Place,Bed & Breakfast,A56000,0
Royal Borough of Kingston,01/01/2024,90299991,"8,669.86",BUPA CARE HOMES (AKW) LIMITED,SOCIAL SERVICES RESIDENTIAL,Adult Social Care & Health,Independent Placements,A56006,0
Royal Borough of Kingston,01/01/2024,90300280,"3,945.02",BUPA CARE HOMES (AKW) LIMITED,SOCIAL SERVICES RESIDENTIAL,Adult Social Care & Health,Independent Placements,A56006,0
Royal Borough of Kingston,01/01/2024,90300744,"5,591.43",BUPA CARE HOMES (AKW) LIMITED,SOCIAL SERVICES RESIDENTIAL,Adult Social Care & Health,Independent Placements,A56006,0
Royal Borough of Kingston,04/01/2024,90295660,"152,546.80",BURLINGTON INFANT AND NURSERY SCHOOL,SCHOOL FUNDS,Schools,Miscellaneous Expenses,A49000,0
Royal Borough of Kingston,05/01/2024,90295745,"63,901.50",BURLINGTON INFANT AND NURSERY SCHOOL,SCHOOL FUNDS,Schools,Miscellaneous Expenses,A49000,0
Royal Borough of Kingston,05/01/2024,90295820,"4,860.00",BURLINGTON INFANT AND NURSERY SCHOOL,SCHOOL FUNDS,Schools,2 Yr Old Place Funding,A60000,0
Royal Borough of Kingston,04/01/2024,90295661,"185,933.75",BURLINGTON JUNIOR SCHOOL,SCHOOL FUNDS,Schools,Miscellaneous Expenses,A49000,0
Royal Borough of Kingston,08/11/2023,70061322,"7,429.93",BYTES SOFTWARE SERVICES LTD,BUSINESS & COMPUTER SYSTEMS,Corporate & Communities,IT Hardware Purchase,A45005,0
Royal Borough of Kingston,27/12/2023,70061330,"4,606.54",BYTES SOFTWARE SERVICES LTD,BUSINESS & COMPUTER SYSTEMS,Corporate & Communities,IT Software Maintenance,A45045,0
Royal Borough of Kingston,29/12/2023,70061420,"2,307.60",BYTES SOFTWARE SERVICES LTD,BUSINESS & COMPUTER SYSTEMS,Corporate & Communities,IT Software Maintenance,A45045,0
Royal Borough of Kingston,29/12/2023,70061545,"10,571.05",BYTES SOFTWARE SERVICES LTD,BUSINESS & COMPUTER SYSTEMS,Corporate & Communities,Cloud Services,A45007,0
Royal Borough of Kingston,11/01/2024,70062339,"8,316.19",BYTES SOFTWARE SERVICES LTD,BUSINESS & COMPUTER SYSTEMS,Corporate & Communities,IT Hardware Purchase,A45005,0
Royal Borough of Kingston,12/01/2024,70062522,"7,195.93",BYTES SOFTWARE SERVICES LTD,BUSINESS & COMPUTER SYSTEMS,Corporate & Communities,Communications,A45025,0
Royal Borough of Kingston,12/01/2024,70062523,"7,195.93",BYTES SOFTWARE SERVICES LTD,BUSINESS & COMPUTER SYSTEMS,Corporate & Communities,Communications,A45025,0
Royal Borough of Kingston,26/01/2024,90302001,"1,314.08",REDACTED - PERSONAL DATA,PLS LANDLORDS,Place,PSL Payments To Landlords,A22031,0
Royal Borough of Kingston,26/01/2024,90302003,"1,094.00",REDACTED - PERSONAL DATA,PLS LANDLORDS,Place,PSL Payments To Landlords,A22031,0
Royal Borough of Kingston,26/01/2024,90302120,"1,314.08",REDACTED - PERSONAL DATA,PLS LANDLORDS,Place,PSL Payments To Landlords,A22031,0
Royal Borough of Kingston,26/01/2024,90302121,"1,314.08",REDACTED - PERSONAL DATA,PLS LANDLORDS,Place,PSL Payments To Landlords,A22031,0
Royal Borough of Kingston,26/01/2024,90302122,"1,314.08",REDACTED - PERSONAL DATA,PLS LANDLORDS,Place,PSL Payments To Landlords,A22031,0
Royal Borough of Kingston,26/01/2024,90302123,"1,314.08",REDACTED - PERSONAL DATA,PLS LANDLORDS,Place,PSL Payments To Landlords,A22031,0
Royal Borough of Kingston,26/01/2024,90302081,"1,317.76",REDACTED - PERSONAL DATA,PLS LANDLORDS,Place,PSL Payments To Landlords,A22031,0
Royal Borough of Kingston,26/01/2024,90302065,"1,025.00",REDACTED - PERSONAL DATA,PLS LANDLORDS,Place,PSL Payments To Landlords,A22031,0
Royal Borough of Kingston,26/01/2024,90302201,"1,679.75",REDACTED - PERSONAL DATA,PLS LANDLORDS,Place,PSL Payments To Landlords,A22031,0
Royal Borough of Kingston,01/12/2023,70061280,"77,710.89",Cambridge Road Estate (RBK) LLP,LEGAL & PROFESSIONAL SERVICES,Housing Revenue Account,Council Dwellings - Acquisition,C10006,0
Royal Borough of Kingston,05/01/2024,70062164,"2,106,736.00",Cambridge Road Estate (RBK) LLP,LEGAL & PROFESSIONAL SERVICES,Place,Other Capital Expenditure,C20002,0
Royal Borough of Kingston,01/01/2024,90301289,981.99,Camphill Village Trust Ltd,SOCIAL SERVICES RESIDENTIAL,Adult Social Care & Health,Personal Budget - Third Party,A61019,0
Royal Borough of Kingston,01/01/2024,90301452,"11,846.43",Camphill Village Trust Ltd,SOCIAL SERVICES RESIDENTIAL,Adult Social Care & Health,Personal Budget - Third Party,A61019,0
Royal Borough of Kingston,01/01/2024,90301453,"3,458.67",Camphill Village Trust Ltd,SOCIAL SERVICES RESIDENTIAL,Adult Social Care & Health,Personal Budget - Third Party,A61019,0
Royal Borough of Kingston,01/01/2024,90301358,"5,697.09",CARE MANAGEMENT GROUP LTD,SOCIAL SERVICES RESIDENTIAL,Adult Social Care & Health,Personal Budget - Third Party,A61019,0
Royal Borough of Kingston,01/01/2024,90295865,"1,285.71",CARE UK COMMUNITY PARTNERSHIPS LTD,SOCIAL SERVICES RESIDENTIAL,Adult Social Care & Health,Independent Placements,A56006,0
Royal Borough of Kingston,01/01/2024,90295866,"4,428.57",CARE UK COMMUNITY PARTNERSHIPS LTD,SOCIAL SERVICES RESIDENTIAL,Adult Social Care & Health,Independent Placements,A56006,0
Royal Borough of Kingston,01/01/2024,90300190,"4,539.29",CARE UK COMMUNITY PARTNERSHIPS LTD,SOCIAL SERVICES RESIDENTIAL,Adult Social Care & Health,Independent Placements,A56006,0
Royal Borough of Kingston,01/01/2024,90300243,"4,428.57",CARE UK COMMUNITY PARTNERSHIPS LTD,SOCIAL SERVICES RESIDENTIAL,Adult Social Care & Health,Independent Placements,A56006,0
Royal Borough of Kingston,01/01/2024,90300278,"3,387.86",CARE UK COMMUNITY PARTNERSHIPS LTD,SOCIAL SERVICES RESIDENTIAL,Adult Social Care & Health,Independent Placements,A56006,0
Royal Borough of Kingston,01/01/2024,90300311,"7,391.29",CARE UK COMMUNITY PARTNERSHIPS LTD,SOCIAL SERVICES RESIDENTIAL,Adult Social Care & Health,Independent Placements,A56006,0
Royal Borough of Kingston,01/01/2024,90300339,"4,423.74",CARE UK COMMUNITY PARTNERSHIPS LTD,SOCIAL SERVICES RESIDENTIAL,Adult Social Care & Health,Independent Placements,A56006,0
Royal Borough of Kingston,01/01/2024,90300359,"2,927.77",CARE UK COMMUNITY PARTNERSHIPS LTD,SOCIAL SERVICES RESIDENTIAL,Adult Social Care & Health,Independent Placements,A56006,0
Royal Borough of Kingston,01/01/2024,90300858,785.71,CARE UK COMMUNITY PARTNERSHIPS LTD,SOCIAL SERVICES RESIDENTIAL,Adult Social Care & Health,Other Private Contractors - Third Party,A56080,0
Royal Borough of Kingston,01/01/2024,90300859,785.71,CARE UK COMMUNITY PARTNERSHIPS LTD,SOCIAL SERVICES RESIDENTIAL,Adult Social Care & Health,Other Private Contractors - Third Party,A56080,0
Royal Borough of Kingston,01/01/2024,90300860,785.71,CARE UK COMMUNITY PARTNERSHIPS LTD,SOCIAL SERVICES RESIDENTIAL,Adult Social Care & Health,Other Private Contractors - Third Party,A56080,0
Royal Borough of Kingston,01/01/2024,90300861,785.71,CARE UK COMMUNITY PARTNERSHIPS LTD,SOCIAL SERVICES RESIDENTIAL,Adult Social Care & Health,Other Private Contractors - Third Party,A56080,0
Royal Borough of Kingston,01/01/2024,90300862,785.71,CARE UK COMMUNITY PARTNERSHIPS LTD,SOCIAL SERVICES RESIDENTIAL,Adult Social Care & Health,Other Private Contractors - Third Party,A56080,0
Royal Borough of Kingston,01/01/2024,90300863,785.71,CARE UK COMMUNITY PARTNERSHIPS LTD,SOCIAL SERVICES RESIDENTIAL,Adult Social Care & Health,Other Private Contractors - Third Party,A56080,0
Royal Borough of Kingston,01/01/2024,90300891,"2,214.29",CARE UK COMMUNITY PARTNERSHIPS LTD,SOCIAL SERVICES RESIDENTIAL,Adult Social Care & Health,Other Private Contractors - Third Party,A56080,0
Royal Borough of Kingston,01/01/2024,90300892,"2,214.29",CARE UK COMMUNITY PARTNERSHIPS LTD,SOCIAL SERVICES RESIDENTIAL,Adult Social Care & Health,Other Private Contractors - Third Party,A56080,0
Royal Borough of Kingston,01/01/2024,90300893,"2,214.29",CARE UK COMMUNITY PARTNERSHIPS LTD,SOCIAL SERVICES RESIDENTIAL,Adult Social Care & Health,Other Private Contractors - Third Party,A56080,0
Royal Borough of Kingston,01/01/2024,90300894,"2,214.29",CARE UK COMMUNITY PARTNERSHIPS LTD,SOCIAL SERVICES RESIDENTIAL,Adult Social Care & Health,Other Private Contractors - Third Party,A56080,0
Royal Borough of Kingston,01/01/2024,90300895,"2,214.29",CARE UK COMMUNITY PARTNERSHIPS LTD,SOCIAL SERVICES RESIDENTIAL,Adult Social Care & Health,Other Private Contractors - Third Party,A56080,0
Royal Borough of Kingston,01/01/2024,90300896,"2,214.29",CARE UK COMMUNITY PARTNERSHIPS LTD,SOCIAL SERVICES RESIDENTIAL,Adult Social Care & Health,Other Private Contractors - Third Party,A56080,0
Royal Borough of Kingston,01/01/2024,90300300,"4,871.43",CARELODGES GROUP LTD,SOCIAL SERVICES RESIDENTIAL,Adult Social Care & Health,Independent Placements,A56006,0
Royal Borough of Kingston,01/01/2024,90300572,"5,847.44",CARELODGES GROUP LTD,SOCIAL SERVICES RESIDENTIAL,Adult Social Care & Health,Independent Placements,A56006,0
Royal Borough of Kingston,05/01/2024,90295696,"15,933.00",CAREROOM LTD,ACADEMIC INSTNS - OTHER,Schools,PVI Providers,A60014,0
Royal Borough of Kingston,05/01/2024,90295803,"1,822.50",CAREROOM LTD,ACADEMIC INSTNS - OTHER,Schools,2 Yr Old Place Funding,A60000,0
Royal Borough of Kingston,11/12/2023,90295975,756.32,CARLCARE LTD,SOCIAL SERVICES-HOME CARE,Adult Social Care & Health,Homecare - new framework,A56127,0
Royal Borough of Kingston,11/12/2023,90296013,504.21,CARLCARE LTD,SOCIAL SERVICES-HOME CARE,Adult Social Care & Health,Homecare - new framework,A56127,0
Royal Borough of Kingston,11/12/2023,90296036,-693.29,CARLCARE LTD,SOCIAL SERVICES-HOME CARE,Adult Social Care & Health,Homecare - new framework,A56127,0
Royal Borough of Kingston,11/12/2023,90296037,-693.29,CARLCARE LTD,SOCIAL SERVICES-HOME CARE,Adult Social Care & Health,Homecare - new framework,A56127,0
Royal Borough of Kingston,11/12/2023,90296038,-693.29,CARLCARE LTD,SOCIAL SERVICES-HOME CARE,Adult Social Care & Health,Homecare - new framework,A56127,0
Royal Borough of Kingston,11/12/2023,90296039,-639.27,CARLCARE LTD,SOCIAL SERVICES-HOME CARE,Adult Social Care & Health,Homecare - new framework,A56127,0
Royal Borough of Kingston,11/12/2023,90296258,549.23,CARLCARE LTD,SOCIAL SERVICES-HOME CARE,Adult Social Care & Health,Homecare - new framework,A56127,0
Royal Borough of Kingston,11/12/2023,90296407,567.24,CARLCARE LTD,SOCIAL SERVICES-HOME CARE,Adult Social Care & Health,Homecare - Framework - double-handed,A56131,0
Royal Borough of Kingston,11/12/2023,90296407,567.24,CARLCARE LTD,SOCIAL SERVICES-HOME CARE,Adult Social Care & Health,Homecare - Framework - double-handed,A56131,0
Royal Borough of Kingston,11/12/2023,90296563,693.29,CARLCARE LTD,SOCIAL SERVICES-HOME CARE,Adult Social Care & Health,Homecare - Framework - D2A,A56133,0
Royal Borough of Kingston,11/12/2023,90296563,693.29,CARLCARE LTD,SOCIAL SERVICES-HOME CARE,Adult Social Care & Health,Homecare - Framework - D2A,A56133,0
Royal Borough of Kingston,11/12/2023,90296564,693.29,CARLCARE LTD,SOCIAL SERVICES-HOME CARE,Adult Social Care & Health,Homecare - Framework - D2A,A56133,0
Royal Borough of Kingston,11/12/2023,90296564,693.29,CARLCARE LTD,SOCIAL SERVICES-HOME CARE,Adult Social Care & Health,Homecare - Framework - D2A,A56133,0
Royal Borough of Kingston,11/12/2023,90296565,693.29,CARLCARE LTD,SOCIAL SERVICES-HOME CARE,Adult Social Care & Health,Homecare - Framework - D2A,A56133,0
Royal Borough of Kingston,11/12/2023,90296565,693.29,CARLCARE LTD,SOCIAL SERVICES-HOME CARE,Adult Social Care & Health,Homecare - Framework - D2A,A56133,0
Royal Borough of Kingston,01/01/2024,90296659,"1,275.71",CARLCARE LTD,SOCIAL SERVICES-HOME CARE,Adult Social Care & Health,Personal Budget - Third Party,A61019,0
Royal Borough of Kingston,18/12/2023,90297849,756.32,CARLCARE LTD,SOCIAL SERVICES-HOME CARE,Adult Social Care & Health,Homecare - new framework,A56127,0
Royal Borough of Kingston,18/12/2023,90297885,504.21,CARLCARE LTD,SOCIAL SERVICES-HOME CARE,Adult Social Care & Health,Homecare - new framework,A56127,0
Royal Borough of Kingston,18/12/2023,90298114,513.22,CARLCARE LTD,SOCIAL SERVICES-HOME CARE,Adult Social Care & Health,Homecare - new framework,A56127,0
Royal Borough of Kingston,18/12/2023,90298268,567.24,CARLCARE LTD,SOCIAL SERVICES-HOME CARE,Adult Social Care & Health,Homecare - Framework - double-handed,A56131,0
Royal Borough of Kingston,18/12/2023,90298268,567.24,CARLCARE LTD,SOCIAL SERVICES-HOME CARE,Adult Social Care & Health,Homecare - Framework - double-handed,A56131,0
Royal Borough of Kingston,08/01/2024,90298790,"1,275.71",CARLCARE LTD,SOCIAL SERVICES-HOME CARE,Adult Social Care & Health,Personal Budget - Third Party,A61019,0
Royal Borough of Kingston,25/12/2023,90299154,756.32,CARLCARE LTD,SOCIAL SERVICES-HOME CARE,Adult Social Care & Health,Homecare - new framework,A56127,0
Royal Borough of Kingston,25/12/2023,90299191,504.21,CARLCARE LTD,SOCIAL SERVICES-HOME CARE,Adult Social Care & Health,Homecare - new framework,A56127,0
Royal Borough of Kingston,25/12/2023,90299416,531.23,CARLCARE LTD,SOCIAL SERVICES-HOME CARE,Adult Social Care & Health,Homecare - new framework,A56127,0
Royal Borough of Kingston,25/12/2023,90299562,531.23,CARLCARE LTD,SOCIAL SERVICES-HOME CARE,Adult Social Care & Health,Homecare - Framework - double-handed,A56131,0
Royal Borough of Kingston,25/12/2023,90299562,531.23,CARLCARE LTD,SOCIAL SERVICES-HOME CARE,Adult Social Care & Health,Homecare - Framework - double-handed,A56131,0
Royal Borough of Kingston,15/01/2024,90299864,"1,275.71",CARLCARE LTD,SOCIAL SERVICES-HOME CARE,Adult Social Care & Health,Personal Budget - Third Party,A61019,0
Royal Borough of Kingston,01/01/2024,90302499,756.32,CARLCARE LTD,SOCIAL SERVICES-HOME CARE,Adult Social Care & Health,Homecare - new framework,A56127,0
Royal Borough of Kingston,01/01/2024,90302535,504.21,CARLCARE LTD,SOCIAL SERVICES-HOME CARE,Adult Social Care & Health,Homecare - new framework,A56127,0
Royal Borough of Kingston,01/01/2024,90302752,513.22,CARLCARE LTD,SOCIAL SERVICES-HOME CARE,Adult Social Care & Health,Homecare - new framework,A56127,0
Royal Borough of Kingston,01/01/2024,90302888,567.24,CARLCARE LTD,SOCIAL SERVICES-HOME CARE,Adult Social Care & Health,Homecare - Framework - double-handed,A56131,0
Royal Borough of Kingston,01/01/2024,90302888,567.24,CARLCARE LTD,SOCIAL SERVICES-HOME CARE,Adult Social Care & Health,Homecare - Framework - double-handed,A56131,0
Royal Borough of Kingston,01/01/2024,90303002,817.69,CARLCARE LTD,SOCIAL SERVICES-HOME CARE,Adult Social Care & Health,Homecare - Framework - D2A,A56133,0
Royal Borough of Kingston,01/01/2024,90303002,817.69,CARLCARE LTD,SOCIAL SERVICES-HOME CARE,Adult Social Care & Health,Homecare - Framework - D2A,A56133,0
Royal Borough of Kingston,22/01/2024,90303076,"1,275.71",CARLCARE LTD,SOCIAL SERVICES-HOME CARE,Adult Social Care & Health,Personal Budget - Third Party,A61019,0
Royal Borough of Kingston,26/01/2024,90302095,"1,550.00",CARLISLE SECURITIES LTD,PLS LANDLORDS,Place,PSL Payments To Landlords,A22031,0
Royal Borough of Kingston,26/01/2024,90301921,"1,185.00",REDACTED - PERSONAL DATA,PLS LANDLORDS,Place,PSL Payments To Landlords,A22031,0
Royal Borough of Kingston,05/01/2024,90295730,"1,288.20",REDACTED - PERSONAL DATA,CHILDMINDERS START UP GRANT,Schools,PVI Providers,A60014,0
Royal Borough of Kingston,01/01/2024,90300573,"9,943.96",CARTREF HOMES,SOCIAL SERVICES RESIDENTIAL,Adult Social Care & Health,Independent Placements,A56006,0
Royal Borough of Kingston,01/01/2024,90300436,"14,724.87",CAS CARE SERVICES LTD,SOCIAL SERVICES - OTHER,Adult Social Care & Health,Independent Placements,A56006,0
Royal Borough of Kingston,01/01/2024,90300610,"14,724.87",CAS CARE SERVICES LTD,SOCIAL SERVICES - OTHER,Adult Social Care & Health,Independent Placements,A56006,0
Royal Borough of Kingston,05/01/2024,90295746,"32,950.80",CASTLE HILL SCHOOL,SCHOOL FUNDS,Schools,Miscellaneous Expenses,A49000,0
Royal Borough of Kingston,05/01/2024,90295778,"1,525.50",CASTLE HILL SCHOOL,SCHOOL FUNDS,Schools,PVI Providers,A60014,0
Royal Borough of Kingston,05/01/2024,90295831,"2,430.00",CASTLE HILL SCHOOL,SCHOOL FUNDS,Schools,2 Yr Old Place Funding,A60000,0
Royal Borough of Kingston,26/01/2024,90301894,"2,149.00",CASTLE RESIDENTIAL PROPERTIES LTD,PLS LANDLORDS,Place,PSL Payments To Landlords,A22031,0
Royal Borough of Kingston,26/01/2024,90301895,"1,540.00",CASTLE RESIDENTIAL PROPERTIES LTD,PLS LANDLORDS,Place,PSL Payments To Landlords,A22031,0
Royal Borough of Kingston,26/01/2024,90302002,"1,321.00",CASTLE RESIDENTIAL PROPERTIES LTD,PLS LANDLORDS,Place,PSL Payments To Landlords,A22031,0
Royal Borough of Kingston,26/01/2024,90302004,"1,049.98",CASTLE RESIDENTIAL PROPERTIES LTD,PLS LANDLORDS,Place,PSL Payments To Landlords,A22031,0
Royal Borough of Kingston,26/01/2024,90302161,"2,144.09",CASTLE RESIDENTIAL PROPERTIES LTD,PLS LANDLORDS,Place,PSL Payments To Landlords,A22031,0
Royal Borough of Kingston,26/01/2024,90302232,"2,144.09",CASTLE RESIDENTIAL PROPERTIES LTD,PLS LANDLORDS,Place,PSL Payments To Landlords,A22031,0
Royal Borough of Kingston,23/01/2024,70063198,876.32,CASTLE WILDISH RESI LTD,PLS LANDLORDS,Place,Compensation (In Lieu Of Works),A20039,0
Royal Borough of Kingston,26/01/2024,90301893,"1,094.34",CASTLE WILDISH RESI LTD,PLS LANDLORDS,Place,PSL Payments To Landlords,A22031,0
Royal Borough of Kingston,26/01/2024,90302215,"2,100.00",CASTLE WILDISH RESI LTD,PLS LANDLORDS,Place,PSL Payments To Landlords,A22031,0
Royal Borough of Kingston,26/01/2024,90302216,"2,100.00",CASTLE WILDISH RESI LTD,PLS LANDLORDS,Place,PSL Payments To Landlords,A22031,0
Royal Borough of Kingston,26/01/2024,90302041,867.00,REDACTED - PERSONAL DATA,PLS LANDLORDS,Place,PSL Payments To Landlords,A22031,0
Royal Borough of Kingston,06/11/2023,70058581,"1,610.00",CATTANEO COMMERCIAL LIMITED,PROFESSIONAL ASSOCIATIONS TU,Place,Property-Related Professional Fees,A20035,0
Royal Borough of Kingston,01/01/2024,90300523,"11,709.72",Gresham Care Operations Limited,SOCIAL SERVICES RESIDENTIAL,Adult Social Care & Health,Independent Placements,A56006,0
Royal Borough of Kingston,26/01/2024,90302030,867.83,REDACTED - PERSONAL DATA,PLS LANDLORDS,Place,PSL Payments To Landlords,A22031,0
Royal Borough of Kingston,01/01/2024,70062257,500.00,REDACTED - PERSONAL DATA,SUNDRY SUPPLIER - FINANCE,Corporate & Communities,Professional Fees,A44066,0
Royal Borough of Kingston,31/08/2023,70053398,"1,950.00",CHAWTON HILL ASSOCIATES LIMITED,LEGAL & PROFESSIONAL SERVICES,Place,Payments to Contractors,C14000,0
Royal Borough of Kingston,31/10/2023,70058127,"1,955.00",CHAWTON HILL ASSOCIATES LIMITED,LEGAL & PROFESSIONAL SERVICES,Place,Buildings - Design & Planning,C14001,0
Royal Borough of Kingston,31/10/2023,70058154,750.00,CHAWTON HILL ASSOCIATES LIMITED,LEGAL & PROFESSIONAL SERVICES,Place,Buildings - Design & Planning,C14001,0
Royal Borough of Kingston,18/12/2023,70061254,623.33,CHAWTON HILL ASSOCIATES LIMITED,LEGAL & PROFESSIONAL SERVICES,Housing Revenue Account,Professional Fees,A44066,0
Royal Borough of Kingston,26/10/2023,70061255,540.00,CHAWTON HILL ASSOCIATES LIMITED,LEGAL & PROFESSIONAL SERVICES,Housing Revenue Account,Professional Fees,A44066,0
Royal Borough of Kingston,01/01/2024,90300257,"3,865.08",CHD (CARE HOMES) LTD,SOCIAL SERVICES RESIDENTIAL,Adult Social Care & Health,Independent Placements,A56006,0
Royal Borough of Kingston,01/01/2024,90300344,"5,535.71",CHD (CARE HOMES) LTD,SOCIAL SERVICES RESIDENTIAL,Adult Social Care & Health,Independent Placements,A56006,0
Royal Borough of Kingston,01/01/2024,90300358,"5,456.00",CHD (CARE HOMES) LTD,SOCIAL SERVICES RESIDENTIAL,Adult Social Care & Health,Independent Placements,A56006,0
Royal Borough of Kingston,01/01/2024,90300370,"3,653.57",CHD (CARE HOMES) LTD,SOCIAL SERVICES RESIDENTIAL,Adult Social Care & Health,Independent Placements,A56006,0
Royal Borough of Kingston,01/01/2024,90300084,"4,295.71",CHD CARE LTD,SOCIAL SERVICES RESIDENTIAL,Adult Social Care & Health,Independent Placements,A56006,0
Royal Borough of Kingston,01/01/2024,90300881,"2,435.71",CHD CARE LTD,SOCIAL SERVICES RESIDENTIAL,Adult Social Care & Health,Other Private Contractors - Third Party,A56080,0
Royal Borough of Kingston,01/01/2024,90300882,"2,435.71",CHD CARE LTD,SOCIAL SERVICES RESIDENTIAL,Adult Social Care & Health,Other Private Contractors - Third Party,A56080,0
Royal Borough of Kingston,01/01/2024,90300883,"2,435.71",CHD CARE LTD,SOCIAL SERVICES RESIDENTIAL,Adult Social Care & Health,Other Private Contractors - Third Party,A56080,0
Royal Borough of Kingston,01/01/2024,90300884,"2,435.71",CHD CARE LTD,SOCIAL SERVICES RESIDENTIAL,Adult Social Care & Health,Other Private Contractors - Third Party,A56080,0
Royal Borough of Kingston,01/01/2024,90300885,"2,435.71",CHD CARE LTD,SOCIAL SERVICES RESIDENTIAL,Adult Social Care & Health,Other Private Contractors - Third Party,A56080,0
Royal Borough of Kingston,01/01/2024,90300886,"2,435.71",CHD CARE LTD,SOCIAL SERVICES RESIDENTIAL,Adult Social Care & Health,Other Private Contractors - Third Party,A56080,0
Royal Borough of Kingston,01/01/2024,90300887,"2,435.71",CHD CARE LTD,SOCIAL SERVICES RESIDENTIAL,Adult Social Care & Health,Other Private Contractors - Third Party,A56080,0
Royal Borough of Kingston,01/01/2024,90300888,"2,435.71",CHD CARE LTD,SOCIAL SERVICES RESIDENTIAL,Adult Social Care & Health,Other Private Contractors - Third Party,A56080,0
Royal Borough of Kingston,01/01/2024,90300889,"2,435.71",CHD CARE LTD,SOCIAL SERVICES RESIDENTIAL,Adult Social Care & Health,Other Private Contractors - Third Party,A56080,0
Royal Borough of Kingston,01/01/2024,90300890,"2,435.71",CHD CARE LTD,SOCIAL SERVICES RESIDENTIAL,Adult Social Care & Health,Other Private Contractors - Third Party,A56080,0
Royal Borough of Kingston,05/01/2024,90295706,"12,204.00",CHILDS PLAY NURSERY SCHOOL LTD,ACADEMIC INSTNS - OTHER,Schools,PVI Providers,A60014,0
Royal Borough of Kingston,01/01/2024,90299919,"2,228.57",CHISWICK NURSING CENTRE,SOCIAL SERVICES RESIDENTIAL,Adult Social Care & Health,Independent Placements,A56006,0
Royal Borough of Kingston,01/01/2024,90299920,"5,757.14",CHISWICK NURSING CENTRE,SOCIAL SERVICES RESIDENTIAL,Adult Social Care & Health,Independent Placements,A56006,0
Royal Borough of Kingston,01/01/2024,90300262,"3,755.03",CHISWICK NURSING CENTRE,SOCIAL SERVICES RESIDENTIAL,Adult Social Care & Health,Independent Placements,A56006,0
Royal Borough of Kingston,01/01/2024,90300293,"3,434.40",CHISWICK NURSING CENTRE,SOCIAL SERVICES RESIDENTIAL,Adult Social Care & Health,Independent Placements,A56006,0
Royal Borough of Kingston,01/01/2024,90300605,"8,824.06",CHOICE LTD,SOCIAL SERVICES RESIDENTIAL,Adult Social Care & Health,Independent Placements,A56006,0
Royal Borough of Kingston,01/01/2024,90300615,"7,797.03",CHOICE LTD,SOCIAL SERVICES RESIDENTIAL,Adult Social Care & Health,Independent Placements,A56006,0
Royal Borough of Kingston,11/01/2024,70062363,500.00,REDACTED - PERSONAL DATA,SUNDRY SUPPLIER - HOUSING,Place,Housing Incentives,A62025,0
Royal Borough of Kingston,11/01/2024,70062364,500.00,REDACTED - PERSONAL DATA,SUNDRY SUPPLIER - HOUSING,Place,Housing Incentives,A62025,0
Royal Borough of Kingston,04/01/2024,90295663,"167,164.50",CHRIST CHURCH  C. OF E.  PRIMARY SCHOOL (NEW MALDEN),SCHOOL FUNDS,Schools,Miscellaneous Expenses,A49000,0
Royal Borough of Kingston,05/01/2024,90295747,"15,763.50",CHRIST CHURCH  C. OF E.  PRIMARY SCHOOL (NEW MALDEN),SCHOOL FUNDS,Schools,Miscellaneous Expenses,A49000,0
Royal Borough of Kingston,04/01/2024,90295662,"172,686.54",CHRIST CHURCH C.OF E. PRIMARY SCHOOL - (SURBITON),SCHOOL FUNDS,Schools,Miscellaneous Expenses,A49000,0
Royal Borough of Kingston,01/01/2024,90296606,"1,408.19",CHRISTIES CARE LTD,SOCIAL SERVICES RESIDENTIAL,Adult Social Care & Health,Homecare - non - Framework - 24 hour care & live-in,A56166,0
Royal Borough of Kingston,01/01/2024,90296606,"1,408.19",CHRISTIES CARE LTD,SOCIAL SERVICES RESIDENTIAL,Adult Social Care & Health,Homecare - non - Framework - 24 hour care & live-in,A56166,0
Royal Borough of Kingston,01/01/2024,90296607,"1,316.40",CHRISTIES CARE LTD,SOCIAL SERVICES RESIDENTIAL,Adult Social Care & Health,Homecare - non - Framework - 24 hour care & live-in,A56166,0
Royal Borough of Kingston,01/01/2024,90296607,"1,316.40",CHRISTIES CARE LTD,SOCIAL SERVICES RESIDENTIAL,Adult Social Care & Health,Homecare - non - Framework - 24 hour care & live-in,A56166,0
Royal Borough of Kingston,01/01/2024,90296608,"1,369.70",CHRISTIES CARE LTD,SOCIAL SERVICES RESIDENTIAL,Adult Social Care & Health,Homecare - non - Framework - 24 hour care & live-in,A56166,0
Royal Borough of Kingston,01/01/2024,90296608,"1,369.70",CHRISTIES CARE LTD,SOCIAL SERVICES RESIDENTIAL,Adult Social Care & Health,Homecare - non - Framework - 24 hour care & live-in,A56166,0
Royal Borough of Kingston,01/01/2024,90296609,"1,321.65",CHRISTIES CARE LTD,SOCIAL SERVICES RESIDENTIAL,Adult Social Care & Health,Homecare - non - Framework - 24 hour care & live-in,A56166,0
Royal Borough of Kingston,01/01/2024,90296609,"1,321.65",CHRISTIES CARE LTD,SOCIAL SERVICES RESIDENTIAL,Adult Social Care & Health,Homecare - non - Framework - 24 hour care & live-in,A56166,0
Royal Borough of Kingston,08/01/2024,90298414,"1,408.19",CHRISTIES CARE LTD,SOCIAL SERVICES RESIDENTIAL,Adult Social Care & Health,Homecare - non - Framework - 24 hour care & live-in,A56166,0
Royal Borough of Kingston,08/01/2024,90298414,"1,408.19",CHRISTIES CARE LTD,SOCIAL SERVICES RESIDENTIAL,Adult Social Care & Health,Homecare - non - Framework - 24 hour care & live-in,A56166,0
Royal Borough of Kingston,08/01/2024,90298415,"1,316.40",CHRISTIES CARE LTD,SOCIAL SERVICES RESIDENTIAL,Adult Social Care & Health,Homecare - non - Framework - 24 hour care & live-in,A56166,0
Royal Borough of Kingston,08/01/2024,90298415,"1,316.40",CHRISTIES CARE LTD,SOCIAL SERVICES RESIDENTIAL,Adult Social Care & Health,Homecare - non - Framework - 24 hour care & live-in,A56166,0
Royal Borough of Kingston,08/01/2024,90298416,"1,369.70",CHRISTIES CARE LTD,SOCIAL SERVICES RESIDENTIAL,Adult Social Care & Health,Homecare - non - Framework - 24 hour care & live-in,A56166,0
Royal Borough of Kingston,08/01/2024,90298416,"1,369.70",CHRISTIES CARE LTD,SOCIAL SERVICES RESIDENTIAL,Adult Social Care & Health,Homecare - non - Framework - 24 hour care & live-in,A56166,0
Royal Borough of Kingston,08/01/2024,90298417,"1,321.65",CHRISTIES CARE LTD,SOCIAL SERVICES RESIDENTIAL,Adult Social Care & Health,Homecare - non - Framework - 24 hour care & live-in,A56166,0
Royal Borough of Kingston,08/01/2024,90298417,"1,321.65",CHRISTIES CARE LTD,SOCIAL SERVICES RESIDENTIAL,Adult Social Care & Health,Homecare - non - Framework - 24 hour care & live-in,A56166,0
Royal Borough of Kingston,15/01/2024,90299776,"1,408.19",CHRISTIES CARE LTD,SOCIAL SERVICES RESIDENTIAL,Adult Social Care & Health,Homecare - non - Framework - 24 hour care & live-in,A56166,0
Royal Borough of Kingston,15/01/2024,90299776,"1,408.19",CHRISTIES CARE LTD,SOCIAL SERVICES RESIDENTIAL,Adult Social Care & Health,Homecare - non - Framework - 24 hour care & live-in,A56166,0
Royal Borough of Kingston,15/01/2024,90299777,"1,316.40",CHRISTIES CARE LTD,SOCIAL SERVICES RESIDENTIAL,Adult Social Care & Health,Homecare - non - Framework - 24 hour care & live-in,A56166,0
Royal Borough of Kingston,15/01/2024,90299777,"1,316.40",CHRISTIES CARE LTD,SOCIAL SERVICES RESIDENTIAL,Adult Social Care & Health,Homecare - non - Framework - 24 hour care & live-in,A56166,0
Royal Borough of Kingston,15/01/2024,90299778,"1,369.70",CHRISTIES CARE LTD,SOCIAL SERVICES RESIDENTIAL,Adult Social Care & Health,Homecare - non - Framework - 24 hour care & live-in,A56166,0
Royal Borough of Kingston,15/01/2024,90299778,"1,369.70",CHRISTIES CARE LTD,SOCIAL SERVICES RESIDENTIAL,Adult Social Care & Health,Homecare - non - Framework - 24 hour care & live-in,A56166,0
Royal Borough of Kingston,15/01/2024,90299779,"1,321.65",CHRISTIES CARE LTD,SOCIAL SERVICES RESIDENTIAL,Adult Social Care & Health,Homecare - non - Framework - 24 hour care & live-in,A56166,0
Royal Borough of Kingston,15/01/2024,90299779,"1,321.65",CHRISTIES CARE LTD,SOCIAL SERVICES RESIDENTIAL,Adult Social Care & Health,Homecare - non - Framework - 24 hour care & live-in,A56166,0
Royal Borough of Kingston,22/01/2024,90303030,"1,408.19",CHRISTIES CARE LTD,SOCIAL SERVICES RESIDENTIAL,Adult Social Care & Health,Homecare - non - Framework - 24 hour care & live-in,A56166,0
Royal Borough of Kingston,22/01/2024,90303030,"1,408.19",CHRISTIES CARE LTD,SOCIAL SERVICES RESIDENTIAL,Adult Social Care & Health,Homecare - non - Framework - 24 hour care & live-in,A56166,0
Royal Borough of Kingston,22/01/2024,90303031,"1,316.40",CHRISTIES CARE LTD,SOCIAL SERVICES RESIDENTIAL,Adult Social Care & Health,Homecare - non - Framework - 24 hour care & live-in,A56166,0
Royal Borough of Kingston,22/01/2024,90303031,"1,316.40",CHRISTIES CARE LTD,SOCIAL SERVICES RESIDENTIAL,Adult Social Care & Health,Homecare - non - Framework - 24 hour care & live-in,A56166,0
Royal Borough of Kingston,22/01/2024,90303032,"1,369.70",CHRISTIES CARE LTD,SOCIAL SERVICES RESIDENTIAL,Adult Social Care & Health,Homecare - non - Framework - 24 hour care & live-in,A56166,0
Royal Borough of Kingston,22/01/2024,90303032,"1,369.70",CHRISTIES CARE LTD,SOCIAL SERVICES RESIDENTIAL,Adult Social Care & Health,Homecare - non - Framework - 24 hour care & live-in,A56166,0
Royal Borough of Kingston,22/01/2024,90303033,"1,321.65",CHRISTIES CARE LTD,SOCIAL SERVICES RESIDENTIAL,Adult Social Care & Health,Homecare - non - Framework - 24 hour care & live-in,A56166,0
Royal Borough of Kingston,22/01/2024,90303033,"1,321.65",CHRISTIES CARE LTD,SOCIAL SERVICES RESIDENTIAL,Adult Social Care & Health,Homecare - non - Framework - 24 hour care & live-in,A56166,0
Royal Borough of Kingston,21/12/2023,70061393,"3,000.00",Citizen Zoo,SUNDRY SUPPLIER - FINANCE,Corporate & Communities,Payments to Voluntary Organisations,A54005,0
Royal Borough of Kingston,01/01/2024,70061368,"2,443.74",CITRON HYGIENE LIMITED,REFUSE COLLECTION / DISPOSAL,Corporate & Communities,Clinical Waste,A56054,0
Royal Borough of Kingston,10/11/2023,70058536,"8,582.54",CITY OF LONDON,CENTRAL & LOCAL GOVERNMENT,Corporate & Communities,Other Cleaning And Waste-Related Third Party Payment,A56064,0
Royal Borough of Kingston,23/10/2023,70063015,"2,338.27",CITY OF LONDON,CENTRAL & LOCAL GOVERNMENT,Corporate & Communities,Professional Fees,A44066,0
Royal Borough of Kingston,20/12/2023,70060873,"105,505.86",CityAxis,CONSTRUCTION INDUSTRY,Place,Payments to Contractors,C14000,0
Royal Borough of Kingston,16/01/2024,70062802,"57,312.31",CityAxis,CONSTRUCTION INDUSTRY,Place,Payments to Contractors,C14000,0
Royal Borough of Kingston,25/12/2023,70061386,709.56,CITYSPRINT (UK) LTD,OFFICE SERVICES,Corporate & Communities,Books,A43050,0
Royal Borough of Kingston,20/12/2023,70061302,"5,000.00",Civic Engineers Limited,CONSULTING ARCHITECTS ENGINEER,Corporate & Communities,Infrastructure Assets - Project Management,C12000,0
Royal Borough of Kingston,28/11/2023,70059476,"2,333.33",CIVICA UK LTD,BUSINESS & COMPUTER SYSTEMS,Corporate & Communities,IT Software Purchase,A45040,0
Royal Borough of Kingston,13/12/2023,70061052,"8,575.00",CIVICA UK LTD,BUSINESS & COMPUTER SYSTEMS,Corporate & Communities,IT Software Purchase,A45040,0
Royal Borough of Kingston,05/01/2024,90295709,"2,542.50",REDACTED - PERSONAL DATA,CHILDMINDERS START UP GRANT,Schools,PVI Providers,A60014,0
Royal Borough of Kingston,01/01/2024,90300268,"6,421.43",Claremont Care Services Ltd,SOCIAL SERVICES RESIDENTIAL,Adult Social Care & Health,Independent Placements,A56006,0
Royal Borough of Kingston,01/01/2024,90300290,"7,750.00",Claremont Care Services Ltd,SOCIAL SERVICES RESIDENTIAL,Adult Social Care & Health,Independent Placements,A56006,0
Royal Borough of Kingston,01/01/2024,90300372,"14,136.00",Claremont Care Services Ltd,SOCIAL SERVICES RESIDENTIAL,Adult Social Care & Health,Independent Placements,A56006,0
Royal Borough of Kingston,01/01/2024,90300618,"9,252.04",CLEARWATER CARE (HACKNEY) LTD,SOCIAL SERVICES RESIDENTIAL,Adult Social Care & Health,Independent Placements,A56006,0
Royal Borough of Kingston,02/01/2024,70061385,890.00,CLEMENTS ENVIRONMENTAL SERVICES LTD,PEST CONTROL SERVICES,Corporate & Communities,Other Private Contractors - Third Party,A56080,0
Royal Borough of Kingston,02/01/2024,70061439,"9,000.00",CLEMENTS ENVIRONMENTAL SERVICES LTD,PEST CONTROL SERVICES,Corporate & Communities,Other Private Contractors - Third Party,A56080,0
Royal Borough of Kingston,01/01/2024,90301514,"6,632.85",CLIA Care Ltd,ACCOMMODATION - OTHER,Adult Social Care & Health,Personal Budget - Third Party,A61019,0
Royal Borough of Kingston,26/01/2024,90302118,"1,094.00",CLIFFE &  ROCHFORD,PLS LANDLORDS,Place,PSL Payments To Landlords,A22031,0
Royal Borough of Kingston,26/01/2024,90301948,"1,435.50",CLIQUE 187 LTD,PLS LANDLORDS,Place,PSL Payments To Landlords,A22031,0
Royal Borough of Kingston,11/12/2023,70061284,500.00,Albion Cleaning Services,SOCIAL SERVICES - OTHER,Corporate & Communities,Grants Given For Capital Purposes,C20004,0
Royal Borough of Kingston,01/01/2024,90301502,"6,191.14",CM CARE LTD,SOCIAL SERVICES RESIDENTIAL,Adult Social Care & Health,Personal Budget - Third Party,A61019,0
Royal Borough of Kingston,01/01/2024,90301512,"5,499.27",CM CARE LTD,SOCIAL SERVICES RESIDENTIAL,Adult Social Care & Health,Personal Budget - Third Party,A61019,0
Royal Borough of Kingston,01/01/2024,90301518,"5,203.57",CM CARE LTD,SOCIAL SERVICES RESIDENTIAL,Adult Social Care & Health,Personal Budget - Third Party,A61019,0
Royal Borough of Kingston,01/01/2024,90301351,"3,202.70",CMG LIMITED,SOCIAL SERVICES - OTHER,Adult Social Care & Health,Personal Budget - Third Party,A61019,0
Royal Borough of Kingston,01/01/2024,90301362,"5,810.73",CMG LIMITED,SOCIAL SERVICES - OTHER,Adult Social Care & Health,Personal Budget - Third Party,A61019,0
Royal Borough of Kingston,01/01/2024,90301363,"5,776.27",CMG LIMITED,SOCIAL SERVICES - OTHER,Adult Social Care & Health,Personal Budget - Third Party,A61019,0
Royal Borough of Kingston,01/01/2024,90301371,"6,342.56",CMG LIMITED,SOCIAL SERVICES - OTHER,Adult Social Care & Health,Personal Budget - Third Party,A61019,0
Royal Borough of Kingston,01/01/2024,90301380,976.77,CMG LIMITED,SOCIAL SERVICES - OTHER,Adult Social Care & Health,Personal Budget - Third Party,A61019,0
Royal Borough of Kingston,01/01/2024,90301381,"4,219.99",CMG LIMITED,SOCIAL SERVICES - OTHER,Adult Social Care & Health,Personal Budget - Third Party,A61019,0
Royal Borough of Kingston,01/01/2024,90301451,"5,033.96",CMG LIMITED,SOCIAL SERVICES - OTHER,Adult Social Care & Health,Personal Budget - Third Party,A61019,0
Royal Borough of Kingston,18/12/2023,90295953,567.24,CN Healthcare,SOCIAL SERVICES - OTHER,Adult Social Care & Health,Homecare - new framework,A56127,0
Royal Borough of Kingston,18/12/2023,90296060,567.24,CN Healthcare,SOCIAL SERVICES - OTHER,Adult Social Care & Health,Homecare - new framework,A56127,0
Royal Borough of Kingston,18/12/2023,90296087,882.37,CN Healthcare,SOCIAL SERVICES - OTHER,Adult Social Care & Health,Homecare - new framework,A56127,0
Royal Borough of Kingston,18/12/2023,90296088,-882.37,CN Healthcare,SOCIAL SERVICES - OTHER,Adult Social Care & Health,Homecare - new framework,A56127,0
Royal Borough of Kingston,18/12/2023,90296117,630.27,CN Healthcare,SOCIAL SERVICES - OTHER,Adult Social Care & Health,Homecare - new framework,A56127,0
Royal Borough of Kingston,18/12/2023,90296290,693.29,CN Healthcare,SOCIAL SERVICES - OTHER,Adult Social Care & Health,Homecare - new framework,A56127,0
Royal Borough of Kingston,18/12/2023,90296579,630.35,CN Healthcare,SOCIAL SERVICES - OTHER,Adult Social Care & Health,Homecare - Framework - D2A,A56133,0
Royal Borough of Kingston,18/12/2023,90296579,630.35,CN Healthcare,SOCIAL SERVICES - OTHER,Adult Social Care & Health,Homecare - Framework - D2A,A56133,0
Royal Borough of Kingston,25/12/2023,90297829,567.24,CN Healthcare,SOCIAL SERVICES - OTHER,Adult Social Care & Health,Homecare - new framework,A56127,0
Royal Borough of Kingston,25/12/2023,90297923,567.24,CN Healthcare,SOCIAL SERVICES - OTHER,Adult Social Care & Health,Homecare - new framework,A56127,0
Royal Borough of Kingston,25/12/2023,90297986,630.27,CN Healthcare,SOCIAL SERVICES - OTHER,Adult Social Care & Health,Homecare - new framework,A56127,0
Royal Borough of Kingston,25/12/2023,90298141,693.29,CN Healthcare,SOCIAL SERVICES - OTHER,Adult Social Care & Health,Homecare - new framework,A56127,0
Royal Borough of Kingston,25/12/2023,90298390,630.35,CN Healthcare,SOCIAL SERVICES - OTHER,Adult Social Care & Health,Homecare - Framework - D2A,A56133,0
Royal Borough of Kingston,25/12/2023,90298390,630.35,CN Healthcare,SOCIAL SERVICES - OTHER,Adult Social Care & Health,Homecare - Framework - D2A,A56133,0
Royal Borough of Kingston,01/01/2024,90299134,567.24,CN Healthcare,SOCIAL SERVICES - OTHER,Adult Social Care & Health,Homecare - new framework,A56127,0
Royal Borough of Kingston,01/01/2024,90299227,567.24,CN Healthcare,SOCIAL SERVICES - OTHER,Adult Social Care & Health,Homecare - new framework,A56127,0
Royal Borough of Kingston,01/01/2024,90299280,630.27,CN Healthcare,SOCIAL SERVICES - OTHER,Adult Social Care & Health,Homecare - new framework,A56127,0
Royal Borough of Kingston,01/01/2024,90299450,693.29,CN Healthcare,SOCIAL SERVICES - OTHER,Adult Social Care & Health,Homecare - new framework,A56127,0
Royal Borough of Kingston,01/01/2024,90299672,504.21,CN Healthcare,SOCIAL SERVICES - OTHER,Adult Social Care & Health,Homecare - Framework - D2A,A56133,0
Royal Borough of Kingston,01/01/2024,90299672,504.21,CN Healthcare,SOCIAL SERVICES - OTHER,Adult Social Care & Health,Homecare - Framework - D2A,A56133,0
Royal Borough of Kingston,01/01/2024,90299686,630.35,CN Healthcare,SOCIAL SERVICES - OTHER,Adult Social Care & Health,Homecare - Framework - D2A,A56133,0
Royal Borough of Kingston,01/01/2024,90299686,630.35,CN Healthcare,SOCIAL SERVICES - OTHER,Adult Social Care & Health,Homecare - Framework - D2A,A56133,0
Royal Borough of Kingston,08/01/2024,90302479,567.24,CN Healthcare,SOCIAL SERVICES - OTHER,Adult Social Care & Health,Homecare - new framework,A56127,0
Royal Borough of Kingston,08/01/2024,90302573,567.24,CN Healthcare,SOCIAL SERVICES - OTHER,Adult Social Care & Health,Homecare - new framework,A56127,0
Royal Borough of Kingston,08/01/2024,90302624,630.27,CN Healthcare,SOCIAL SERVICES - OTHER,Adult Social Care & Health,Homecare - new framework,A56127,0
Royal Borough of Kingston,08/01/2024,90302780,693.29,CN Healthcare,SOCIAL SERVICES - OTHER,Adult Social Care & Health,Homecare - new framework,A56127,0
Royal Borough of Kingston,08/01/2024,90302995,504.21,CN Healthcare,SOCIAL SERVICES - OTHER,Adult Social Care & Health,Homecare - Framework - D2A,A56133,0
Royal Borough of Kingston,08/01/2024,90302995,504.21,CN Healthcare,SOCIAL SERVICES - OTHER,Adult Social Care & Health,Homecare - Framework - D2A,A56133,0
Royal Borough of Kingston,08/01/2024,90303010,630.35,CN Healthcare,SOCIAL SERVICES - OTHER,Adult Social Care & Health,Homecare - Framework - D2A,A56133,0
Royal Borough of Kingston,08/01/2024,90303010,630.35,CN Healthcare,SOCIAL SERVICES - OTHER,Adult Social Care & Health,Homecare - Framework - D2A,A56133,0
Royal Borough of Kingston,26/01/2024,90301987,"1,215.00",REDACTED - PERSONAL DATA,PLS LANDLORDS,Place,PSL Payments To Landlords,A22031,0
Royal Borough of Kingston,26/01/2024,90302006,"1,094.00",REDACTED - PERSONAL DATA,PLS LANDLORDS,Place,PSL Payments To Landlords,A22031,0
Royal Borough of Kingston,01/01/2024,70061763,514.39,COMETT LIMITED,ENTERTAINMENTS INDUSTRY,Adult Social Care & Health,Consultancy Services - Other,A44065,0
Royal Borough of Kingston,01/01/2024,90300906,"1,482.19",COMFORT CARE SERVICES UK LTD,SOCIAL SERVICES-HOME CARE,Adult Social Care & Health,Supported Living - new framework,A56126,0
Royal Borough of Kingston,01/01/2024,90300907,"3,163.98",COMFORT CARE SERVICES UK LTD,SOCIAL SERVICES-HOME CARE,Adult Social Care & Health,Supported Living - new framework,A56126,0
Royal Borough of Kingston,01/01/2024,90300910,"2,937.87",COMFORT CARE SERVICES UK LTD,SOCIAL SERVICES-HOME CARE,Adult Social Care & Health,Supported Living - new framework,A56126,0
Royal Borough of Kingston,01/01/2024,90300912,"1,843.84",COMFORT CARE SERVICES UK LTD,SOCIAL SERVICES-HOME CARE,Adult Social Care & Health,Supported Living - new framework,A56126,0
Royal Borough of Kingston,01/01/2024,90300913,921.92,COMFORT CARE SERVICES UK LTD,SOCIAL SERVICES-HOME CARE,Adult Social Care & Health,Supported Living - new framework,A56126,0
Royal Borough of Kingston,01/01/2024,90300915,"1,843.84",COMFORT CARE SERVICES UK LTD,SOCIAL SERVICES-HOME CARE,Adult Social Care & Health,Supported Living - new framework,A56126,0
Royal Borough of Kingston,01/01/2024,90300916,921.92,COMFORT CARE SERVICES UK LTD,SOCIAL SERVICES-HOME CARE,Adult Social Care & Health,Supported Living - new framework,A56126,0
Royal Borough of Kingston,01/01/2024,90301016,"1,976.25",COMFORT CARE SERVICES UK LTD,SOCIAL SERVICES-HOME CARE,Adult Social Care & Health,Supported Living - new framework,A56126,0
Royal Borough of Kingston,01/01/2024,90301017,790.50,COMFORT CARE SERVICES UK LTD,SOCIAL SERVICES-HOME CARE,Adult Social Care & Health,Supported Living - new framework,A56126,0
Royal Borough of Kingston,01/01/2024,90301019,933.72,COMFORT CARE SERVICES UK LTD,SOCIAL SERVICES-HOME CARE,Adult Social Care & Health,Supported Living - new framework,A56126,0
Royal Borough of Kingston,01/01/2024,90301021,"1,843.84",COMFORT CARE SERVICES UK LTD,SOCIAL SERVICES-HOME CARE,Adult Social Care & Health,Supported Living - new framework,A56126,0
Royal Borough of Kingston,01/01/2024,90301022,921.92,COMFORT CARE SERVICES UK LTD,SOCIAL SERVICES-HOME CARE,Adult Social Care & Health,Supported Living - new framework,A56126,0
Royal Borough of Kingston,01/01/2024,90301023,592.81,COMFORT CARE SERVICES UK LTD,SOCIAL SERVICES-HOME CARE,Adult Social Care & Health,Supported Living - new framework,A56126,0
Royal Borough of Kingston,01/01/2024,90301024,"1,185.75",COMFORT CARE SERVICES UK LTD,SOCIAL SERVICES-HOME CARE,Adult Social Care & Health,Supported Living - new framework,A56126,0
Royal Borough of Kingston,01/01/2024,90301028,"1,843.84",COMFORT CARE SERVICES UK LTD,SOCIAL SERVICES-HOME CARE,Adult Social Care & Health,Supported Living - new framework,A56126,0
Royal Borough of Kingston,01/01/2024,90301029,921.92,COMFORT CARE SERVICES UK LTD,SOCIAL SERVICES-HOME CARE,Adult Social Care & Health,Supported Living - new framework,A56126,0
Royal Borough of Kingston,01/01/2024,90301031,"2,213.40",COMFORT CARE SERVICES UK LTD,SOCIAL SERVICES-HOME CARE,Adult Social Care & Health,Supported Living - new framework,A56126,0
Royal Borough of Kingston,01/01/2024,90301032,553.35,COMFORT CARE SERVICES UK LTD,SOCIAL SERVICES-HOME CARE,Adult Social Care & Health,Supported Living - new framework,A56126,0
Royal Borough of Kingston,01/01/2024,90301034,"1,843.84",COMFORT CARE SERVICES UK LTD,SOCIAL SERVICES-HOME CARE,Adult Social Care & Health,Supported Living - new framework,A56126,0
Royal Borough of Kingston,01/01/2024,90301035,921.92,COMFORT CARE SERVICES UK LTD,SOCIAL SERVICES-HOME CARE,Adult Social Care & Health,Supported Living - new framework,A56126,0
Royal Borough of Kingston,01/01/2024,90301038,883.50,COMFORT CARE SERVICES UK LTD,SOCIAL SERVICES-HOME CARE,Adult Social Care & Health,Supported Living - new framework,A56126,0
Royal Borough of Kingston,01/01/2024,90301039,"2,213.40",COMFORT CARE SERVICES UK LTD,SOCIAL SERVICES-HOME CARE,Adult Social Care & Health,Supported Living - new framework,A56126,0
Royal Borough of Kingston,01/01/2024,90301040,553.35,COMFORT CARE SERVICES UK LTD,SOCIAL SERVICES-HOME CARE,Adult Social Care & Health,Supported Living - new framework,A56126,0
Royal Borough of Kingston,01/01/2024,90301042,933.72,COMFORT CARE SERVICES UK LTD,SOCIAL SERVICES-HOME CARE,Adult Social Care & Health,Supported Living - new framework,A56126,0
Royal Borough of Kingston,01/01/2024,90301044,"1,843.84",COMFORT CARE SERVICES UK LTD,SOCIAL SERVICES-HOME CARE,Adult Social Care & Health,Supported Living - new framework,A56126,0
Royal Borough of Kingston,01/01/2024,90301045,921.92,COMFORT CARE SERVICES UK LTD,SOCIAL SERVICES-HOME CARE,Adult Social Care & Health,Supported Living - new framework,A56126,0
Royal Borough of Kingston,01/01/2024,90301047,"1,843.84",COMFORT CARE SERVICES UK LTD,SOCIAL SERVICES-HOME CARE,Adult Social Care & Health,Supported Living - new framework,A56126,0
Royal Borough of Kingston,01/01/2024,90301048,921.92,COMFORT CARE SERVICES UK LTD,SOCIAL SERVICES-HOME CARE,Adult Social Care & Health,Supported Living - new framework,A56126,0
Royal Borough of Kingston,01/01/2024,90301050,"1,843.84",COMFORT CARE SERVICES UK LTD,SOCIAL SERVICES-HOME CARE,Adult Social Care & Health,Supported Living - new framework,A56126,0
Royal Borough of Kingston,01/01/2024,90301051,921.92,COMFORT CARE SERVICES UK LTD,SOCIAL SERVICES-HOME CARE,Adult Social Care & Health,Supported Living - new framework,A56126,0
Royal Borough of Kingston,01/01/2024,90301053,"1,843.84",COMFORT CARE SERVICES UK LTD,SOCIAL SERVICES-HOME CARE,Adult Social Care & Health,Supported Living - new framework,A56126,0
Royal Borough of Kingston,01/01/2024,90301054,921.92,COMFORT CARE SERVICES UK LTD,SOCIAL SERVICES-HOME CARE,Adult Social Care & Health,Supported Living - new framework,A56126,0
Royal Borough of Kingston,01/01/2024,90301059,"1,843.84",COMFORT CARE SERVICES UK LTD,SOCIAL SERVICES-HOME CARE,Adult Social Care & Health,Supported Living - new framework,A56126,0
Royal Borough of Kingston,01/01/2024,90301060,921.92,COMFORT CARE SERVICES UK LTD,SOCIAL SERVICES-HOME CARE,Adult Social Care & Health,Supported Living - new framework,A56126,0
Royal Borough of Kingston,01/01/2024,90301062,"2,213.40",COMFORT CARE SERVICES UK LTD,SOCIAL SERVICES-HOME CARE,Adult Social Care & Health,Supported Living - new framework,A56126,0
Royal Borough of Kingston,01/01/2024,90301063,553.35,COMFORT CARE SERVICES UK LTD,SOCIAL SERVICES-HOME CARE,Adult Social Care & Health,Supported Living - new framework,A56126,0
Royal Borough of Kingston,01/01/2024,90301065,"2,213.40",COMFORT CARE SERVICES UK LTD,SOCIAL SERVICES-HOME CARE,Adult Social Care & Health,Supported Living - new framework,A56126,0
Royal Borough of Kingston,01/01/2024,90301066,553.35,COMFORT CARE SERVICES UK LTD,SOCIAL SERVICES-HOME CARE,Adult Social Care & Health,Supported Living - new framework,A56126,0
Royal Borough of Kingston,01/01/2024,90301067,592.81,COMFORT CARE SERVICES UK LTD,SOCIAL SERVICES-HOME CARE,Adult Social Care & Health,Supported Living - new framework,A56126,0
Royal Borough of Kingston,01/01/2024,90301068,"1,185.75",COMFORT CARE SERVICES UK LTD,SOCIAL SERVICES-HOME CARE,Adult Social Care & Health,Supported Living - new framework,A56126,0
Royal Borough of Kingston,01/01/2024,90301073,"1,843.84",COMFORT CARE SERVICES UK LTD,SOCIAL SERVICES-HOME CARE,Adult Social Care & Health,Supported Living - new framework,A56126,0
Royal Borough of Kingston,01/01/2024,90301074,921.92,COMFORT CARE SERVICES UK LTD,SOCIAL SERVICES-HOME CARE,Adult Social Care & Health,Supported Living - new framework,A56126,0
Royal Borough of Kingston,01/01/2024,90301077,"1,843.84",COMFORT CARE SERVICES UK LTD,SOCIAL SERVICES-HOME CARE,Adult Social Care & Health,Supported Living - new framework,A56126,0
Royal Borough of Kingston,01/01/2024,90301078,921.92,COMFORT CARE SERVICES UK LTD,SOCIAL SERVICES-HOME CARE,Adult Social Care & Health,Supported Living - new framework,A56126,0
Royal Borough of Kingston,01/01/2024,90301300,"1,132.00",COMFORT CARE SERVICES UK LTD,SOCIAL SERVICES-HOME CARE,Adult Social Care & Health,Personal Budget - Third Party,A61019,0
Royal Borough of Kingston,01/01/2024,90301301,"4,509.52",COMFORT CARE SERVICES UK LTD,SOCIAL SERVICES-HOME CARE,Adult Social Care & Health,Personal Budget - Third Party,A61019,0
Royal Borough of Kingston,01/01/2024,90301303,"1,095.17",COMFORT CARE SERVICES UK LTD,SOCIAL SERVICES-HOME CARE,Adult Social Care & Health,Personal Budget - Third Party,A61019,0
Royal Borough of Kingston,01/01/2024,90301305,966.32,COMFORT CARE SERVICES UK LTD,SOCIAL SERVICES-HOME CARE,Adult Social Care & Health,Personal Budget - Third Party,A61019,0
Royal Borough of Kingston,01/01/2024,90301306,"4,509.52",COMFORT CARE SERVICES UK LTD,SOCIAL SERVICES-HOME CARE,Adult Social Care & Health,Personal Budget - Third Party,A61019,0
Royal Borough of Kingston,01/01/2024,90301308,"1,095.17",COMFORT CARE SERVICES UK LTD,SOCIAL SERVICES-HOME CARE,Adult Social Care & Health,Personal Budget - Third Party,A61019,0
Royal Borough of Kingston,01/01/2024,90301315,"1,132.00",COMFORT CARE SERVICES UK LTD,SOCIAL SERVICES-HOME CARE,Adult Social Care & Health,Personal Budget - Third Party,A61019,0
Royal Borough of Kingston,01/01/2024,90301316,"4,509.52",COMFORT CARE SERVICES UK LTD,SOCIAL SERVICES-HOME CARE,Adult Social Care & Health,Personal Budget - Third Party,A61019,0
Royal Borough of Kingston,01/01/2024,90301318,"1,095.17",COMFORT CARE SERVICES UK LTD,SOCIAL SERVICES-HOME CARE,Adult Social Care & Health,Personal Budget - Third Party,A61019,0
Royal Borough of Kingston,01/01/2024,90301382,"4,198.91",COMFORT CARE SERVICES UK LTD,SOCIAL SERVICES-HOME CARE,Adult Social Care & Health,Personal Budget - Third Party,A61019,0
Royal Borough of Kingston,01/01/2024,90301384,"1,490.93",COMFORT CARE SERVICES UK LTD,SOCIAL SERVICES-HOME CARE,Adult Social Care & Health,Personal Budget - Third Party,A61019,0
Royal Borough of Kingston,01/01/2024,90301385,"4,509.52",COMFORT CARE SERVICES UK LTD,SOCIAL SERVICES-HOME CARE,Adult Social Care & Health,Personal Budget - Third Party,A61019,0
Royal Borough of Kingston,01/01/2024,90301387,"1,095.17",COMFORT CARE SERVICES UK LTD,SOCIAL SERVICES-HOME CARE,Adult Social Care & Health,Personal Budget - Third Party,A61019,0
Royal Borough of Kingston,01/01/2024,90301398,"1,518.50",COMFORT CARE SERVICES UK LTD,SOCIAL SERVICES-HOME CARE,Adult Social Care & Health,Personal Budget - Third Party,A61019,0
Royal Borough of Kingston,01/01/2024,90301399,"4,509.52",COMFORT CARE SERVICES UK LTD,SOCIAL SERVICES-HOME CARE,Adult Social Care & Health,Personal Budget - Third Party,A61019,0
Royal Borough of Kingston,01/01/2024,90301401,"1,095.17",COMFORT CARE SERVICES UK LTD,SOCIAL SERVICES-HOME CARE,Adult Social Care & Health,Personal Budget - Third Party,A61019,0
Royal Borough of Kingston,01/01/2024,90301428,"1,601.32",COMFORT CARE SERVICES UK LTD,SOCIAL SERVICES-HOME CARE,Adult Social Care & Health,Personal Budget - Third Party,A61019,0
Royal Borough of Kingston,01/01/2024,90301429,"4,509.52",COMFORT CARE SERVICES UK LTD,SOCIAL SERVICES-HOME CARE,Adult Social Care & Health,Personal Budget - Third Party,A61019,0
Royal Borough of Kingston,01/01/2024,90301431,"1,095.17",COMFORT CARE SERVICES UK LTD,SOCIAL SERVICES-HOME CARE,Adult Social Care & Health,Personal Budget - Third Party,A61019,0
Royal Borough of Kingston,01/01/2024,90301493,"3,084.77",COMFORT CARE SERVICES UK LTD,SOCIAL SERVICES-HOME CARE,Adult Social Care & Health,Personal Budget - Third Party,A61019,0
Royal Borough of Kingston,01/01/2024,90300575,"8,781.64",CONGRESS HOUSE LIMITED,SOCIAL SERVICES RESIDENTIAL,Adult Social Care & Health,Independent Placements,A56006,0
Royal Borough of Kingston,26/01/2024,90302269,842.00,REDACTED - PERSONAL DATA,PLS LANDLORDS,Place,PSL Payments To Landlords,A22031,0
Royal Borough of Kingston,05/01/2024,90295757,"16,780.50",COOMBE ACADEMY TRUST,SCHOOL FUNDS,Schools,Miscellaneous Expenses,A49000,0
Royal Borough of Kingston,11/01/2024,90297646,"1,695.00",COOMBE ACADEMY TRUST,SCHOOL FUNDS,Schools,Miscellaneous Expenses,A49000,0
Royal Borough of Kingston,24/01/2024,90299887,"3,944.00",COOMBE ACADEMY TRUST,SCHOOL FUNDS,Schools,Miscellaneous Expenses,A49000,0
Royal Borough of Kingston,24/01/2024,90299890,"2,500.00",COOMBE GIRLS SCHOOL,SCHOOL FUNDS,Schools,Miscellaneous Expenses,A49000,0
Royal Borough of Kingston,04/01/2024,90295664,"115,549.93",COOMBE HILL INFANTS SCHOOL,SCHOOL FUNDS,Schools,Miscellaneous Expenses,A49000,0
Royal Borough of Kingston,04/01/2024,90295665,"152,594.06",COOMBE HILL JUNIOR SCHOOL,SCHOOL FUNDS,Schools,Miscellaneous Expenses,A49000,0
Royal Borough of Kingston,31/12/2023,70062410,600.00,COOMBE HILL PHARMACY,SOCIAL SERVICES - OTHER,Adult Social Care & Health,Other Private Contractors - Third Party,A56080,0
Royal Borough of Kingston,30/06/2023,70063139,968.90,COOMBE HILL PHARMACY,SOCIAL SERVICES - OTHER,Adult Social Care & Health,Other Private Contractors - Third Party,A56080,0
Royal Borough of Kingston,04/01/2024,90295666,"153,762.37",CORPUS CHRISTI CATHOLIC PRIMARY SCHOOL ,SCHOOL FUNDS,Schools,Miscellaneous Expenses,A49000,0
Royal Borough of Kingston,05/01/2024,90295748,"20,848.50",CORPUS CHRISTI CATHOLIC PRIMARY SCHOOL ,SCHOOL FUNDS,Schools,Miscellaneous Expenses,A49000,0
Royal Borough of Kingston,24/01/2024,90299891,"4,167.00",CORPUS CHRISTI CATHOLIC PRIMARY SCHOOL ,SCHOOL FUNDS,Schools,Miscellaneous Expenses,A49000,0
Royal Borough of Kingston,01/01/2024,90295861,"4,392.86",COUNTRY COURT CARE HOMES 2 LTD,SOCIAL SERVICES RESIDENTIAL,Adult Social Care & Health,Independent Placements,A56006,0
Royal Borough of Kingston,01/01/2024,90295862,"-4,392.86",COUNTRY COURT CARE HOMES 2 LTD,SOCIAL SERVICES RESIDENTIAL,Adult Social Care & Health,Independent Placements,A56006,0
Royal Borough of Kingston,01/01/2024,90295864,"-3,660.71",COUNTRY COURT CARE HOMES 2 LTD,SOCIAL SERVICES RESIDENTIAL,Adult Social Care & Health,Independent Placements,A56006,0
Royal Borough of Kingston,01/01/2024,90296595,"2,342.86",COUNTRY COURT CARE HOMES 2 LTD,SOCIAL SERVICES RESIDENTIAL,Adult Social Care & Health,Care Home - D2A Short term,A56137,0
Royal Borough of Kingston,01/01/2024,90296595,"2,342.86",COUNTRY COURT CARE HOMES 2 LTD,SOCIAL SERVICES RESIDENTIAL,Adult Social Care & Health,Care Home - D2A Short term,A56137,0
Royal Borough of Kingston,01/01/2024,90296596,"-2,342.86",COUNTRY COURT CARE HOMES 2 LTD,SOCIAL SERVICES RESIDENTIAL,Adult Social Care & Health,Care Home - D2A Short term,A56137,0
Royal Borough of Kingston,01/01/2024,90296596,"-2,342.86",COUNTRY COURT CARE HOMES 2 LTD,SOCIAL SERVICES RESIDENTIAL,Adult Social Care & Health,Care Home - D2A Short term,A56137,0
Royal Borough of Kingston,01/01/2024,90296597,"1,025.00",COUNTRY COURT CARE HOMES 2 LTD,SOCIAL SERVICES RESIDENTIAL,Adult Social Care & Health,Care Home - D2A Short term,A56137,0
Royal Borough of Kingston,01/01/2024,90296597,"1,025.00",COUNTRY COURT CARE HOMES 2 LTD,SOCIAL SERVICES RESIDENTIAL,Adult Social Care & Health,Care Home - D2A Short term,A56137,0
Royal Borough of Kingston,01/01/2024,90296598,"-1,171.43",COUNTRY COURT CARE HOMES 2 LTD,SOCIAL SERVICES RESIDENTIAL,Adult Social Care & Health,Care Home - D2A Short term,A56137,0
Royal Borough of Kingston,01/01/2024,90296598,"-1,171.43",COUNTRY COURT CARE HOMES 2 LTD,SOCIAL SERVICES RESIDENTIAL,Adult Social Care & Health,Care Home - D2A Short term,A56137,0
Royal Borough of Kingston,01/01/2024,90299952,"3,872.79",COUNTRY COURT CARE HOMES 2 LTD,SOCIAL SERVICES RESIDENTIAL,Adult Social Care & Health,Independent Placements,A56006,0
Royal Borough of Kingston,01/01/2024,90300083,"3,705.34",COUNTRY COURT CARE HOMES 2 LTD,SOCIAL SERVICES RESIDENTIAL,Adult Social Care & Health,Independent Placements,A56006,0
Royal Borough of Kingston,01/01/2024,90300088,"3,952.50",COUNTRY COURT CARE HOMES 2 LTD,SOCIAL SERVICES RESIDENTIAL,Adult Social Care & Health,Independent Placements,A56006,0
Royal Borough of Kingston,01/01/2024,90300111,"4,539.29",COUNTRY COURT CARE HOMES 2 LTD,SOCIAL SERVICES RESIDENTIAL,Adult Social Care & Health,Independent Placements,A56006,0
Royal Borough of Kingston,01/01/2024,90300368,"3,764.29",COUNTRY COURT CARE HOMES 2 LTD,SOCIAL SERVICES RESIDENTIAL,Adult Social Care & Health,Independent Placements,A56006,0
Royal Borough of Kingston,31/12/2023,70062010,"113,161.17",COUNTRYSIDE PROPERTIES (UK) LTD,CONSTRUCTION INDUSTRY,Housing Revenue Account,Payments to Contractors,C14000,0
Royal Borough of Kingston,31/12/2023,70062011,"493,569.77",COUNTRYSIDE PROPERTIES (UK) LTD,CONSTRUCTION INDUSTRY,Housing Revenue Account,Payments to Contractors,C14000,0
Royal Borough of Kingston,31/12/2023,70062012,"1,283,138.75",COUNTRYSIDE PROPERTIES (UK) LTD,CONSTRUCTION INDUSTRY,Housing Revenue Account,Payments to Contractors,C14000,0
Royal Borough of Kingston,30/11/2023,70060417,"90,066.96",CRAVENCROFT LTD,CONSTRUCTION INDUSTRY,Place,Payments to Contractors,C14000,0
Royal Borough of Kingston,24/11/2023,70061530,"14,573.57",CRAVENCROFT LTD,CONSTRUCTION INDUSTRY,Place,Payments to Contractors,C14000,0
Royal Borough of Kingston,16/01/2024,70062682,"2,806.00",CRAVENCROFT LTD,CONSTRUCTION INDUSTRY,Place,Payments to Contractors,C14000,0
Royal Borough of Kingston,16/01/2024,70062683,929.20,CRAVENCROFT LTD,CONSTRUCTION INDUSTRY,Place,Payments to Contractors,C14000,0
Royal Borough of Kingston,20/12/2023,70061301,"1,550.40",Credence Direct Limited,TEMP STAFF & CONSULTANCY,Adult Social Care & Health,Other Private Contractors - Third Party,A56080,0
Royal Borough of Kingston,26/01/2024,90302026,"2,144.08",CROMWOOD LIMITED,PLS LANDLORDS,Place,PSL Payments To Landlords,A22031,0
Royal Borough of Kingston,31/12/2023,70062574,460.00,CROWN PROMOTIONS & REMOVALS LTD,PREMISES - REMOVALS,Housing Revenue Account,Buildings - Project Management,C14003,0
Royal Borough of Kingston,31/12/2023,70062577,665.00,CROWN PROMOTIONS & REMOVALS LTD,PREMISES - REMOVALS,Housing Revenue Account,Buildings - Project Management,C14003,0
Royal Borough of Kingston,31/12/2023,70062578,600.00,CROWN PROMOTIONS & REMOVALS LTD,PREMISES - REMOVALS,Housing Revenue Account,Buildings - Project Management,C14003,0
Royal Borough of Kingston,31/12/2023,70062579,440.00,CROWN PROMOTIONS & REMOVALS LTD,PREMISES - REMOVALS,Housing Revenue Account,Buildings - Project Management,C14003,0
Royal Borough of Kingston,31/12/2023,70062580,520.00,CROWN PROMOTIONS & REMOVALS LTD,PREMISES - REMOVALS,Housing Revenue Account,Buildings - Project Management,C14003,0
Royal Borough of Kingston,31/12/2023,70062582,760.00,CROWN PROMOTIONS & REMOVALS LTD,PREMISES - REMOVALS,Housing Revenue Account,Buildings - Project Management,C14003,0
Royal Borough of Kingston,31/12/2023,70062583,520.00,CROWN PROMOTIONS & REMOVALS LTD,PREMISES - REMOVALS,Housing Revenue Account,Buildings - Project Management,C14003,0
Royal Borough of Kingston,01/01/2024,70062557,"2,325.00",CRYSTAL & CO,ACCOMMODATION BED & BREAKFAST,Place,Bed & Breakfast,A56000,0
Royal Borough of Kingston,01/01/2024,70062558,"2,635.00",CRYSTAL & CO,ACCOMMODATION BED & BREAKFAST,Place,Bed & Breakfast,A56000,0
Royal Borough of Kingston,01/01/2024,70062559,"1,395.00",CRYSTAL & CO,ACCOMMODATION BED & BREAKFAST,Place,Bed & Breakfast,A56000,0
Royal Borough of Kingston,01/01/2024,70062560,"2,232.00",CRYSTAL & CO,ACCOMMODATION BED & BREAKFAST,Place,Bed & Breakfast,A56000,0
Royal Borough of Kingston,01/01/2024,70062561,"2,232.00",CRYSTAL & CO,ACCOMMODATION BED & BREAKFAST,Place,Bed & Breakfast,A56000,0
Royal Borough of Kingston,01/01/2024,70062564,"1,736.00",CRYSTAL & CO,ACCOMMODATION BED & BREAKFAST,Place,Bed & Breakfast,A56000,0
Royal Borough of Kingston,01/01/2024,70062565,"1,988.00",CRYSTAL & CO,ACCOMMODATION BED & BREAKFAST,Place,Bed & Breakfast,A56000,0
Royal Borough of Kingston,01/01/2024,70062566,"2,325.00",CRYSTAL & CO,ACCOMMODATION BED & BREAKFAST,Place,Bed & Breakfast,A56000,0
Royal Borough of Kingston,01/01/2024,70062567,"2,480.00",CRYSTAL & CO,ACCOMMODATION BED & BREAKFAST,Place,Bed & Breakfast,A56000,0
Royal Borough of Kingston,01/01/2024,70062568,"2,015.00",CRYSTAL & CO,ACCOMMODATION BED & BREAKFAST,Place,Bed & Breakfast,A56000,0
Royal Borough of Kingston,01/01/2024,70062569,"2,046.00",CRYSTAL & CO,ACCOMMODATION BED & BREAKFAST,Place,Bed & Breakfast,A56000,0
Royal Borough of Kingston,01/01/2024,70062570,"1,984.00",CRYSTAL & CO,ACCOMMODATION BED & BREAKFAST,Place,Bed & Breakfast,A56000,0
Royal Borough of Kingston,01/01/2024,70062797,"1,736.00",CRYSTAL & CO,ACCOMMODATION BED & BREAKFAST,Place,Bed & Breakfast,A56000,0
Royal Borough of Kingston,05/01/2024,90295752,"17,797.50",KNOLLMEAD PRIMARY SCHOOL,SCHOOL FUNDS,Schools,Miscellaneous Expenses,A49000,0
Royal Borough of Kingston,29/12/2023,70061506,"7,147.74",CUBE CONTENT GOVERNANCE  LIMITED,TRAINING,Corporate & Communities,ICT Expenses,A45009,0
Royal Borough of Kingston,31/12/2023,70061784,"10,978.13",Cushman and Wakefield Debenham Tie Leung Ltd,SUNDRY SUPPLIER - FINANCE,Place,Property-Related Professional Fees,A20035,0
Royal Borough of Kingston,26/01/2024,90302107,"1,317.00",REDACTED - PERSONAL DATA,PLS LANDLORDS,Place,PSL Payments To Landlords,A22031,0
Royal Borough of Kingston,19/12/2023,70061273,"1,665.00",D & L House Clearance Limited,BUILDING MNTCE - SERVICES,Corporate & Communities,Grants Given For Capital Purposes,C20004,0
Royal Borough of Kingston,04/01/2024,70061654,"1,854.00",D & L House Clearance Limited,BUILDING MNTCE - SERVICES,Corporate & Communities,Grants Given For Capital Purposes,C20004,0
Royal Borough of Kingston,26/01/2024,90302175,"1,321.66",REDACTED - PERSONAL DATA,PLS LANDLORDS,Place,PSL Payments To Landlords,A22031,0
Royal Borough of Kingston,01/01/2024,90301504,"5,523.40",Daniels care ltd,SOCIAL SERVICES RESIDENTIAL,Adult Social Care & Health,Personal Budget - Third Party,A61019,0
Royal Borough of Kingston,01/01/2024,90301126,"1,153.75",Darethealthcare UK Limited,ACCOMMODATION - OTHER,Adult Social Care & Health,S-L non - framework - Managed Service - S - L,A56162,0
Royal Borough of Kingston,01/01/2024,90301126,"1,153.75",Darethealthcare UK Limited,ACCOMMODATION - OTHER,Adult Social Care & Health,S-L non - framework - Managed Service - S - L,A56162,0
Royal Borough of Kingston,01/01/2024,90301127,"2,751.25",Darethealthcare UK Limited,ACCOMMODATION - OTHER,Adult Social Care & Health,S-L non - framework - Managed Service - S - L,A56162,0
Royal Borough of Kingston,01/01/2024,90301127,"2,751.25",Darethealthcare UK Limited,ACCOMMODATION - OTHER,Adult Social Care & Health,S-L non - framework - Managed Service - S - L,A56162,0
Royal Borough of Kingston,01/01/2024,90301140,"2,878.44",Darethealthcare UK Limited,ACCOMMODATION - OTHER,Adult Social Care & Health,Personal Budget - Third Party,A61019,0
Royal Borough of Kingston,01/01/2024,90301517,"3,203.85",Darethealthcare UK Limited,ACCOMMODATION - OTHER,Adult Social Care & Health,Personal Budget - Third Party,A61019,0
Royal Borough of Kingston,01/01/2024,90301526,-680.97,Darethealthcare UK Limited,ACCOMMODATION - OTHER,Adult Social Care & Health,Personal Budget - Third Party,A61019,0
Royal Borough of Kingston,02/11/2023,70062377,960.00,Dariba Design Limited,SUNDRY SUPPLIER - HOUSING,Corporate & Communities,Grants Given For Capital Purposes,C20004,0
Royal Borough of Kingston,02/01/2024,90295495,500.00,REDACTED - PERSONAL DATA,GRANTS & EX GRATIA PAYMENTS,Adult Social Care & Health,"Grants, Contributions & Donations",A47005,0
Royal Borough of Kingston,26/01/2024,90302245,"1,400.00",REDACTED - PERSONAL DATA,PLS LANDLORDS,Place,PSL Payments To Landlords,A22031,0
Royal Borough of Kingston,26/01/2024,90302172,"1,094.00",REDACTED - PERSONAL DATA,PLS LANDLORDS,Place,PSL Payments To Landlords,A22031,0
Royal Borough of Kingston,26/01/2024,90302263,"1,000.00",REDACTED - PERSONAL DATA,PLS LANDLORDS,Place,PSL Payments To Landlords,A22031,0
Royal Borough of Kingston,02/01/2024,90295499,500.00,REDACTED - PERSONAL DATA,GRANTS & EX GRATIA PAYMENTS,Adult Social Care & Health,"Grants, Contributions & Donations",A47005,0
Royal Borough of Kingston,02/01/2024,90295498,500.00,REDACTED - PERSONAL DATA,CHARITIES & VOLUNTARY ORGNS,Adult Social Care & Health,"Grants, Contributions & Donations",A47005,0
Royal Borough of Kingston,26/01/2024,90302193,"1,094.00",REDACTED - PERSONAL DATA,PLS LANDLORDS,Place,PSL Payments To Landlords,A22031,0
Royal Borough of Kingston,02/01/2024,70061607,"2,976.00",Delta Wise Limited,ACCOMMODATION BED & BREAKFAST,Place,Bed & Breakfast,A56000,0
Royal Borough of Kingston,02/01/2024,70061608,"3,069.00",Delta Wise Limited,ACCOMMODATION BED & BREAKFAST,Place,Bed & Breakfast,A56000,0
Royal Borough of Kingston,02/01/2024,70061609,"2,635.00",Delta Wise Limited,ACCOMMODATION BED & BREAKFAST,Place,Bed & Breakfast,A56000,0
Royal Borough of Kingston,02/01/2024,70061610,"4,092.00",Delta Wise Limited,ACCOMMODATION BED & BREAKFAST,Place,Bed & Breakfast,A56000,0
Royal Borough of Kingston,02/01/2024,70061611,"2,635.00",Delta Wise Limited,ACCOMMODATION BED & BREAKFAST,Place,Bed & Breakfast,A56000,0
Royal Borough of Kingston,02/01/2024,70061614,670.00,Delta Wise Limited,ACCOMMODATION BED & BREAKFAST,Place,Bed & Breakfast,A56000,0
Royal Borough of Kingston,02/01/2024,70061615,"2,635.00",Delta Wise Limited,ACCOMMODATION BED & BREAKFAST,Place,Bed & Breakfast,A56000,0
Royal Borough of Kingston,02/01/2024,70061616,"3,565.00",Delta Wise Limited,ACCOMMODATION BED & BREAKFAST,Place,Bed & Breakfast,A56000,0
Royal Borough of Kingston,02/01/2024,70061617,"3,720.00",Delta Wise Limited,ACCOMMODATION BED & BREAKFAST,Place,Bed & Breakfast,A56000,0
Royal Borough of Kingston,02/01/2024,70061618,"3,565.00",Delta Wise Limited,ACCOMMODATION BED & BREAKFAST,Place,Bed & Breakfast,A56000,0
Royal Borough of Kingston,02/01/2024,70061619,"4,402.00",Delta Wise Limited,ACCOMMODATION BED & BREAKFAST,Place,Bed & Breakfast,A56000,0
Royal Borough of Kingston,02/01/2024,70061620,"5,115.00",Delta Wise Limited,ACCOMMODATION BED & BREAKFAST,Place,Bed & Breakfast,A56000,0
Royal Borough of Kingston,02/01/2024,70061641,"2,170.00",Delta Wise Limited,ACCOMMODATION BED & BREAKFAST,Place,Bed & Breakfast,A56000,0
Royal Borough of Kingston,01/01/2024,90301489,"6,998.25",Dephinus Healthcare Ltd,ACCOMMODATION - OTHER,Adult Social Care & Health,Personal Budget - Third Party,A61019,0
Royal Borough of Kingston,01/01/2024,90301506,"7,803.32",Dephinus Healthcare Ltd,ACCOMMODATION - OTHER,Adult Social Care & Health,Personal Budget - Third Party,A61019,0
Royal Borough of Kingston,01/01/2024,90301507,"7,207.50",Dephinus Healthcare Ltd,ACCOMMODATION - OTHER,Adult Social Care & Health,Personal Budget - Third Party,A61019,0
Royal Borough of Kingston,01/01/2024,90301508,"15,677.14",Dephinus Healthcare Ltd,ACCOMMODATION - OTHER,Adult Social Care & Health,Personal Budget - Third Party,A61019,0
Royal Borough of Kingston,01/01/2024,90301525,"6,184.94",Dephinus Healthcare Ltd,ACCOMMODATION - OTHER,Adult Social Care & Health,Personal Budget - Third Party,A61019,0
Royal Borough of Kingston,03/01/2024,70061522,"1,150.00",DEXTERS LIMITED,LANDLORDS,Adult Social Care & Health,Building Rents,A22005,0
Royal Borough of Kingston,26/01/2024,90301918,"1,321.00",REDACTED - PERSONAL DATA,PLS LANDLORDS,Place,PSL Payments To Landlords,A22031,0
Royal Borough of Kingston,05/01/2024,90295698,"34,069.50",DICKY BIRDS PRE SCHOOL NURSERIES LTD,ACADEMIC INSTNS - OTHER,Schools,PVI Providers,A60014,0
Royal Borough of Kingston,05/01/2024,90295724,"26,391.15",DICKY BIRDS PRE SCHOOL NURSERIES LTD,ACADEMIC INSTNS - OTHER,Schools,PVI Providers,A60014,0
Royal Borough of Kingston,05/01/2024,90295780,"20,340.00",DICKY BIRDS PRE SCHOOL NURSERIES LTD,ACADEMIC INSTNS - OTHER,Schools,PVI Providers,A60014,0
Royal Borough of Kingston,05/01/2024,90295819,607.50,DICKY BIRDS PRE SCHOOL NURSERIES LTD,ACADEMIC INSTNS - OTHER,Schools,2 Yr Old Place Funding,A60000,0
Royal Borough of Kingston,05/01/2024,90295833,607.50,DICKY BIRDS PRE SCHOOL NURSERIES LTD,ACADEMIC INSTNS - OTHER,Schools,2 Yr Old Place Funding,A60000,0
Royal Borough of Kingston,02/01/2024,90295500,500.00,REDACTED - PERSONAL DATA,GRANTS & EX GRATIA PAYMENTS,Adult Social Care & Health,"Grants, Contributions & Donations",A47005,0
Royal Borough of Kingston,31/12/2023,70061882,"17,302.00",DISCLOSURE AND BARRING SERVICE T/A GBS RE DBS POA,LEGAL & PROFESSIONAL SERVICES,Corporate & Communities,DBS Checks,A15029,0
Royal Borough of Kingston,26/01/2024,90302242,"1,094.33",REDACTED - PERSONAL DATA,PLS LANDLORDS,Place,PSL Payments To Landlords,A22031,0
Royal Borough of Kingston,26/01/2024,90302243,867.83,REDACTED - PERSONAL DATA,PLS LANDLORDS,Place,PSL Payments To Landlords,A22031,0
Royal Borough of Kingston,11/01/2024,70062373,"1,546.90",DMA SIGNS LTD,BUILDING MNTCE - SERVICES,Housing Revenue Account,Lighting and Signs,A25006,0
Royal Borough of Kingston,21/11/2023,70061025,"3,135.00",DOLPHIN MOBILITY LIMITED,CONSTRUCTION INDUSTRY,Corporate & Communities,Grants Given For Capital Purposes,C20004,0
Royal Borough of Kingston,18/12/2023,70061276,"5,757.00",DOLPHIN MOBILITY LIMITED,CONSTRUCTION INDUSTRY,Corporate & Communities,Grants Given For Capital Purposes,C20004,0
Royal Borough of Kingston,15/11/2023,70061369,"2,920.00",DOLPHIN MOBILITY LIMITED,CONSTRUCTION INDUSTRY,Corporate & Communities,Grants Given For Capital Purposes,C20004,0
Royal Borough of Kingston,05/01/2024,90295717,"18,814.50",DORIS VENNER PRE-SCHOOL,ACADEMIC INSTNS - OTHER,Schools,PVI Providers,A60014,0
Royal Borough of Kingston,05/01/2024,90295814,"5,467.50",DORIS VENNER PRE-SCHOOL,ACADEMIC INSTNS - OTHER,Schools,2 Yr Old Place Funding,A60000,0
Royal Borough of Kingston,11/01/2024,90297626,"1,350.00",DORIS VENNER PRE-SCHOOL,ACADEMIC INSTNS - OTHER,Schools,2 Yr Old Place Funding,A60000,0
Royal Borough of Kingston,11/01/2024,90297636,678.00,DORIS VENNER PRE-SCHOOL,ACADEMIC INSTNS - OTHER,Schools,PVI Providers,A60014,0
Royal Borough of Kingston,01/01/2024,90300691,"5,811.57",DOWNING (CHERTSEY ROAD) LTD,SOCIAL SERVICES RESIDENTIAL,Adult Social Care & Health,Independent Placements,A56006,0
Royal Borough of Kingston,01/01/2024,90301634,-748.87,DOWNING (CHERTSEY ROAD) LTD,SOCIAL SERVICES RESIDENTIAL,Adult Social Care & Health,Financially Assessed Contributions clients � Non VAT,A92047,0
Royal Borough of Kingston,26/01/2024,90301923,"1,675.00",REDACTED - PERSONAL DATA,PLS LANDLORDS,Place,PSL Payments To Landlords,A22031,0
Royal Borough of Kingston,26/01/2024,90302214,"1,314.00",REDACTED - PERSONAL DATA,PLS LANDLORDS,Place,PSL Payments To Landlords,A22031,0
Royal Borough of Kingston,26/01/2024,90302049,"1,090.00",REDACTED - PERSONAL DATA,PLS LANDLORDS,Place,PSL Payments To Landlords,A22031,0
Royal Borough of Kingston,02/12/2023,70060847,"1,270.98",REDACTED - PERSONAL DATA,TEMP STAFF & CONSULTANCY,Adult Social Care & Health,Other Private Contractors - Third Party,A56080,0
Royal Borough of Kingston,26/01/2024,90301904,"1,314.00",REDACTED - PERSONAL DATA,PLS LANDLORDS,Place,PSL Payments To Landlords,A22031,0
Royal Borough of Kingston,29/12/2023,70063132,"4,968.08",DS CALLARDS LIMITED,OPERATIONAL EQUIPMENT/MATERIAL,Adult Social Care & Health,IT Software Maintenance,A45045,0
Royal Borough of Kingston,31/12/2023,70062122,"1,705.00",Dunheved Hotel LTD,ACCOMMODATION BED & BREAKFAST,Place,Bed & Breakfast,A56000,0
Royal Borough of Kingston,31/12/2023,70061501,"8,783.37",DURADIAMOND HEALTHCARE LIMITED,LEGAL & PROFESSIONAL SERVICES,Corporate & Communities,Other Private Contractors - Third Party,A56080,0
Royal Borough of Kingston,31/12/2023,70061502,"9,330.31",DURADIAMOND HEALTHCARE LIMITED,LEGAL & PROFESSIONAL SERVICES,Corporate & Communities,Other Private Contractors - Third Party,A56080,0
Royal Borough of Kingston,05/01/2024,90295703,"1,254.30",REDACTED - PERSONAL DATA,CHILDMINDERS START UP GRANT,Schools,PVI Providers,A60014,0
Royal Borough of Kingston,05/01/2024,90295792,"1,017.00",REDACTED - PERSONAL DATA,CHILDMINDERS START UP GRANT,Schools,PVI Providers,A60014,0
Royal Borough of Kingston,26/01/2024,90302069,"1,094.00",EARLSFIELD PROPERTIES,PLS LANDLORDS,Place,PSL Payments To Landlords,A22031,0
Royal Borough of Kingston,26/01/2024,90302070,"1,094.00",EARLSFIELD PROPERTIES,PLS LANDLORDS,Place,PSL Payments To Landlords,A22031,0
Royal Borough of Kingston,26/01/2024,90302289,"1,047.00",EARLSFIELD PROPERTIES,PLS LANDLORDS,Place,PSL Payments To Landlords,A22031,0
Royal Borough of Kingston,01/12/2023,70060665,"1,035.82",EDF ENERGY CUSTOMER PLC,UTILITIES,Housing Revenue Account,Electricity,A21000,0
Royal Borough of Kingston,01/12/2023,70060665,-67.00,EDF ENERGY CUSTOMER PLC,UTILITIES,Housing Revenue Account,Electricity,A21000,0
Royal Borough of Kingston,10/05/2023,70061497,"1,461.64",EDF ENERGY CUSTOMER PLC,UTILITIES,Housing Revenue Account,Gas,A21003,0
Royal Borough of Kingston,21/12/2023,70062001,613.18,EDF ENERGY CUSTOMER PLC,UTILITIES,Housing Revenue Account,Electricity,A21000,0
Royal Borough of Kingston,20/12/2023,70061295,875.00,EDGE TRAINING AND CONSULTANCY LTD,TRAINING,Adult Social Care & Health,Staff Development And Training,A15022,0
Royal Borough of Kingston,20/12/2023,70061304,975.00,EDGE TRAINING AND CONSULTANCY LTD,TRAINING,Adult Social Care & Health,Staff Development And Training,A15022,0
Royal Borough of Kingston,20/12/2023,70061305,875.00,EDGE TRAINING AND CONSULTANCY LTD,TRAINING,Adult Social Care & Health,Staff Development And Training,A15022,0
Royal Borough of Kingston,05/01/2024,90295735,"3,051.00",EDUCARE SMALL SCHOOL LTD,ACADEMIC INSTNS - OTHER,Schools,PVI Providers,A60014,0
Royal Borough of Kingston,26/01/2024,90301936,"1,050.00",REDACTED - PERSONAL DATA,PLS LANDLORDS,Place,PSL Payments To Landlords,A22031,0
Royal Borough of Kingston,26/01/2024,90301954,"1,200.00",REDACTED - PERSONAL DATA,PLS LANDLORDS,Place,PSL Payments To Landlords,A22031,0
Royal Borough of Kingston,02/01/2024,90295501,500.00,REDACTED - PERSONAL DATA,CHARITIES & VOLUNTARY ORGNS,Adult Social Care & Health,"Grants, Contributions & Donations",A47005,0
Royal Borough of Kingston,05/01/2024,90295749,"5,085.00",ELLINGHAM PRIMARY SCHOOL,SCHOOL FUNDS,Schools,Miscellaneous Expenses,A49000,0
Royal Borough of Kingston,05/01/2024,90295821,"1,822.50",ELLINGHAM PRIMARY SCHOOL,SCHOOL FUNDS,Schools,2 Yr Old Place Funding,A60000,0
Royal Borough of Kingston,01/01/2024,90298973,"2,042.88",ELYSIUM HEALTHCARE LTD,SOCIAL SERVICES - OTHER,Adult Social Care & Health,Independent Placements,A56006,0
Royal Borough of Kingston,01/01/2024,90300412,"10,139.66",ELYSIUM HEALTHCARE LTD,SOCIAL SERVICES - OTHER,Adult Social Care & Health,Independent Placements,A56006,0
Royal Borough of Kingston,01/01/2024,90300413,"-10,044.00",ELYSIUM HEALTHCARE LTD,SOCIAL SERVICES - OTHER,Adult Social Care & Health,Independent Placements,A56006,0
Royal Borough of Kingston,01/01/2024,90300414,"10,477.65",ELYSIUM HEALTHCARE LTD,SOCIAL SERVICES - OTHER,Adult Social Care & Health,Independent Placements,A56006,0
Royal Borough of Kingston,01/01/2024,90300415,"-10,378.80",ELYSIUM HEALTHCARE LTD,SOCIAL SERVICES - OTHER,Adult Social Care & Health,Independent Placements,A56006,0
Royal Borough of Kingston,01/01/2024,90300416,"10,139.66",ELYSIUM HEALTHCARE LTD,SOCIAL SERVICES - OTHER,Adult Social Care & Health,Independent Placements,A56006,0
Royal Borough of Kingston,01/01/2024,90300417,"-10,044.00",ELYSIUM HEALTHCARE LTD,SOCIAL SERVICES - OTHER,Adult Social Care & Health,Independent Placements,A56006,0
Royal Borough of Kingston,01/01/2024,90300418,"10,477.65",ELYSIUM HEALTHCARE LTD,SOCIAL SERVICES - OTHER,Adult Social Care & Health,Independent Placements,A56006,0
Royal Borough of Kingston,01/01/2024,90300419,"-10,378.80",ELYSIUM HEALTHCARE LTD,SOCIAL SERVICES - OTHER,Adult Social Care & Health,Independent Placements,A56006,0
Royal Borough of Kingston,01/01/2024,90300420,"10,477.65",ELYSIUM HEALTHCARE LTD,SOCIAL SERVICES - OTHER,Adult Social Care & Health,Independent Placements,A56006,0
Royal Borough of Kingston,01/01/2024,90300421,"-10,378.80",ELYSIUM HEALTHCARE LTD,SOCIAL SERVICES - OTHER,Adult Social Care & Health,Independent Placements,A56006,0
Royal Borough of Kingston,01/01/2024,90300422,"10,139.66",ELYSIUM HEALTHCARE LTD,SOCIAL SERVICES - OTHER,Adult Social Care & Health,Independent Placements,A56006,0
Royal Borough of Kingston,01/01/2024,90300423,"-10,044.00",ELYSIUM HEALTHCARE LTD,SOCIAL SERVICES - OTHER,Adult Social Care & Health,Independent Placements,A56006,0
Royal Borough of Kingston,01/01/2024,90300424,"10,477.65",ELYSIUM HEALTHCARE LTD,SOCIAL SERVICES - OTHER,Adult Social Care & Health,Independent Placements,A56006,0
Royal Borough of Kingston,01/01/2024,90300425,"-10,378.80",ELYSIUM HEALTHCARE LTD,SOCIAL SERVICES - OTHER,Adult Social Care & Health,Independent Placements,A56006,0
Royal Borough of Kingston,01/01/2024,90300426,"10,139.66",ELYSIUM HEALTHCARE LTD,SOCIAL SERVICES - OTHER,Adult Social Care & Health,Independent Placements,A56006,0
Royal Borough of Kingston,01/01/2024,90300427,"-10,044.00",ELYSIUM HEALTHCARE LTD,SOCIAL SERVICES - OTHER,Adult Social Care & Health,Independent Placements,A56006,0
Royal Borough of Kingston,01/01/2024,90300428,"10,477.65",ELYSIUM HEALTHCARE LTD,SOCIAL SERVICES - OTHER,Adult Social Care & Health,Independent Placements,A56006,0
Royal Borough of Kingston,01/01/2024,90300429,"-10,378.80",ELYSIUM HEALTHCARE LTD,SOCIAL SERVICES - OTHER,Adult Social Care & Health,Independent Placements,A56006,0
Royal Borough of Kingston,01/01/2024,90300430,"10,477.65",ELYSIUM HEALTHCARE LTD,SOCIAL SERVICES - OTHER,Adult Social Care & Health,Independent Placements,A56006,0
Royal Borough of Kingston,01/01/2024,90300438,"9,782.91",ELYSIUM HEALTHCARE LTD,SOCIAL SERVICES - OTHER,Adult Social Care & Health,Independent Placements,A56006,0
Royal Borough of Kingston,01/01/2024,90300439,"-9,690.60",ELYSIUM HEALTHCARE LTD,SOCIAL SERVICES - OTHER,Adult Social Care & Health,Independent Placements,A56006,0
Royal Borough of Kingston,01/01/2024,90300440,"10,109.01",ELYSIUM HEALTHCARE LTD,SOCIAL SERVICES - OTHER,Adult Social Care & Health,Independent Placements,A56006,0
Royal Borough of Kingston,01/01/2024,90300441,"-10,013.62",ELYSIUM HEALTHCARE LTD,SOCIAL SERVICES - OTHER,Adult Social Care & Health,Independent Placements,A56006,0
Royal Borough of Kingston,01/01/2024,90300442,"9,782.91",ELYSIUM HEALTHCARE LTD,SOCIAL SERVICES - OTHER,Adult Social Care & Health,Independent Placements,A56006,0
Royal Borough of Kingston,01/01/2024,90300443,"-9,690.60",ELYSIUM HEALTHCARE LTD,SOCIAL SERVICES - OTHER,Adult Social Care & Health,Independent Placements,A56006,0
Royal Borough of Kingston,01/01/2024,90300444,"10,109.01",ELYSIUM HEALTHCARE LTD,SOCIAL SERVICES - OTHER,Adult Social Care & Health,Independent Placements,A56006,0
Royal Borough of Kingston,01/01/2024,90300445,"-10,013.62",ELYSIUM HEALTHCARE LTD,SOCIAL SERVICES - OTHER,Adult Social Care & Health,Independent Placements,A56006,0
Royal Borough of Kingston,01/01/2024,90300446,"10,109.01",ELYSIUM HEALTHCARE LTD,SOCIAL SERVICES - OTHER,Adult Social Care & Health,Independent Placements,A56006,0
Royal Borough of Kingston,01/01/2024,90300447,"-10,013.62",ELYSIUM HEALTHCARE LTD,SOCIAL SERVICES - OTHER,Adult Social Care & Health,Independent Placements,A56006,0
Royal Borough of Kingston,01/01/2024,90300448,"9,782.91",ELYSIUM HEALTHCARE LTD,SOCIAL SERVICES - OTHER,Adult Social Care & Health,Independent Placements,A56006,0
Royal Borough of Kingston,01/01/2024,90300449,"-9,690.60",ELYSIUM HEALTHCARE LTD,SOCIAL SERVICES - OTHER,Adult Social Care & Health,Independent Placements,A56006,0
Royal Borough of Kingston,01/01/2024,90300450,"10,109.01",ELYSIUM HEALTHCARE LTD,SOCIAL SERVICES - OTHER,Adult Social Care & Health,Independent Placements,A56006,0
Royal Borough of Kingston,01/01/2024,90300451,"-10,013.62",ELYSIUM HEALTHCARE LTD,SOCIAL SERVICES - OTHER,Adult Social Care & Health,Independent Placements,A56006,0
Royal Borough of Kingston,01/01/2024,90300452,"9,782.91",ELYSIUM HEALTHCARE LTD,SOCIAL SERVICES - OTHER,Adult Social Care & Health,Independent Placements,A56006,0
Royal Borough of Kingston,01/01/2024,90300453,"-9,690.60",ELYSIUM HEALTHCARE LTD,SOCIAL SERVICES - OTHER,Adult Social Care & Health,Independent Placements,A56006,0
Royal Borough of Kingston,01/01/2024,90300454,"10,109.01",ELYSIUM HEALTHCARE LTD,SOCIAL SERVICES - OTHER,Adult Social Care & Health,Independent Placements,A56006,0
Royal Borough of Kingston,01/01/2024,90300455,"-10,013.62",ELYSIUM HEALTHCARE LTD,SOCIAL SERVICES - OTHER,Adult Social Care & Health,Independent Placements,A56006,0
Royal Borough of Kingston,01/01/2024,90300456,"10,109.01",ELYSIUM HEALTHCARE LTD,SOCIAL SERVICES - OTHER,Adult Social Care & Health,Independent Placements,A56006,0
Royal Borough of Kingston,01/01/2024,90300458,"11,639.83",ELYSIUM HEALTHCARE LTD,SOCIAL SERVICES - OTHER,Adult Social Care & Health,Independent Placements,A56006,0
Royal Borough of Kingston,01/01/2024,90300459,"-11,530.03",ELYSIUM HEALTHCARE LTD,SOCIAL SERVICES - OTHER,Adult Social Care & Health,Independent Placements,A56006,0
Royal Borough of Kingston,01/01/2024,90300460,"12,027.82",ELYSIUM HEALTHCARE LTD,SOCIAL SERVICES - OTHER,Adult Social Care & Health,Independent Placements,A56006,0
Royal Borough of Kingston,01/01/2024,90300461,"-11,914.36",ELYSIUM HEALTHCARE LTD,SOCIAL SERVICES - OTHER,Adult Social Care & Health,Independent Placements,A56006,0
Royal Borough of Kingston,01/01/2024,90300462,"11,639.83",ELYSIUM HEALTHCARE LTD,SOCIAL SERVICES - OTHER,Adult Social Care & Health,Independent Placements,A56006,0
Royal Borough of Kingston,01/01/2024,90300463,"-11,530.03",ELYSIUM HEALTHCARE LTD,SOCIAL SERVICES - OTHER,Adult Social Care & Health,Independent Placements,A56006,0
Royal Borough of Kingston,01/01/2024,90300464,"12,027.82",ELYSIUM HEALTHCARE LTD,SOCIAL SERVICES - OTHER,Adult Social Care & Health,Independent Placements,A56006,0
Royal Borough of Kingston,01/01/2024,90300465,"-11,914.36",ELYSIUM HEALTHCARE LTD,SOCIAL SERVICES - OTHER,Adult Social Care & Health,Independent Placements,A56006,0
Royal Borough of Kingston,01/01/2024,90300466,"12,027.82",ELYSIUM HEALTHCARE LTD,SOCIAL SERVICES - OTHER,Adult Social Care & Health,Independent Placements,A56006,0
Royal Borough of Kingston,01/01/2024,90300467,"-11,914.36",ELYSIUM HEALTHCARE LTD,SOCIAL SERVICES - OTHER,Adult Social Care & Health,Independent Placements,A56006,0
Royal Borough of Kingston,01/01/2024,90300468,"11,639.83",ELYSIUM HEALTHCARE LTD,SOCIAL SERVICES - OTHER,Adult Social Care & Health,Independent Placements,A56006,0
Royal Borough of Kingston,01/01/2024,90300469,"-11,530.03",ELYSIUM HEALTHCARE LTD,SOCIAL SERVICES - OTHER,Adult Social Care & Health,Independent Placements,A56006,0
Royal Borough of Kingston,01/01/2024,90300470,"12,027.82",ELYSIUM HEALTHCARE LTD,SOCIAL SERVICES - OTHER,Adult Social Care & Health,Independent Placements,A56006,0
Royal Borough of Kingston,01/01/2024,90300471,"-11,914.36",ELYSIUM HEALTHCARE LTD,SOCIAL SERVICES - OTHER,Adult Social Care & Health,Independent Placements,A56006,0
Royal Borough of Kingston,01/01/2024,90300472,"11,639.83",ELYSIUM HEALTHCARE LTD,SOCIAL SERVICES - OTHER,Adult Social Care & Health,Independent Placements,A56006,0
Royal Borough of Kingston,01/01/2024,90300473,"-11,530.03",ELYSIUM HEALTHCARE LTD,SOCIAL SERVICES - OTHER,Adult Social Care & Health,Independent Placements,A56006,0
Royal Borough of Kingston,01/01/2024,90300474,"12,027.82",ELYSIUM HEALTHCARE LTD,SOCIAL SERVICES - OTHER,Adult Social Care & Health,Independent Placements,A56006,0
Royal Borough of Kingston,01/01/2024,90300475,"-11,914.36",ELYSIUM HEALTHCARE LTD,SOCIAL SERVICES - OTHER,Adult Social Care & Health,Independent Placements,A56006,0
Royal Borough of Kingston,01/01/2024,90300476,"12,027.82",ELYSIUM HEALTHCARE LTD,SOCIAL SERVICES - OTHER,Adult Social Care & Health,Independent Placements,A56006,0
Royal Borough of Kingston,01/01/2024,90300480,"10,021.46",ELYSIUM HEALTHCARE LTD,SOCIAL SERVICES - OTHER,Adult Social Care & Health,Independent Placements,A56006,0
Royal Borough of Kingston,01/01/2024,90300481,"-9,926.91",ELYSIUM HEALTHCARE LTD,SOCIAL SERVICES - OTHER,Adult Social Care & Health,Independent Placements,A56006,0
Royal Borough of Kingston,01/01/2024,90300482,"10,355.51",ELYSIUM HEALTHCARE LTD,SOCIAL SERVICES - OTHER,Adult Social Care & Health,Independent Placements,A56006,0
Royal Borough of Kingston,01/01/2024,90300483,"-10,257.81",ELYSIUM HEALTHCARE LTD,SOCIAL SERVICES - OTHER,Adult Social Care & Health,Independent Placements,A56006,0
Royal Borough of Kingston,01/01/2024,90300484,"10,021.46",ELYSIUM HEALTHCARE LTD,SOCIAL SERVICES - OTHER,Adult Social Care & Health,Independent Placements,A56006,0
Royal Borough of Kingston,01/01/2024,90300485,"-9,926.91",ELYSIUM HEALTHCARE LTD,SOCIAL SERVICES - OTHER,Adult Social Care & Health,Independent Placements,A56006,0
Royal Borough of Kingston,01/01/2024,90300486,"10,355.51",ELYSIUM HEALTHCARE LTD,SOCIAL SERVICES - OTHER,Adult Social Care & Health,Independent Placements,A56006,0
Royal Borough of Kingston,01/01/2024,90300487,"-10,257.81",ELYSIUM HEALTHCARE LTD,SOCIAL SERVICES - OTHER,Adult Social Care & Health,Independent Placements,A56006,0
Royal Borough of Kingston,01/01/2024,90300488,"10,355.51",ELYSIUM HEALTHCARE LTD,SOCIAL SERVICES - OTHER,Adult Social Care & Health,Independent Placements,A56006,0
Royal Borough of Kingston,01/01/2024,90300489,"-10,257.81",ELYSIUM HEALTHCARE LTD,SOCIAL SERVICES - OTHER,Adult Social Care & Health,Independent Placements,A56006,0
Royal Borough of Kingston,01/01/2024,90300490,"10,021.46",ELYSIUM HEALTHCARE LTD,SOCIAL SERVICES - OTHER,Adult Social Care & Health,Independent Placements,A56006,0
Royal Borough of Kingston,01/01/2024,90300491,"-9,926.91",ELYSIUM HEALTHCARE LTD,SOCIAL SERVICES - OTHER,Adult Social Care & Health,Independent Placements,A56006,0
Royal Borough of Kingston,01/01/2024,90300492,"10,355.51",ELYSIUM HEALTHCARE LTD,SOCIAL SERVICES - OTHER,Adult Social Care & Health,Independent Placements,A56006,0
Royal Borough of Kingston,01/01/2024,90300493,"-10,257.81",ELYSIUM HEALTHCARE LTD,SOCIAL SERVICES - OTHER,Adult Social Care & Health,Independent Placements,A56006,0
Royal Borough of Kingston,01/01/2024,90300494,"10,021.46",ELYSIUM HEALTHCARE LTD,SOCIAL SERVICES - OTHER,Adult Social Care & Health,Independent Placements,A56006,0
Royal Borough of Kingston,01/01/2024,90300495,"-9,926.91",ELYSIUM HEALTHCARE LTD,SOCIAL SERVICES - OTHER,Adult Social Care & Health,Independent Placements,A56006,0
Royal Borough of Kingston,01/01/2024,90300496,"10,355.51",ELYSIUM HEALTHCARE LTD,SOCIAL SERVICES - OTHER,Adult Social Care & Health,Independent Placements,A56006,0
Royal Borough of Kingston,01/01/2024,90300497,"-10,257.81",ELYSIUM HEALTHCARE LTD,SOCIAL SERVICES - OTHER,Adult Social Care & Health,Independent Placements,A56006,0
Royal Borough of Kingston,01/01/2024,90300498,"10,355.51",ELYSIUM HEALTHCARE LTD,SOCIAL SERVICES - OTHER,Adult Social Care & Health,Independent Placements,A56006,0
Royal Borough of Kingston,01/01/2024,90300501,"10,344.90",ELYSIUM HEALTHCARE LTD,SOCIAL SERVICES - OTHER,Adult Social Care & Health,Independent Placements,A56006,0
Royal Borough of Kingston,01/01/2024,90300502,"-10,247.31",ELYSIUM HEALTHCARE LTD,SOCIAL SERVICES - OTHER,Adult Social Care & Health,Independent Placements,A56006,0
Royal Borough of Kingston,01/01/2024,90300503,"10,689.73",ELYSIUM HEALTHCARE LTD,SOCIAL SERVICES - OTHER,Adult Social Care & Health,Independent Placements,A56006,0
Royal Borough of Kingston,01/01/2024,90300504,"-10,588.89",ELYSIUM HEALTHCARE LTD,SOCIAL SERVICES - OTHER,Adult Social Care & Health,Independent Placements,A56006,0
Royal Borough of Kingston,01/01/2024,90300505,"10,344.90",ELYSIUM HEALTHCARE LTD,SOCIAL SERVICES - OTHER,Adult Social Care & Health,Independent Placements,A56006,0
Royal Borough of Kingston,01/01/2024,90300506,"-10,247.31",ELYSIUM HEALTHCARE LTD,SOCIAL SERVICES - OTHER,Adult Social Care & Health,Independent Placements,A56006,0
Royal Borough of Kingston,01/01/2024,90300507,"10,689.73",ELYSIUM HEALTHCARE LTD,SOCIAL SERVICES - OTHER,Adult Social Care & Health,Independent Placements,A56006,0
Royal Borough of Kingston,01/01/2024,90300508,"-10,588.89",ELYSIUM HEALTHCARE LTD,SOCIAL SERVICES - OTHER,Adult Social Care & Health,Independent Placements,A56006,0
Royal Borough of Kingston,01/01/2024,90300509,"10,689.73",ELYSIUM HEALTHCARE LTD,SOCIAL SERVICES - OTHER,Adult Social Care & Health,Independent Placements,A56006,0
Royal Borough of Kingston,01/01/2024,90300510,"-10,588.89",ELYSIUM HEALTHCARE LTD,SOCIAL SERVICES - OTHER,Adult Social Care & Health,Independent Placements,A56006,0
Royal Borough of Kingston,01/01/2024,90300511,"10,344.90",ELYSIUM HEALTHCARE LTD,SOCIAL SERVICES - OTHER,Adult Social Care & Health,Independent Placements,A56006,0
Royal Borough of Kingston,01/01/2024,90300512,"-10,247.31",ELYSIUM HEALTHCARE LTD,SOCIAL SERVICES - OTHER,Adult Social Care & Health,Independent Placements,A56006,0
Royal Borough of Kingston,01/01/2024,90300513,"10,689.73",ELYSIUM HEALTHCARE LTD,SOCIAL SERVICES - OTHER,Adult Social Care & Health,Independent Placements,A56006,0
Royal Borough of Kingston,01/01/2024,90300514,"-10,588.89",ELYSIUM HEALTHCARE LTD,SOCIAL SERVICES - OTHER,Adult Social Care & Health,Independent Placements,A56006,0
Royal Borough of Kingston,01/01/2024,90300515,"10,344.90",ELYSIUM HEALTHCARE LTD,SOCIAL SERVICES - OTHER,Adult Social Care & Health,Independent Placements,A56006,0
Royal Borough of Kingston,01/01/2024,90300516,"-10,247.31",ELYSIUM HEALTHCARE LTD,SOCIAL SERVICES - OTHER,Adult Social Care & Health,Independent Placements,A56006,0
Royal Borough of Kingston,01/01/2024,90300580,"10,139.66",ELYSIUM HEALTHCARE LTD,SOCIAL SERVICES - OTHER,Adult Social Care & Health,Independent Placements,A56006,0
Royal Borough of Kingston,01/01/2024,90300581,"-10,044.00",ELYSIUM HEALTHCARE LTD,SOCIAL SERVICES - OTHER,Adult Social Care & Health,Independent Placements,A56006,0
Royal Borough of Kingston,01/01/2024,90300582,"10,477.65",ELYSIUM HEALTHCARE LTD,SOCIAL SERVICES - OTHER,Adult Social Care & Health,Independent Placements,A56006,0
Royal Borough of Kingston,01/01/2024,90300583,"-10,378.80",ELYSIUM HEALTHCARE LTD,SOCIAL SERVICES - OTHER,Adult Social Care & Health,Independent Placements,A56006,0
Royal Borough of Kingston,01/01/2024,90300584,"10,139.66",ELYSIUM HEALTHCARE LTD,SOCIAL SERVICES - OTHER,Adult Social Care & Health,Independent Placements,A56006,0
Royal Borough of Kingston,01/01/2024,90300585,"-10,044.00",ELYSIUM HEALTHCARE LTD,SOCIAL SERVICES - OTHER,Adult Social Care & Health,Independent Placements,A56006,0
Royal Borough of Kingston,01/01/2024,90300586,"10,477.65",ELYSIUM HEALTHCARE LTD,SOCIAL SERVICES - OTHER,Adult Social Care & Health,Independent Placements,A56006,0
Royal Borough of Kingston,01/01/2024,90300587,"-10,378.80",ELYSIUM HEALTHCARE LTD,SOCIAL SERVICES - OTHER,Adult Social Care & Health,Independent Placements,A56006,0
Royal Borough of Kingston,01/01/2024,90300588,"10,477.65",ELYSIUM HEALTHCARE LTD,SOCIAL SERVICES - OTHER,Adult Social Care & Health,Independent Placements,A56006,0
Royal Borough of Kingston,01/01/2024,90300589,"-10,378.80",ELYSIUM HEALTHCARE LTD,SOCIAL SERVICES - OTHER,Adult Social Care & Health,Independent Placements,A56006,0
Royal Borough of Kingston,01/01/2024,90300590,"10,139.66",ELYSIUM HEALTHCARE LTD,SOCIAL SERVICES - OTHER,Adult Social Care & Health,Independent Placements,A56006,0
Royal Borough of Kingston,01/01/2024,90300591,"-10,044.00",ELYSIUM HEALTHCARE LTD,SOCIAL SERVICES - OTHER,Adult Social Care & Health,Independent Placements,A56006,0
Royal Borough of Kingston,01/01/2024,90300592,"10,477.65",ELYSIUM HEALTHCARE LTD,SOCIAL SERVICES - OTHER,Adult Social Care & Health,Independent Placements,A56006,0
Royal Borough of Kingston,01/01/2024,90300593,"-10,378.80",ELYSIUM HEALTHCARE LTD,SOCIAL SERVICES - OTHER,Adult Social Care & Health,Independent Placements,A56006,0
Royal Borough of Kingston,01/01/2024,90300594,"10,139.66",ELYSIUM HEALTHCARE LTD,SOCIAL SERVICES - OTHER,Adult Social Care & Health,Independent Placements,A56006,0
Royal Borough of Kingston,01/01/2024,90300595,"-10,044.00",ELYSIUM HEALTHCARE LTD,SOCIAL SERVICES - OTHER,Adult Social Care & Health,Independent Placements,A56006,0
Royal Borough of Kingston,01/01/2024,90300596,"10,477.65",ELYSIUM HEALTHCARE LTD,SOCIAL SERVICES - OTHER,Adult Social Care & Health,Independent Placements,A56006,0
Royal Borough of Kingston,01/01/2024,90300597,"-10,378.80",ELYSIUM HEALTHCARE LTD,SOCIAL SERVICES - OTHER,Adult Social Care & Health,Independent Placements,A56006,0
Royal Borough of Kingston,01/01/2024,90300598,"10,477.65",ELYSIUM HEALTHCARE LTD,SOCIAL SERVICES - OTHER,Adult Social Care & Health,Independent Placements,A56006,0
Royal Borough of Kingston,01/01/2024,90300942,"5,239.25",EMEZZIONS LIMITED,SOCIAL SERVICES - OTHER,Adult Social Care & Health,Supported Living - new framework,A56126,0
Royal Borough of Kingston,01/01/2024,90300943,"2,806.74",EMEZZIONS LIMITED,SOCIAL SERVICES - OTHER,Adult Social Care & Health,Supported Living - new framework,A56126,0
Royal Borough of Kingston,01/01/2024,90301055,"2,649.86",EMEZZIONS LIMITED,SOCIAL SERVICES - OTHER,Adult Social Care & Health,Supported Living - new framework,A56126,0
Royal Borough of Kingston,01/01/2024,90301056,"3,534.56",EMEZZIONS LIMITED,SOCIAL SERVICES - OTHER,Adult Social Care & Health,Supported Living - new framework,A56126,0
Royal Borough of Kingston,01/01/2024,90301057,"1,683.95",EMEZZIONS LIMITED,SOCIAL SERVICES - OTHER,Adult Social Care & Health,Supported Living - new framework,A56126,0
Royal Borough of Kingston,01/01/2024,90301070,"3,651.05",EMEZZIONS LIMITED,SOCIAL SERVICES - OTHER,Adult Social Care & Health,Supported Living - new framework,A56126,0
Royal Borough of Kingston,01/01/2024,90301071,"2,232.37",EMEZZIONS LIMITED,SOCIAL SERVICES - OTHER,Adult Social Care & Health,Supported Living - new framework,A56126,0
Royal Borough of Kingston,01/01/2024,90301139,"5,317.74",EMEZZIONS LIMITED,SOCIAL SERVICES - OTHER,Adult Social Care & Health,Personal Budget - Third Party,A61019,0
Royal Borough of Kingston,02/01/2024,90295502,650.00,REDACTED - PERSONAL DATA,CHARITIES & VOLUNTARY ORGNS,Adult Social Care & Health,"Grants, Contributions & Donations",A47005,0
Royal Borough of Kingston,05/01/2024,90295769,"4,068.00",REDACTED - PERSONAL DATA,CHILDMINDERS START UP GRANT,Schools,PVI Providers,A60014,0
Royal Borough of Kingston,01/01/2024,70062094,"4,205.00",EMPATHY HOUSING LTD,ACCOMMODATION BED & BREAKFAST,Place,Bed & Breakfast,A56000,0
Royal Borough of Kingston,01/01/2024,90300251,"3,349.68",ENHAM,SOCIAL SERVICES - OTHER,Adult Social Care & Health,Independent Placements,A56006,0
Royal Borough of Kingston,01/01/2024,90301528,-534.97,ENHAM,SOCIAL SERVICES - OTHER,Adult Social Care & Health,Financially Assessed Contributions clients � Non VAT,A92047,0
Royal Borough of Kingston,01/07/2020,90299826,657.95,ENHANCEABLE,SOCIAL SERVICES - OTHER,Adult Social Care & Health,Personal Budget - Third Party,A61019,0
Royal Borough of Kingston,01/07/2020,90299827,657.95,ENHANCEABLE,SOCIAL SERVICES - OTHER,Adult Social Care & Health,Personal Budget - Third Party,A61019,0
Royal Borough of Kingston,01/07/2020,90299828,636.73,ENHANCEABLE,SOCIAL SERVICES - OTHER,Adult Social Care & Health,Personal Budget - Third Party,A61019,0
Royal Borough of Kingston,01/07/2020,90299829,657.95,ENHANCEABLE,SOCIAL SERVICES - OTHER,Adult Social Care & Health,Personal Budget - Third Party,A61019,0
Royal Borough of Kingston,01/07/2020,90299830,636.73,ENHANCEABLE,SOCIAL SERVICES - OTHER,Adult Social Care & Health,Personal Budget - Third Party,A61019,0
Royal Borough of Kingston,01/07/2020,90299831,657.95,ENHANCEABLE,SOCIAL SERVICES - OTHER,Adult Social Care & Health,Personal Budget - Third Party,A61019,0
Royal Borough of Kingston,01/07/2020,90299832,657.95,ENHANCEABLE,SOCIAL SERVICES - OTHER,Adult Social Care & Health,Personal Budget - Third Party,A61019,0
Royal Borough of Kingston,01/07/2020,90299833,615.50,ENHANCEABLE,SOCIAL SERVICES - OTHER,Adult Social Care & Health,Personal Budget - Third Party,A61019,0
Royal Borough of Kingston,01/07/2020,90299834,657.95,ENHANCEABLE,SOCIAL SERVICES - OTHER,Adult Social Care & Health,Personal Budget - Third Party,A61019,0
Royal Borough of Kingston,01/07/2020,90299835,636.73,ENHANCEABLE,SOCIAL SERVICES - OTHER,Adult Social Care & Health,Personal Budget - Third Party,A61019,0
Royal Borough of Kingston,01/11/2020,90299836,657.95,ENHANCEABLE,SOCIAL SERVICES - OTHER,Adult Social Care & Health,Personal Budget - Third Party,A61019,0
Royal Borough of Kingston,01/11/2020,90299837,636.73,ENHANCEABLE,SOCIAL SERVICES - OTHER,Adult Social Care & Health,Personal Budget - Third Party,A61019,0
Royal Borough of Kingston,01/11/2020,90299838,657.95,ENHANCEABLE,SOCIAL SERVICES - OTHER,Adult Social Care & Health,Personal Budget - Third Party,A61019,0
Royal Borough of Kingston,01/11/2020,90299839,657.95,ENHANCEABLE,SOCIAL SERVICES - OTHER,Adult Social Care & Health,Personal Budget - Third Party,A61019,0
Royal Borough of Kingston,01/11/2020,90299840,636.73,ENHANCEABLE,SOCIAL SERVICES - OTHER,Adult Social Care & Health,Personal Budget - Third Party,A61019,0
Royal Borough of Kingston,01/11/2020,90299841,657.95,ENHANCEABLE,SOCIAL SERVICES - OTHER,Adult Social Care & Health,Personal Budget - Third Party,A61019,0
Royal Borough of Kingston,01/01/2024,90299842,636.73,ENHANCEABLE,SOCIAL SERVICES - OTHER,Adult Social Care & Health,Personal Budget - Third Party,A61019,0
Royal Borough of Kingston,01/01/2024,90299843,657.95,ENHANCEABLE,SOCIAL SERVICES - OTHER,Adult Social Care & Health,Personal Budget - Third Party,A61019,0
Royal Borough of Kingston,01/01/2024,90299844,530.61,ENHANCEABLE,SOCIAL SERVICES - OTHER,Adult Social Care & Health,Personal Budget - Third Party,A61019,0
Royal Borough of Kingston,01/01/2024,90299850,"1,576.53",ENHANCEABLE,SOCIAL SERVICES - OTHER,Adult Social Care & Health,Personal Budget - Third Party,A61019,0
Royal Borough of Kingston,03/01/2024,70061723,"6,999.59",Equans Regeneration Ltd,CONSTRUCTION INDUSTRY,Place,Payments to Contractors,C14000,0
Royal Borough of Kingston,02/01/2024,70061507,"24,500.00",REDACTED - PERSONAL DATA,LEGAL & PROFESSIONAL SERVICES,Corporate & Communities,Consultancy Services,A56007,0
Royal Borough of Kingston,04/01/2024,70062209,"5,000.00",REDACTED - PERSONAL DATA,PLS LANDLORDS,Place,Compensation (In Lieu Of Works),A20039,0
Royal Borough of Kingston,16/01/2024,70062620,"1,000.00",REDACTED - PERSONAL DATA,PLS LANDLORDS,Place,Compensation (In Lieu Of Works),A20039,0
Royal Borough of Kingston,03/01/2024,70062110,"4,805.00",Eurohousing LTD,ACCOMMODATION BED & BREAKFAST,Place,Bed & Breakfast,A56000,0
Royal Borough of Kingston,13/10/2023,70061275,"2,015.50",Evolve AMS UK Ltd,SUNDRY SUPPLIER - HOUSING,Corporate & Communities,Grants Given For Capital Purposes,C20004,0
Royal Borough of Kingston,30/11/2023,70060942,669.48,EXCHANGE SUPPLIES LTD,SOCIAL SERVICES - OTHER,Adult Social Care & Health,Other Private Contractors - Third Party,A56080,0
Royal Borough of Kingston,26/01/2024,90302171,823.33,REDACTED - PERSONAL DATA,PLS LANDLORDS,Place,PSL Payments To Landlords,A22031,0
Royal Borough of Kingston,26/01/2024,90302147,"1,551.00",REDACTED - PERSONAL DATA,PLS LANDLORDS,Place,PSL Payments To Landlords,A22031,0
Royal Borough of Kingston,26/01/2024,90301928,918.33,REDACTED - PERSONAL DATA,PLS LANDLORDS,Place,PSL Payments To Landlords,A22031,0
Royal Borough of Kingston,30/06/2023,70058855,"1,300.00",F H & G LIMITED,LEGAL & PROFESSIONAL SERVICES,Housing Revenue Account,Professional Fees,A44066,0
Royal Borough of Kingston,04/08/2023,70058856,"5,200.00",F H & G LIMITED,LEGAL & PROFESSIONAL SERVICES,Housing Revenue Account,Professional Fees,A44066,0
Royal Borough of Kingston,21/07/2023,70058857,"3,450.00",F H & G LIMITED,LEGAL & PROFESSIONAL SERVICES,Housing Revenue Account,Professional Fees,A44066,0
Royal Borough of Kingston,14/07/2023,70058858,650.00,F H & G LIMITED,LEGAL & PROFESSIONAL SERVICES,Housing Revenue Account,Professional Fees,A44066,0
Royal Borough of Kingston,22/09/2023,70058860,"2,600.00",F H & G LIMITED,LEGAL & PROFESSIONAL SERVICES,Housing Revenue Account,Professional Fees,A44066,0
Royal Borough of Kingston,16/11/2023,70058922,"5,200.00",F H & G LIMITED,LEGAL & PROFESSIONAL SERVICES,Housing Revenue Account,Professional Fees,A44066,0
Royal Borough of Kingston,16/11/2023,70058925,"5,850.00",F H & G LIMITED,LEGAL & PROFESSIONAL SERVICES,Housing Revenue Account,Professional Fees,A44066,0
Royal Borough of Kingston,23/11/2023,70059231,"1,300.00",F H & G LIMITED,LEGAL & PROFESSIONAL SERVICES,Housing Revenue Account,Professional Fees,A44066,0
Royal Borough of Kingston,30/11/2023,70059666,650.00,F H & G LIMITED,LEGAL & PROFESSIONAL SERVICES,Housing Revenue Account,Professional Fees,A44066,0
Royal Borough of Kingston,30/11/2023,70059668,"1,950.00",F H & G LIMITED,LEGAL & PROFESSIONAL SERVICES,Housing Revenue Account,Professional Fees,A44066,0
Royal Borough of Kingston,15/12/2023,70060721,650.00,F H & G LIMITED,LEGAL & PROFESSIONAL SERVICES,Housing Revenue Account,Professional Fees,A44066,0
Royal Borough of Kingston,15/12/2023,70060722,"1,950.00",F H & G LIMITED,LEGAL & PROFESSIONAL SERVICES,Housing Revenue Account,Professional Fees,A44066,0
Royal Borough of Kingston,22/12/2023,70061248,"1,300.00",F H & G LIMITED,LEGAL & PROFESSIONAL SERVICES,Housing Revenue Account,Professional Fees,A44066,0
Royal Borough of Kingston,05/01/2024,70061921,650.00,F H & G LIMITED,LEGAL & PROFESSIONAL SERVICES,Housing Revenue Account,Professional Fees,A44066,0
Royal Borough of Kingston,12/01/2024,70062446,"1,300.00",F H & G LIMITED,LEGAL & PROFESSIONAL SERVICES,Housing Revenue Account,Professional Fees,A44066,0
Royal Borough of Kingston,12/01/2024,70062447,"1,300.00",F H & G LIMITED,LEGAL & PROFESSIONAL SERVICES,Housing Revenue Account,Professional Fees,A44066,0
Royal Borough of Kingston,26/01/2024,90302183,"1,675.00",REDACTED - PERSONAL DATA,PLS LANDLORDS,Place,PSL Payments To Landlords,A22031,0
Royal Borough of Kingston,20/12/2023,70060860,"11,569.18",F.M. CONWAY LTD,CONSTRUCTION INDUSTRY,Corporate & Communities,Professional Fees,A44066,0
Royal Borough of Kingston,13/12/2023,70061057,"22,058.34",F.M. CONWAY LTD,CONSTRUCTION INDUSTRY,Corporate & Communities,Payments to Contractors,C14000,0
Royal Borough of Kingston,30/11/2023,70061858,"3,680.94",F.M. CONWAY LTD,CONSTRUCTION INDUSTRY,Corporate & Communities,Infrastructure Assets - Project Management,C12000,0
Royal Borough of Kingston,30/11/2023,70061859,"5,342.89",F.M. CONWAY LTD,CONSTRUCTION INDUSTRY,Corporate & Communities,Vehicle Crossings,A56043,0
Royal Borough of Kingston,30/11/2023,70061860,"27,417.38",F.M. CONWAY LTD,CONSTRUCTION INDUSTRY,Corporate & Communities,Infrastructure Assets - Purchase & Enhancement,C12001,0
Royal Borough of Kingston,13/12/2023,70062295,"2,894.94",F.M. CONWAY LTD,CONSTRUCTION INDUSTRY,Corporate & Communities,Vehicle Crossings,A56043,0
Royal Borough of Kingston,17/11/2023,70058832,"1,603.65",facultatieve technologies,FM SERVICES,Place,Property Repairs & Maintenance & Alterations - Responsive,A20011,0
Royal Borough of Kingston,05/01/2024,90295720,644.10,FAIRFIELD PLAYBOX PLAYGROUP,ACADEMIC INSTNS - OTHER,Schools,PVI Providers,A60014,0
Royal Borough of Kingston,05/01/2024,90295817,"1,822.50",FAIRFIELD PLAYBOX PLAYGROUP,ACADEMIC INSTNS - OTHER,Schools,2 Yr Old Place Funding,A60000,0
Royal Borough of Kingston,01/01/2024,90300620,"5,233.73",FAMILY INVESTMENT (THREE) LIMITED,SOCIAL SERVICES RESIDENTIAL,Adult Social Care & Health,Independent Placements,A56006,0
Royal Borough of Kingston,26/01/2024,90301909,"1,094.00",REDACTED - PERSONAL DATA,PLS LANDLORDS,Place,PSL Payments To Landlords,A22031,0
Royal Borough of Kingston,05/01/2024,90295765,"2,695.05",REDACTED - PERSONAL DATA,ACADEMIC INSTNS - OTHER,Schools,PVI Providers,A60014,0
Royal Borough of Kingston,05/01/2024,90295825,"1,215.00",REDACTED - PERSONAL DATA,ACADEMIC INSTNS - OTHER,Schools,2 Yr Old Place Funding,A60000,0
Royal Borough of Kingston,20/12/2023,70061291,"1,750.00",FERN CONSULTING SERVICES LIMITED,TEMP STAFF & CONSULTANCY,Corporate & Communities,Professional Fees,A44066,0
Royal Borough of Kingston,20/12/2023,70061297,"5,000.00",FERN CONSULTING SERVICES LIMITED,TEMP STAFF & CONSULTANCY,Corporate & Communities,Infrastructure Assets - Project Management,C12000,0
Royal Borough of Kingston,01/01/2024,90300008,"4,703.14",Fir Ridge Care Home Ltd,SOCIAL SERVICES RESIDENTIAL,Adult Social Care & Health,Independent Placements,A56006,0
Royal Borough of Kingston,01/01/2024,90300340,"4,694.29",Fir Ridge Care Home Ltd,SOCIAL SERVICES RESIDENTIAL,Adult Social Care & Health,Independent Placements,A56006,0
Royal Borough of Kingston,12/01/2024,70062399,"44,762.65",Travelodge,SUNDRY SUPPLIER - FINANCE,Housing Revenue Account,Bed & Breakfast,A56000,0
Royal Borough of Kingston,25/01/2024,70063415,"82,851.69",Travelodge,SUNDRY SUPPLIER - FINANCE,Housing Revenue Account,Bed & Breakfast,A56000,0
Royal Borough of Kingston,01/01/2024,90300693,"7,998.22",FitzRoy Support,SOCIAL SERVICES - OTHER,Adult Social Care & Health,Independent Placements,A56006,0
Royal Borough of Kingston,05/01/2024,90295782,"4,576.50",Fountain Nursery Limited,ACADEMIC INSTNS - OTHER,Schools,PVI Providers,A60014,0
Royal Borough of Kingston,01/01/2024,90299901,"4,373.66",FOUR SEASONS HEALTHCARE,SOCIAL SERVICES RESIDENTIAL,Adult Social Care & Health,Independent Placements,A56006,0
Royal Borough of Kingston,01/01/2024,90299902,"3,689.58",FOUR SEASONS HEALTHCARE,SOCIAL SERVICES RESIDENTIAL,Adult Social Care & Health,Independent Placements,A56006,0
Royal Borough of Kingston,01/01/2024,90299907,"4,207.14",FOUR SEASONS HEALTHCARE,SOCIAL SERVICES RESIDENTIAL,Adult Social Care & Health,Independent Placements,A56006,0
Royal Borough of Kingston,01/01/2024,90299910,"3,713.22",FOUR SEASONS HEALTHCARE,SOCIAL SERVICES RESIDENTIAL,Adult Social Care & Health,Independent Placements,A56006,0
Royal Borough of Kingston,01/01/2024,90299914,"4,207.14",FOUR SEASONS HEALTHCARE,SOCIAL SERVICES RESIDENTIAL,Adult Social Care & Health,Independent Placements,A56006,0
Royal Borough of Kingston,01/01/2024,90299926,"3,606.14",FOUR SEASONS HEALTHCARE,SOCIAL SERVICES RESIDENTIAL,Adult Social Care & Health,Independent Placements,A56006,0
Royal Borough of Kingston,01/01/2024,90299940,"3,712.52",FOUR SEASONS HEALTHCARE,SOCIAL SERVICES RESIDENTIAL,Adult Social Care & Health,Independent Placements,A56006,0
Royal Borough of Kingston,01/01/2024,90299941,"3,321.43",FOUR SEASONS HEALTHCARE,SOCIAL SERVICES RESIDENTIAL,Adult Social Care & Health,Independent Placements,A56006,0
Royal Borough of Kingston,01/01/2024,90299942,"3,713.22",FOUR SEASONS HEALTHCARE,SOCIAL SERVICES RESIDENTIAL,Adult Social Care & Health,Independent Placements,A56006,0
Royal Borough of Kingston,01/01/2024,90299962,"3,713.22",FOUR SEASONS HEALTHCARE,SOCIAL SERVICES RESIDENTIAL,Adult Social Care & Health,Independent Placements,A56006,0
Royal Borough of Kingston,01/01/2024,90299964,"3,713.22",FOUR SEASONS HEALTHCARE,SOCIAL SERVICES RESIDENTIAL,Adult Social Care & Health,Independent Placements,A56006,0
Royal Borough of Kingston,01/01/2024,90299982,"4,207.14",FOUR SEASONS HEALTHCARE,SOCIAL SERVICES RESIDENTIAL,Adult Social Care & Health,Independent Placements,A56006,0
Royal Borough of Kingston,01/01/2024,90299983,-838.47,FOUR SEASONS HEALTHCARE,SOCIAL SERVICES RESIDENTIAL,Adult Social Care & Health,Independent Placements,A56006,0
Royal Borough of Kingston,01/01/2024,90300005,"4,539.29",FOUR SEASONS HEALTHCARE,SOCIAL SERVICES RESIDENTIAL,Adult Social Care & Health,Independent Placements,A56006,0
Royal Borough of Kingston,01/01/2024,90300089,"4,207.14",FOUR SEASONS HEALTHCARE,SOCIAL SERVICES RESIDENTIAL,Adult Social Care & Health,Independent Placements,A56006,0
Royal Borough of Kingston,01/01/2024,90300099,"3,857.14",FOUR SEASONS HEALTHCARE,SOCIAL SERVICES RESIDENTIAL,Adult Social Care & Health,Independent Placements,A56006,0
Royal Borough of Kingston,01/01/2024,90300180,"3,985.71",FOUR SEASONS HEALTHCARE,SOCIAL SERVICES RESIDENTIAL,Adult Social Care & Health,Independent Placements,A56006,0
Royal Borough of Kingston,01/01/2024,90300263,"3,335.95",FOUR SEASONS HEALTHCARE,SOCIAL SERVICES RESIDENTIAL,Adult Social Care & Health,Independent Placements,A56006,0
Royal Borough of Kingston,01/01/2024,90300271,"3,526.87",FOUR SEASONS HEALTHCARE,SOCIAL SERVICES RESIDENTIAL,Adult Social Care & Health,Independent Placements,A56006,0
Royal Borough of Kingston,01/01/2024,90300283,"3,229.62",FOUR SEASONS HEALTHCARE,SOCIAL SERVICES RESIDENTIAL,Adult Social Care & Health,Independent Placements,A56006,0
Royal Borough of Kingston,01/01/2024,90300342,"3,764.29",FOUR SEASONS HEALTHCARE,SOCIAL SERVICES RESIDENTIAL,Adult Social Care & Health,Independent Placements,A56006,0
Royal Borough of Kingston,01/01/2024,90301082,678.57,FOUR SEASONS HEALTHCARE,SOCIAL SERVICES RESIDENTIAL,Adult Social Care & Health,Care Home - D2A Short term,A56137,0
Royal Borough of Kingston,01/01/2024,90301082,678.57,FOUR SEASONS HEALTHCARE,SOCIAL SERVICES RESIDENTIAL,Adult Social Care & Health,Care Home - D2A Short term,A56137,0
Royal Borough of Kingston,01/01/2024,90301083,"3,121.43",FOUR SEASONS HEALTHCARE,SOCIAL SERVICES RESIDENTIAL,Adult Social Care & Health,Care Home - D2A Short term,A56137,0
Royal Borough of Kingston,01/01/2024,90301083,"3,121.43",FOUR SEASONS HEALTHCARE,SOCIAL SERVICES RESIDENTIAL,Adult Social Care & Health,Care Home - D2A Short term,A56137,0
Royal Borough of Kingston,01/01/2024,90301086,"1,628.57",FOUR SEASONS HEALTHCARE,SOCIAL SERVICES RESIDENTIAL,Adult Social Care & Health,Care Home - D2A Short term,A56137,0
Royal Borough of Kingston,01/01/2024,90301086,"1,628.57",FOUR SEASONS HEALTHCARE,SOCIAL SERVICES RESIDENTIAL,Adult Social Care & Health,Care Home - D2A Short term,A56137,0
Royal Borough of Kingston,01/01/2024,90301087,"4,071.43",FOUR SEASONS HEALTHCARE,SOCIAL SERVICES RESIDENTIAL,Adult Social Care & Health,Care Home - D2A Short term,A56137,0
Royal Borough of Kingston,01/01/2024,90301087,"4,071.43",FOUR SEASONS HEALTHCARE,SOCIAL SERVICES RESIDENTIAL,Adult Social Care & Health,Care Home - D2A Short term,A56137,0
Royal Borough of Kingston,26/01/2024,90301899,"2,083.33",REDACTED - PERSONAL DATA,PLS LANDLORDS,Place,PSL Payments To Landlords,A22031,0
Royal Borough of Kingston,26/01/2024,90302160,"1,280.67",REDACTED - PERSONAL DATA,PLS LANDLORDS,Place,PSL Payments To Landlords,A22031,0
Royal Borough of Kingston,01/01/2024,90301500,"18,510.63",Freshstart Care Solutions Ltd,ACCOMMODATION - OTHER,Adult Social Care & Health,Personal Budget - Third Party,A61019,0
Royal Borough of Kingston,12/01/2024,70062865,"2,000.00",FULHAM FOOTBALL CLUB FOUNDATION,ACADEMIC INSTNS - OTHER,Adult Social Care & Health,Payments to Voluntary Organisations,A54005,0
Royal Borough of Kingston,05/01/2024,90295773,"2,542.50",FUN EXPLORERS CHILDCARE,ACADEMIC INSTNS - OTHER,Schools,PVI Providers,A60014,0
Royal Borough of Kingston,05/01/2024,90295733,508.50,REDACTED - PERSONAL DATA,SOCIAL SERVICES - OTHER,Schools,PVI Providers,A60014,0
Royal Borough of Kingston,26/01/2024,90302040,"1,094.00",REDACTED - PERSONAL DATA,PLS LANDLORDS,Place,PSL Payments To Landlords,A22031,0
Royal Borough of Kingston,26/01/2024,90301890,"1,094.34",REDACTED - PERSONAL DATA,PLS LANDLORDS,Place,PSL Payments To Landlords,A22031,0
Royal Borough of Kingston,26/01/2024,90302165,"1,094.34",REDACTED - PERSONAL DATA,PLS LANDLORDS,Place,PSL Payments To Landlords,A22031,0
Royal Borough of Kingston,02/01/2024,90295503,500.00,REDACTED - PERSONAL DATA,CHARITIES & VOLUNTARY ORGNS,Adult Social Care & Health,"Grants, Contributions & Donations",A47005,0
Royal Borough of Kingston,26/01/2024,90301981,"1,240.00",GATES & BRADSHAW (UK) LTD,PLS LANDLORDS,Place,PSL Payments To Landlords,A22031,0
Royal Borough of Kingston,22/01/2024,70063254,"30,044.47",KINGSTON HOSPITAL NHS FT,CENTRAL & LOCAL GOVERNMENT,Adult Social Care & Health,Mortuary,A56079,0
Royal Borough of Kingston,11/12/2023,90299011,587.16,GENEVA ROAD LIMITED,SOCIAL SERVICES RESIDENTIAL,Adult Social Care & Health,Supported Living - new framework,A56126,0
Royal Borough of Kingston,11/12/2023,90299035,"1,100.16",GENEVA ROAD LIMITED,SOCIAL SERVICES RESIDENTIAL,Adult Social Care & Health,Supported Living - new framework,A56126,0
Royal Borough of Kingston,11/12/2023,90299707,503.28,GENEVA ROAD LIMITED,SOCIAL SERVICES RESIDENTIAL,Adult Social Care & Health,S-L non - framework - other support,A56159,0
Royal Borough of Kingston,11/12/2023,90299707,503.28,GENEVA ROAD LIMITED,SOCIAL SERVICES RESIDENTIAL,Adult Social Care & Health,S-L non - framework - other support,A56159,0
Royal Borough of Kingston,11/12/2023,90299708,503.28,GENEVA ROAD LIMITED,SOCIAL SERVICES RESIDENTIAL,Adult Social Care & Health,S-L non - framework - other support,A56159,0
Royal Borough of Kingston,11/12/2023,90299708,503.28,GENEVA ROAD LIMITED,SOCIAL SERVICES RESIDENTIAL,Adult Social Care & Health,S-L non - framework - other support,A56159,0
Royal Borough of Kingston,11/12/2023,90299709,503.28,GENEVA ROAD LIMITED,SOCIAL SERVICES RESIDENTIAL,Adult Social Care & Health,S-L non - framework - other support,A56159,0
Royal Borough of Kingston,11/12/2023,90299709,503.28,GENEVA ROAD LIMITED,SOCIAL SERVICES RESIDENTIAL,Adult Social Care & Health,S-L non - framework - other support,A56159,0
Royal Borough of Kingston,11/12/2023,90299710,503.28,GENEVA ROAD LIMITED,SOCIAL SERVICES RESIDENTIAL,Adult Social Care & Health,S-L non - framework - other support,A56159,0
Royal Borough of Kingston,11/12/2023,90299710,503.28,GENEVA ROAD LIMITED,SOCIAL SERVICES RESIDENTIAL,Adult Social Care & Health,S-L non - framework - other support,A56159,0
Royal Borough of Kingston,11/12/2023,90299711,503.28,GENEVA ROAD LIMITED,SOCIAL SERVICES RESIDENTIAL,Adult Social Care & Health,S-L non - framework - other support,A56159,0
Royal Borough of Kingston,11/12/2023,90299711,503.28,GENEVA ROAD LIMITED,SOCIAL SERVICES RESIDENTIAL,Adult Social Care & Health,S-L non - framework - other support,A56159,0
Royal Borough of Kingston,01/01/2024,90301149,"1,161.61",GENEVA ROAD LIMITED,SOCIAL SERVICES RESIDENTIAL,Adult Social Care & Health,Personal Budget - Third Party,A61019,0
Royal Borough of Kingston,01/01/2024,90301150,"1,328.57",GENEVA ROAD LIMITED,SOCIAL SERVICES RESIDENTIAL,Adult Social Care & Health,Personal Budget - Third Party,A61019,0
Royal Borough of Kingston,01/01/2024,90301151,"3,282.63",GENEVA ROAD LIMITED,SOCIAL SERVICES RESIDENTIAL,Adult Social Care & Health,Personal Budget - Third Party,A61019,0
Royal Borough of Kingston,01/01/2024,90301152,"8,082.14",GENEVA ROAD LIMITED,SOCIAL SERVICES RESIDENTIAL,Adult Social Care & Health,Personal Budget - Third Party,A61019,0
Royal Borough of Kingston,01/01/2024,90301175,864.00,GENEVA ROAD LIMITED,SOCIAL SERVICES RESIDENTIAL,Adult Social Care & Health,Personal Budget - Third Party,A61019,0
Royal Borough of Kingston,01/01/2024,90301194,"2,054.80",GENEVA ROAD LIMITED,SOCIAL SERVICES RESIDENTIAL,Adult Social Care & Health,Personal Budget - Third Party,A61019,0
Royal Borough of Kingston,01/01/2024,90301195,"1,080.00",GENEVA ROAD LIMITED,SOCIAL SERVICES RESIDENTIAL,Adult Social Care & Health,Personal Budget - Third Party,A61019,0
Royal Borough of Kingston,01/01/2024,90301204,442.86,GENEVA ROAD LIMITED,SOCIAL SERVICES RESIDENTIAL,Adult Social Care & Health,Personal Budget - Third Party,A61019,0
Royal Borough of Kingston,01/01/2024,90301206,664.29,GENEVA ROAD LIMITED,SOCIAL SERVICES RESIDENTIAL,Adult Social Care & Health,Personal Budget - Third Party,A61019,0
Royal Borough of Kingston,01/01/2024,90301207,672.48,GENEVA ROAD LIMITED,SOCIAL SERVICES RESIDENTIAL,Adult Social Care & Health,Personal Budget - Third Party,A61019,0
Royal Borough of Kingston,01/01/2024,90301208,648.00,GENEVA ROAD LIMITED,SOCIAL SERVICES RESIDENTIAL,Adult Social Care & Health,Personal Budget - Third Party,A61019,0
Royal Borough of Kingston,01/01/2024,90301209,"1,107.14",GENEVA ROAD LIMITED,SOCIAL SERVICES RESIDENTIAL,Adult Social Care & Health,Personal Budget - Third Party,A61019,0
Royal Borough of Kingston,01/01/2024,90301210,"1,868.00",GENEVA ROAD LIMITED,SOCIAL SERVICES RESIDENTIAL,Adult Social Care & Health,Personal Budget - Third Party,A61019,0
Royal Borough of Kingston,01/01/2024,90301211,"1,080.00",GENEVA ROAD LIMITED,SOCIAL SERVICES RESIDENTIAL,Adult Social Care & Health,Personal Budget - Third Party,A61019,0
Royal Borough of Kingston,01/01/2024,90301229,"2,241.60",GENEVA ROAD LIMITED,SOCIAL SERVICES RESIDENTIAL,Adult Social Care & Health,Personal Budget - Third Party,A61019,0
Royal Borough of Kingston,01/01/2024,90301230,"1,080.00",GENEVA ROAD LIMITED,SOCIAL SERVICES RESIDENTIAL,Adult Social Care & Health,Personal Budget - Third Party,A61019,0
Royal Borough of Kingston,01/01/2024,90301245,971.36,GENEVA ROAD LIMITED,SOCIAL SERVICES RESIDENTIAL,Adult Social Care & Health,Personal Budget - Third Party,A61019,0
Royal Borough of Kingston,01/01/2024,90301253,885.71,GENEVA ROAD LIMITED,SOCIAL SERVICES RESIDENTIAL,Adult Social Care & Health,Personal Budget - Third Party,A61019,0
Royal Borough of Kingston,01/01/2024,90301254,864.00,GENEVA ROAD LIMITED,SOCIAL SERVICES RESIDENTIAL,Adult Social Care & Health,Personal Budget - Third Party,A61019,0
Royal Borough of Kingston,01/01/2024,90301256,664.29,GENEVA ROAD LIMITED,SOCIAL SERVICES RESIDENTIAL,Adult Social Care & Health,Personal Budget - Third Party,A61019,0
Royal Borough of Kingston,01/01/2024,90301257,648.00,GENEVA ROAD LIMITED,SOCIAL SERVICES RESIDENTIAL,Adult Social Care & Health,Personal Budget - Third Party,A61019,0
Royal Borough of Kingston,01/01/2024,90301273,506.89,GENEVA ROAD LIMITED,SOCIAL SERVICES RESIDENTIAL,Adult Social Care & Health,Personal Budget - Third Party,A61019,0
Royal Borough of Kingston,01/01/2024,90301294,664.29,GENEVA ROAD LIMITED,SOCIAL SERVICES RESIDENTIAL,Adult Social Care & Health,Personal Budget - Third Party,A61019,0
Royal Borough of Kingston,01/01/2024,90301295,540.00,GENEVA ROAD LIMITED,SOCIAL SERVICES RESIDENTIAL,Adult Social Care & Health,Personal Budget - Third Party,A61019,0
Royal Borough of Kingston,01/01/2024,90300269,"3,623.50",GEORGIAN HOUSE NURSING HOME,SOCIAL SERVICES RESIDENTIAL,Adult Social Care & Health,Independent Placements,A56006,0
Royal Borough of Kingston,13/12/2023,70061112,"4,400.00",Gerald Eve LLP,SUNDRY SUPPLIER - FINANCE,Place,Council Dwellings - Acquisition,C10006,0
Royal Borough of Kingston,02/01/2024,90295504,500.00,REDACTED - PERSONAL DATA,GRANTS & EX GRATIA PAYMENTS,Adult Social Care & Health,"Grants, Contributions & Donations",A47005,0
Royal Borough of Kingston,30/10/2023,70057763,"1,544.40",Glendale Countryside Ltd,CONSTRUCTION INDUSTRY,Place,Other Property Repairs & Maintenance,A20007,0
Royal Borough of Kingston,29/11/2023,70060891,"6,017.00",Glendale Countryside Ltd,CONSTRUCTION INDUSTRY,Corporate & Communities,Grounds Maintenance Contract,A28000,0
Royal Borough of Kingston,30/10/2023,70061101,"3,181.30",Glendale Countryside Ltd,CONSTRUCTION INDUSTRY,Corporate & Communities,Property Repairs & Maintenance & Alterations - Responsive,A20011,0
Royal Borough of Kingston,31/12/2023,70061445,"6,865.45",Glendale Countryside Ltd,CONSTRUCTION INDUSTRY,Corporate & Communities,Infrastructure Assets - Purchase & Enhancement,C12001,0
Royal Borough of Kingston,31/12/2023,70061448,"152,960.88",Glendale Countryside Ltd,CONSTRUCTION INDUSTRY,Corporate & Communities,Grounds Maintenance Contract,A28000,0
Royal Borough of Kingston,31/12/2023,70061449,"1,611.50",Glendale Countryside Ltd,CONSTRUCTION INDUSTRY,Corporate & Communities,Property Repairs & Maintenance & Alterations - Responsive,A20011,0
Royal Borough of Kingston,31/12/2023,70061453,"2,315.00",Glendale Countryside Ltd,CONSTRUCTION INDUSTRY,Corporate & Communities,Property Repairs & Maintenance & Alterations - Responsive,A20011,0
Royal Borough of Kingston,25/12/2023,90295999,630.27,Global Homecare,SOCIAL SERVICES-HOME CARE,Adult Social Care & Health,Homecare - new framework,A56127,0
Royal Borough of Kingston,25/12/2023,90296126,693.29,Global Homecare,SOCIAL SERVICES-HOME CARE,Adult Social Care & Health,Homecare - new framework,A56127,0
Royal Borough of Kingston,25/12/2023,90296153,567.24,Global Homecare,SOCIAL SERVICES-HOME CARE,Adult Social Care & Health,Homecare - new framework,A56127,0
Royal Borough of Kingston,25/12/2023,90296187,628.99,Global Homecare,SOCIAL SERVICES-HOME CARE,Adult Social Care & Health,Homecare - new framework,A56127,0
Royal Borough of Kingston,25/12/2023,90296350,828.35,Global Homecare,SOCIAL SERVICES-HOME CARE,Adult Social Care & Health,Homecare - new framework,A56127,0
Royal Borough of Kingston,25/12/2023,90296367,"1,512.64",Global Homecare,SOCIAL SERVICES-HOME CARE,Adult Social Care & Health,Homecare - new framework,A56127,0
Royal Borough of Kingston,01/01/2024,90297872,630.27,Global Homecare,SOCIAL SERVICES-HOME CARE,Adult Social Care & Health,Homecare - new framework,A56127,0
Royal Borough of Kingston,01/01/2024,90297993,693.29,Global Homecare,SOCIAL SERVICES-HOME CARE,Adult Social Care & Health,Homecare - new framework,A56127,0
Royal Borough of Kingston,01/01/2024,90298021,567.24,Global Homecare,SOCIAL SERVICES-HOME CARE,Adult Social Care & Health,Homecare - new framework,A56127,0
Royal Borough of Kingston,01/01/2024,90298194,"1,764.75",Global Homecare,SOCIAL SERVICES-HOME CARE,Adult Social Care & Health,Homecare - new framework,A56127,0
Royal Borough of Kingston,01/01/2024,90298227,"1,512.64",Global Homecare,SOCIAL SERVICES-HOME CARE,Adult Social Care & Health,Homecare - new framework,A56127,0
Royal Borough of Kingston,08/01/2024,90299178,630.27,Global Homecare,SOCIAL SERVICES-HOME CARE,Adult Social Care & Health,Homecare - new framework,A56127,0
Royal Borough of Kingston,08/01/2024,90299286,693.29,Global Homecare,SOCIAL SERVICES-HOME CARE,Adult Social Care & Health,Homecare - new framework,A56127,0
Royal Borough of Kingston,08/01/2024,90299311,567.24,Global Homecare,SOCIAL SERVICES-HOME CARE,Adult Social Care & Health,Homecare - new framework,A56127,0
Royal Borough of Kingston,08/01/2024,90299506,"1,764.75",Global Homecare,SOCIAL SERVICES-HOME CARE,Adult Social Care & Health,Homecare - new framework,A56127,0
Royal Borough of Kingston,08/01/2024,90299519,"1,512.64",Global Homecare,SOCIAL SERVICES-HOME CARE,Adult Social Care & Health,Homecare - new framework,A56127,0
Royal Borough of Kingston,15/01/2024,90302523,630.27,Global Homecare,SOCIAL SERVICES-HOME CARE,Adult Social Care & Health,Homecare - new framework,A56127,0
Royal Borough of Kingston,15/01/2024,90302631,693.29,Global Homecare,SOCIAL SERVICES-HOME CARE,Adult Social Care & Health,Homecare - new framework,A56127,0
Royal Borough of Kingston,15/01/2024,90302656,567.24,Global Homecare,SOCIAL SERVICES-HOME CARE,Adult Social Care & Health,Homecare - new framework,A56127,0
Royal Borough of Kingston,15/01/2024,90302836,"1,764.75",Global Homecare,SOCIAL SERVICES-HOME CARE,Adult Social Care & Health,Homecare - new framework,A56127,0
Royal Borough of Kingston,15/01/2024,90302849,"1,512.64",Global Homecare,SOCIAL SERVICES-HOME CARE,Adult Social Care & Health,Homecare - new framework,A56127,0
Royal Borough of Kingston,15/01/2024,90302903,756.32,Global Homecare,SOCIAL SERVICES-HOME CARE,Adult Social Care & Health,Homecare - Framework - double-handed,A56131,0
Royal Borough of Kingston,15/01/2024,90302903,756.32,Global Homecare,SOCIAL SERVICES-HOME CARE,Adult Social Care & Health,Homecare - Framework - double-handed,A56131,0
Royal Borough of Kingston,01/01/2024,90299998,"4,229.15",Gold Care Homes,SOCIAL SERVICES RESIDENTIAL,Adult Social Care & Health,Independent Placements,A56006,0
Royal Borough of Kingston,01/01/2024,90300007,"4,539.29",Gold Care Homes,SOCIAL SERVICES RESIDENTIAL,Adult Social Care & Health,Independent Placements,A56006,0
Royal Borough of Kingston,01/01/2024,90300097,"5,757.14",Gold Care Homes,SOCIAL SERVICES RESIDENTIAL,Adult Social Care & Health,Independent Placements,A56006,0
Royal Borough of Kingston,01/01/2024,90300098,"6,200.00",Gold Care Homes,SOCIAL SERVICES RESIDENTIAL,Adult Social Care & Health,Independent Placements,A56006,0
Royal Borough of Kingston,01/01/2024,90300181,"3,909.94",Gold Care Homes,SOCIAL SERVICES RESIDENTIAL,Adult Social Care & Health,Independent Placements,A56006,0
Royal Borough of Kingston,01/01/2024,90300239,"4,462.23",Gold Care Homes,SOCIAL SERVICES RESIDENTIAL,Adult Social Care & Health,Independent Placements,A56006,0
Royal Borough of Kingston,01/01/2024,90300306,"6,200.00",Gold Care Homes,SOCIAL SERVICES RESIDENTIAL,Adult Social Care & Health,Independent Placements,A56006,0
Royal Borough of Kingston,01/01/2024,90300309,"5,646.43",Gold Care Homes,SOCIAL SERVICES RESIDENTIAL,Adult Social Care & Health,Independent Placements,A56006,0
Royal Borough of Kingston,01/01/2024,90300310,"4,462.23",Gold Care Homes,SOCIAL SERVICES RESIDENTIAL,Adult Social Care & Health,Independent Placements,A56006,0
Royal Borough of Kingston,01/01/2024,90300312,"4,462.23",Gold Care Homes,SOCIAL SERVICES RESIDENTIAL,Adult Social Care & Health,Independent Placements,A56006,0
Royal Borough of Kingston,01/01/2024,90300323,"4,328.57",Gold Care Homes,SOCIAL SERVICES RESIDENTIAL,Adult Social Care & Health,Independent Placements,A56006,0
Royal Borough of Kingston,01/01/2024,90300325,"4,497.17",Gold Care Homes,SOCIAL SERVICES RESIDENTIAL,Adult Social Care & Health,Independent Placements,A56006,0
Royal Borough of Kingston,01/01/2024,90300326,"4,762.35",Gold Care Homes,SOCIAL SERVICES RESIDENTIAL,Adult Social Care & Health,Independent Placements,A56006,0
Royal Borough of Kingston,01/01/2024,90300341,"4,539.29",Gold Care Homes,SOCIAL SERVICES RESIDENTIAL,Adult Social Care & Health,Independent Placements,A56006,0
Royal Borough of Kingston,01/01/2024,90300345,"4,462.23",Gold Care Homes,SOCIAL SERVICES RESIDENTIAL,Adult Social Care & Health,Independent Placements,A56006,0
Royal Borough of Kingston,01/01/2024,90300346,"4,762.35",Gold Care Homes,SOCIAL SERVICES RESIDENTIAL,Adult Social Care & Health,Independent Placements,A56006,0
